{"text_format":"1","workbook":"xlsx","n_sheets":22,"sheets":["Intro","Setup","Players","Table","Stunty","GroupFixtures","GroupTable","Presentation","GroupMatrix","Matrix","Round1","Round2","Round3","Round4","Round5","Round6","Round7","Round8","Round9","NAF","Working","ChangeLog"],"not_rendered":{"charts":0,"images":0,"macros":1,"external_links":0,"defined_names":35,"comments":2,"pivot_tables":0},"unopened":[],"bounds":{"document_bytes":16777216,"sheet_cells":100000,"rows_first":2000,"rows_last":500,"rows_between":2000,"halvings":0,"cell_chars":16384,"cell_head_chars":4096},"cells_cut":0,"cells_raw":0,"read":"whole","date_system":"1900"}

{"sheet":"Intro","index":0,"n_rows":19,"n_cols":18,"rows_kept":19,"cut":false,"hidden":false,"merged":[]}
[]
[null,"Buttons for running a tournament:",null,null,null,null,null,null,null,null,null,null,null,null,null,null,null,"Setup Tabs"]
[null,null,null,null,null,null,null,null,null,null,null,null,null,null,null,null,null,"Presentation Tabs"]
[null,null,null,null,null,null,null,null,null,null,null,null,null,null,null,null,null,"Round Results"]
[null,null,null,null,null,null,null,null,null,null,null,null,null,null,null,null,null,"Other"]
[]
[]
[]
[]
[]
[]
[]
[]
[]
[]
[]
[]
[]
[null,"Buttons for practising:"]

{"sheet":"Setup","index":1,"n_rows":24,"n_cols":11,"rows_kept":24,"cut":false,"hidden":false,"merged":[]}
["SCORING SETUP",null,null,"Group/Ind Swiss?","Group",null,"Individual Tie Breaks",null,null,"Group Tie Breaks"]
[null,null,null,null,null,null,"Player",null,null,"Group"]
["Points for…",null,null,"Name of First Bonus","Bonus1",null,"Points","Order",null,"Points","Order"]
["Win by at least 2 TD",2,null,"Name of Second Bonus","Bonus2",null,"TD For",null,null,"TD For"]
["Win by 1 TD",2,null,null,null,null,"TD Against",null,null,"TD Against"]
["Draw",1,null,null,null,null,"TD Net",2,null,"Net TDs",2]
["Lose by 1 TD",0,null,null,null,null,"Cas For",null,null,"Cas For"]
["Lose by at least 2 TD",0,null,null,null,null,"Cas Against",null,null,"Cas Against"]
[null,null,null,null,null,null,"Cas Net",3,null,"Net Cas",3]
["Bonus points for TD/Cas etc",null,null,"Test Individual Scoring System Here",null,null,{"$f":"Working!AG16","v":"Bonus1"},null,null,{"$f":"\"Group Total \"&Working!AG16","v":"Group Total Bonus1"}]
["Points per TD",0,null,"Your Score (required)",4,null,{"$f":"Working!AG17","v":"Bonus2"},null,null,{"$f":"\"Group Total \"&Working!AG17","v":"Group Total Bonus2"}]
["Max TD Bonus Pts",0,null,"Opponent Score (required)",3,null,"Wins",null,null,"Group Wins"]
["Points per Cas",0,null,"Your Cas (optional)",3,null,"Draws",null,null,"Groups Draws"]
["Max Cas Bonus Pts",0,null,{"$f":"\"Your \"&Working!AG16&\" (optional)\"","v":"Your Bonus1 (optional)"},1,null,"Losses",null,null,"Group Losses"]
[{"$f":"Working!AG16&\" Max Bonus Pts\"","v":"Bonus1 Max Bonus Pts"},0,null,{"$f":"\"Your \"&Working!AG17&\" (optional)\"","v":"Your Bonus2 (optional)"},2,null,"Opp Score",1,null,"Individual Wins"]
[{"$f":"Working!AG17&\" Max Bonus Pts\"","v":"Bonus2 Max Bonus Pts"},0,null,null,null,null,null,null,null,"Individual Draws"]
[null,null,null,"Your Points",{"$f":"fctScore(E11,E12,E13,E14,E15)","v":1},null,null,null,null,"Individual Losses"]
["Group Scoring Options",null,null,null,null,null,null,null,null,"Total Individual Points"]
["Points for a win",2,null,null,null,null,null,null,null,"Opponent Score",1]
["Points for a draw",1]
["Points for a loss",0]
["Points for a group win",200]
["Points for a group draw",100]
["Points for a group loss",0]

{"sheet":"Players","index":2,"n_rows":160,"n_cols":16,"rows_kept":160,"cut":false,"hidden":false,"merged":[]}
["Num","Display Name","NAF Name","NAF Number (Random)","Race","Group","Stunty",null,null,null,null,null,"Groups",null,"Team Size",8]
[{"$f":"IF(C2=\"\",\"\",MAX(A$1:A1)+1)","v":1},"Niebling ","Niebling ",11499,"Amazons","Denmark",null,null,null,null,null,null,"Belgium"]
[{"$f":"IF(C3=\"\",\"\",MAX(A$1:A2)+1)","v":2},"PurpleGoo ","PurpleGoo ",11777,"Amazons","England",null,null,null,null,null,null,"Denmark"]
[{"$f":"IF(C4=\"\",\"\",MAX(A$1:A3)+1)","v":3},"Mubo ","Mubo ",13409,"Amazons","England",null,null,null,null,null,null,"England"]
[{"$f":"IF(B5=\"\",\"\",MAX(A$1:A4)+1)","v":4},"Dirold ","Dirold ",5900,"Amazons","Italy",null,null,null,null,null,null,"Finland"]
[{"$f":"IF(B6=\"\",\"\",MAX(A$1:A5)+1)","v":5},"The_Ref ","The_Ref ",9441,"Amazons","Norway",null,null,null,null,null,null,"France"]
[{"$f":"IF(C7=\"\",\"\",MAX(A$1:A6)+1)","v":6},"Tripleskull ","Tripleskull ",9524,"Chaos","Denmark",null,null,null,null,null,null,"Germany"]
[{"$f":"IF(C8=\"\",\"\",MAX(A$1:A7)+1)","v":7},"MissSweden ","MissSweden ",11498,"Chaos","Denmark",null,null,null,null,null,null,"Hungary"]
[{"$f":"IF(C9=\"\",\"\",MAX(A$1:A8)+1)","v":8},"Topper ","Topper ",6363,"Chaos","Denmark",null,null,null,null,null,null,"Italy"]
[{"$f":"IF(C10=\"\",\"\",MAX(A$1:A9)+1)","v":9},"Joemanji ","Joemanji ",3312,"Chaos","England",null,null,null,null,null,null,"Norway"]
[{"$f":"IF(B11=\"\",\"\",MAX(A$1:A10)+1)","v":10},"edheim ","edheim ",20760,"Chaos","Finland",null,null,null,null,null,null,"Poland"]
[{"$f":"IF(B12=\"\",\"\",MAX(A$1:A11)+1)","v":11},"FrankPedersen ","FrankPedersen ",20899,"Chaos","Norway",null,null,null,null,null,null,"Scotland"]
[{"$f":"IF(B13=\"\",\"\",MAX(A$1:A12)+1)","v":12},"Obeliz ","Obeliz ",2519,"Chaos","Spain",null,null,null,null,null,null,"Spain"]
[{"$f":"IF(B14=\"\",\"\",MAX(A$1:A13)+1)","v":13},"Northernknight ","Northernknight ",7569,"Chaos","Wales",null,null,null,null,null,null,"Sweden"]
[{"$f":"IF(C15=\"\",\"\",MAX(A$1:A14)+1)","v":14},"Woete ","Woete ",12500,"Chaos Dwarves","Belgium",null,null,null,null,null,null,"Switzerland"]
[{"$f":"IF(B16=\"\",\"\",MAX(A$1:A15)+1)","v":15},"RoterSternHochdahl","RoterSternHochdahl",18704,"Chaos Dwarves","Germany",null,null,null,null,null,null,"Viking"]
[{"$f":"IF(B17=\"\",\"\",MAX(A$1:A16)+1)","v":16},"Jonny_Kanone ","Jonny_Kanone ",9621,"Chaos Dwarves","Germany",null,null,null,null,null,null,"Wales"]
[{"$f":"IF(B18=\"\",\"\",MAX(A$1:A17)+1)","v":17},"Itzla ","Itzla ",9758,"Chaos Dwarves","Hungary"]
[{"$f":"IF(B19=\"\",\"\",MAX(A$1:A18)+1)","v":18},"Farina ","Farina ",3533,"Chaos Dwarves","Italy"]
[{"$f":"IF(B20=\"\",\"\",MAX(A$1:A19)+1)","v":19},"Garrick ","Garrick ",18506,"Chaos Dwarves","Scotland"]
[{"$f":"IF(B21=\"\",\"\",MAX(A$1:A20)+1)","v":20},"Dark Duke ","Dark Duke ",2925,"Chaos Dwarves","Spain"]
[{"$f":"IF(B22=\"\",\"\",MAX(A$1:A21)+1)","v":21},"20Phoenix ","20Phoenix ",19395,"Chaos Dwarves","Wales"]
[{"$f":"IF(C23=\"\",\"\",MAX(A$1:A22)+1)","v":22},"Malodoror ","Malodoror ",20793,"Chaos Pact","Belgium"]
[{"$f":"IF(B24=\"\",\"\",MAX(A$1:A23)+1)","v":23},"Bouzzy ","Bouzzy ",15733,"Chaos Pact","France"]
[{"$f":"IF(B25=\"\",\"\",MAX(A$1:A24)+1)","v":24},"DocMaxx ","DocMaxx ",16347,"Chaos Pact","Germany"]
[{"$f":"IF(B26=\"\",\"\",MAX(A$1:A25)+1)","v":25},"BlackOrc ","BlackOrc ",6233,"Chaos Pact","Hungary"]
[{"$f":"IF(B27=\"\",\"\",MAX(A$1:A26)+1)","v":26},"Kaltenland ","Kaltenland ",11924,"Chaos Pact","Italy"]
[{"$f":"IF(B28=\"\",\"\",MAX(A$1:A27)+1)","v":27},"Shawass ","Shawass ",18416,"Chaos Pact","Poland"]
[{"$f":"IF(B29=\"\",\"\",MAX(A$1:A28)+1)","v":28},"Malasnoticias ","Malasnoticias ",17068,"Chaos Pact","Spain"]
[{"$f":"IF(B30=\"\",\"\",MAX(A$1:A29)+1)","v":29},"Macabeo ","Macabeo ",18608,"Chaos Pact","Switzerland"]
[{"$f":"IF(B31=\"\",\"\",MAX(A$1:A30)+1)","v":30},"Corwin ","Corwin ",17878,"Chaos Pact","Viking"]
[{"$f":"IF(B32=\"\",\"\",MAX(A$1:A31)+1)","v":31},"SFisher91 ","SFisher91 ",16057,"Chaos Pact","Wales"]
[{"$f":"IF(C33=\"\",\"\",MAX(A$1:A32)+1)","v":32},"Phoenix11 ","Phoenix11 ",8402,"Dark Elves","Belgium"]
[{"$f":"IF(B34=\"\",\"\",MAX(A$1:A33)+1)","v":33},"Wolio ","Wolio ",20061,"Dark Elves","Hungary"]
[{"$f":"IF(B35=\"\",\"\",MAX(A$1:A34)+1)","v":34},"Reszka ","Reszka ",21573,"Dark Elves","Poland"]
[{"$f":"IF(B36=\"\",\"\",MAX(A$1:A35)+1)","v":35},"Slimaq ","Slimaq ",21957,"Dark Elves","Poland"]
[{"$f":"IF(B37=\"\",\"\",MAX(A$1:A36)+1)","v":36},"Skuld ","Skuld ",20481,"Dark Elves","Sweden"]
[{"$f":"IF(B38=\"\",\"\",MAX(A$1:A37)+1)","v":37},"Balder ","Balder ",17725,"Dark Elves","Viking"]
[{"$f":"IF(B39=\"\",\"\",MAX(A$1:A38)+1)","v":38},"Dionysian ","Dionysian ",19480,"Dark Elves","Wales"]
[{"$f":"IF(B40=\"\",\"\",MAX(A$1:A39)+1)","v":39},"Harza ","Harza ",20060,"Dwarves","Finland"]
[{"$f":"IF(B41=\"\",\"\",MAX(A$1:A40)+1)","v":40},"Idroj ","Idroj ",20930,"Dwarves","Spain"]
[{"$f":"IF(B42=\"\",\"\",MAX(A$1:A41)+1)","v":41},"Faccko ","Faccko ",17893,"Dwarves","Viking"]
[{"$f":"IF(B43=\"\",\"\",MAX(A$1:A42)+1)","v":42},"MacWitt ","MacWitt ",19932,"Elves","Finland"]
[{"$f":"IF(B44=\"\",\"\",MAX(A$1:A43)+1)","v":43},"Pellevin ","Pellevin ",19271,"Elves","Sweden"]
[{"$f":"IF(C45=\"\",\"\",MAX(A$1:A44)+1)","v":44},"Araznaroth ","Araznaroth ",13199,"Goblins","Belgium",1]
[{"$f":"IF(C46=\"\",\"\",MAX(A$1:A45)+1)","v":45},"JimJimany ","JimJimany ",12403,"Goblins","England",1]
[{"$f":"IF(B47=\"\",\"\",MAX(A$1:A46)+1)","v":46},"zulu ","zulu ",16829,"Goblins","Norway",1]
[{"$f":"IF(B48=\"\",\"\",MAX(A$1:A47)+1)","v":47},"mynock ","mynock ",20775,"Goblins","Norway",1]
[{"$f":"IF(B49=\"\",\"\",MAX(A$1:A48)+1)","v":48},"Strider84 ","Strider84 ",14113,"Goblins","Switzerland",1]
[{"$f":"IF(B50=\"\",\"\",MAX(A$1:A49)+1)","v":49},"Phifoe ","Phifoe ",16959,"Goblins","Switzerland",1]
[{"$f":"IF(B51=\"\",\"\",MAX(A$1:A50)+1)","v":50},"JohnnyD ","JohnnyD ",18171,"Halflings","Sweden",1]
[{"$f":"IF(C52=\"\",\"\",MAX(A$1:A51)+1)","v":51},"Dekra1979 ","Dekra1979 ",16259,"High Elves","Belgium"]
[{"$f":"IF(B53=\"\",\"\",MAX(A$1:A52)+1)","v":52},"straume ","straume ",20685,"High Elves","Norway"]
[{"$f":"IF(B54=\"\",\"\",MAX(A$1:A53)+1)","v":53},"Barry ","Barry ",3290,"High Elves","Spain"]
[{"$f":"IF(B55=\"\",\"\",MAX(A$1:A54)+1)","v":54},"Tactel ","Tactel ",20218,"High Elves","Spain"]
[{"$f":"IF(B56=\"\",\"\",MAX(A$1:A55)+1)","v":55},"Pidpad ","Pidpad ",20957,"High Elves","Sweden"]
[{"$f":"IF(B57=\"\",\"\",MAX(A$1:A56)+1)","v":56},"Elrik ","Elrik ",19344,"High Elves","Switzerland"]
[{"$f":"IF(B58=\"\",\"\",MAX(A$1:A57)+1)","v":57},"Simon_ACP ","Simon_ACP ",17603,"Humans","France"]
[{"$f":"IF(B59=\"\",\"\",MAX(A$1:A58)+1)","v":58},"sann0638 ","sann0638 ",8866,"Humans","Scotland"]
[{"$f":"IF(B60=\"\",\"\",MAX(A$1:A59)+1)","v":59},"Goss ","Goss ",18266,"Humans","Switzerland"]
[{"$f":"IF(B61=\"\",\"\",MAX(A$1:A60)+1)","v":60},"Muadib ","Muadib ",2800,"Khemri","Germany"]
[{"$f":"IF(B62=\"\",\"\",MAX(A$1:A61)+1)","v":61},"swifty ","swifty ",20309,"Khemri","Hungary"]
[{"$f":"IF(B63=\"\",\"\",MAX(A$1:A62)+1)","v":62},"Matte8 ","Matte8 ",13785,"Khemri","Italy"]
[{"$f":"IF(B64=\"\",\"\",MAX(A$1:A63)+1)","v":63},"Joanet ","Joanet ",7690,"Khemri","Spain"]
[{"$f":"IF(C65=\"\",\"\",MAX(A$1:A64)+1)","v":64},"SpecialOne ","SpecialOne ",16742,"Lizardmen","Denmark"]
[{"$f":"IF(B66=\"\",\"\",MAX(A$1:A65)+1)","v":65},"Prince ","Prince ",341,"Lizardmen","Germany"]
[{"$f":"IF(B67=\"\",\"\",MAX(A$1:A66)+1)","v":66},"GreatWhiteHope ","GreatWhiteHope ",20881,"Lizardmen","Norway"]
[{"$f":"IF(B68=\"\",\"\",MAX(A$1:A67)+1)","v":67},"Bernuz ","Bernuz ",19542,"Lizardmen","Viking"]
[{"$f":"IF(B69=\"\",\"\",MAX(A$1:A68)+1)","v":68},"MadeofWelsh ","MadeofWelsh ",12184,"Lizardmen","Wales"]
[{"$f":"IF(C70=\"\",\"\",MAX(A$1:A69)+1)","v":69},"Tank ","Tank ",11501,"Necromantic","Denmark"]
[{"$f":"IF(B71=\"\",\"\",MAX(A$1:A70)+1)","v":70},"BeerBeer ","BeerBeer ",18245,"Necromantic","Finland"]
[{"$f":"IF(B72=\"\",\"\",MAX(A$1:A71)+1)","v":71},"ratogre ","ratogre ",22007,"Necromantic","Finland"]
[{"$f":"IF(B73=\"\",\"\",MAX(A$1:A72)+1)","v":72},"BudWiser ","BudWiser ",12987,"Necromantic","France"]
[{"$f":"IF(B74=\"\",\"\",MAX(A$1:A73)+1)","v":73},"Gros Nain ","Gros Nain ",14524,"Norse","France"]
[{"$f":"IF(B75=\"\",\"\",MAX(A$1:A74)+1)","v":74},"Warrior1980 ","Warrior1980 ",22376,"Norse","Poland"]
[{"$f":"IF(B76=\"\",\"\",MAX(A$1:A75)+1)","v":75},"Juniooor7 ","Juniooor7 ",22455,"Norse","Poland"]
[{"$f":"IF(B77=\"\",\"\",MAX(A$1:A76)+1)","v":76},"Madmatt13 ","Madmatt13 ",19790,"Norse","Switzerland"]
[{"$f":"IF(B78=\"\",\"\",MAX(A$1:A77)+1)","v":77},"jopotzuki ","jopotzuki ",20783,"Nurgle's Rotters","Finland"]
[{"$f":"IF(B79=\"\",\"\",MAX(A$1:A78)+1)","v":78},"J-Ho","J-Ho",19106,"Nurgle's Rotters","Finland"]
[{"$f":"IF(B80=\"\",\"\",MAX(A$1:A79)+1)","v":79},"Verrinho ","Verrinho ",16930,"Nurgle's Rotters","Italy"]
[{"$f":"IF(B81=\"\",\"\",MAX(A$1:A80)+1)","v":80},"Valen ","Valen ",1538,"Nurgle's Rotters","Scotland"]
[{"$f":"IF(C82=\"\",\"\",MAX(A$1:A81)+1)","v":81},"Lycos ","Lycos ",2870,"Ogres","England",1]
[{"$f":"IF(B83=\"\",\"\",MAX(A$1:A82)+1)","v":82},"Domingo ","Domingo ",20280,"Ogres","Poland",1]
[{"$f":"IF(B84=\"\",\"\",MAX(A$1:A83)+1)","v":83},"Mufflo ","Mufflo ",15048,"Ogres","Viking",1]
[{"$f":"IF(B85=\"\",\"\",MAX(A$1:A84)+1)","v":84},"andydavo ","andydavo ",19726,"Ogres","Wales",1]
[{"$f":"IF(C86=\"\",\"\",MAX(A$1:A85)+1)","v":85},"Geggster ","Geggster ",70,"Orc","England"]
[{"$f":"IF(B87=\"\",\"\",MAX(A$1:A86)+1)","v":86},"Arioso ","Arioso ",18738,"Orc","Germany"]
[{"$f":"IF(B88=\"\",\"\",MAX(A$1:A87)+1)","v":87},"Gaunab ","Gaunab ",2150,"Orc","Germany"]
[{"$f":"IF(B89=\"\",\"\",MAX(A$1:A88)+1)","v":88},"Alex05 ","Alex05 ",22352,"Orc","Hungary"]
[{"$f":"IF(B90=\"\",\"\",MAX(A$1:A89)+1)","v":89},"Beppe ","Beppe ",3564,"Orc","Italy"]
[{"$f":"IF(B91=\"\",\"\",MAX(A$1:A90)+1)","v":90},"Melisqus ","Melisqus ",16238,"Orc","Sweden"]
[{"$f":"IF(B92=\"\",\"\",MAX(A$1:A91)+1)","v":91},"Dragons ","Dragons ",19003,"Orc","Sweden"]
[{"$f":"IF(C93=\"\",\"\",MAX(A$1:A92)+1)","v":92},"Jaqra ","Jaqra ",19750,"Skaven","Denmark"]
[{"$f":"IF(B94=\"\",\"\",MAX(A$1:A93)+1)","v":93},"Harti ","Harti ",13583,"Skaven","France"]
[{"$f":"IF(B95=\"\",\"\",MAX(A$1:A94)+1)","v":94},"Favi ","Favi ",20062,"Skaven","Hungary"]
[{"$f":"IF(B96=\"\",\"\",MAX(A$1:A95)+1)","v":95},"Spartako ","Spartako ",13417,"Skaven","Italy"]
[{"$f":"IF(B97=\"\",\"\",MAX(A$1:A96)+1)","v":96},"DonShula ","DonShula ",14445,"Skaven","Scotland"]
[{"$f":"IF(B98=\"\",\"\",MAX(A$1:A97)+1)","v":97},"HumptyTrump ","HumptyTrump ",20360,"Skaven","Scotland"]
[{"$f":"IF(B99=\"\",\"\",MAX(A$1:A98)+1)","v":98},"Purrelito ","Purrelito ",15323,"Skaven","Viking"]
[{"$f":"IF(B100=\"\",\"\",MAX(A$1:A99)+1)","v":99},"nonumber ","nonumber ",8923,"Skaven","Wales"]
[{"$f":"IF(C101=\"\",\"\",MAX(A$1:A100)+1)","v":100},"Driesfield ","Driesfield ",6183,"Slann","Belgium"]
[{"$f":"IF(C102=\"\",\"\",MAX(A$1:A101)+1)","v":101},"kfoged ","kfoged ",10691,"Slann","Denmark"]
[{"$f":"IF(C103=\"\",\"\",MAX(A$1:A102)+1)","v":102},"Podfrey ","Podfrey ",149,"Slann","England"]
[{"$f":"IF(B104=\"\",\"\",MAX(A$1:A103)+1)","v":103},"valkohukka ","valkohukka ",18772,"Slann","Finland"]
[{"$f":"IF(B105=\"\",\"\",MAX(A$1:A104)+1)","v":104},"Skoberget ","Skoberget ",19448,"Slann","Sweden"]
[{"$f":"IF(B106=\"\",\"\",MAX(A$1:A105)+1)","v":105},"brocCooli ","brocCooli ",12552,"Slann","Viking"]
[{"$f":"IF(B107=\"\",\"\",MAX(A$1:A106)+1)","v":106},"Ploppy_McPloppy ","Ploppy_McPloppy ",16417,"Slann","Wales"]
[{"$f":"IF(B108=\"\",\"\",MAX(A$1:A107)+1)","v":107},"BiBi ","BiBi ",11491,"Undead","France"]
[{"$f":"IF(B109=\"\",\"\",MAX(A$1:A108)+1)","v":108},"Matt le fou ","Matt le fou ",13561,"Undead","France"]
[{"$f":"IF(B110=\"\",\"\",MAX(A$1:A109)+1)","v":109},"Candlejack ","Candlejack ",5844,"Undead","Germany"]
[{"$f":"IF(B111=\"\",\"\",MAX(A$1:A110)+1)","v":110},"Purdindas ","Purdindas ",10831,"Undead","Scotland"]
[{"$f":"IF(C112=\"\",\"\",MAX(A$1:A111)+1)","v":111},"JJ ","JJ ",10488,"Underworld","Belgium"]
[{"$f":"IF(C113=\"\",\"\",MAX(A$1:A112)+1)","v":112},"Wilzif ","Wilzif ",8901,"Underworld","England"]
[{"$f":"IF(B114=\"\",\"\",MAX(A$1:A113)+1)","v":113},"noraal ","noraal ",21798,"Underworld","Hungary"]
[{"$f":"IF(B115=\"\",\"\",MAX(A$1:A114)+1)","v":114},"cz ","cz ",21604,"Underworld","Hungary"]
[{"$f":"IF(B116=\"\",\"\",MAX(A$1:A115)+1)","v":115},"Loki ","Loki ",371,"Underworld","Scotland"]
[{"$f":"IF(C117=\"\",\"\",MAX(A$1:A116)+1)","v":116},"gninocker ","gninocker ",17832,"Vampires","Belgium"]
[{"$f":"IF(B118=\"\",\"\",MAX(A$1:A117)+1)","v":117},"Mewash ","Mewash ",21627,"Vampires","Poland"]
[{"$f":"IF(B119=\"\",\"\",MAX(A$1:A118)+1)","v":118},"Leonek ","Leonek ",22375,"Vampires","Poland"]
[{"$f":"IF(B120=\"\",\"\",MAX(A$1:A119)+1)","v":119},"JamesEs ","JamesEs ",17875,"Vampires","Scotland"]
[{"$f":"IF(B121=\"\",\"\",MAX(A$1:A120)+1)","v":120},"Duke_Luthor_Von_Hawkfire ","Duke_Luthor_Von_Hawkfire ",11793,"Vampires","Spain"]
[{"$f":"IF(B122=\"\",\"\",MAX(A$1:A121)+1)","v":121},"Jokaero ","Jokaero ",2785,"Vampires","Switzerland"]
[{"$f":"IF(B123=\"\",\"\",MAX(A$1:A122)+1)","v":122},"Duckwing ","Duckwing ",16278,"Vampires","Viking"]
[{"$f":"IF(B124=\"\",\"\",MAX(A$1:A123)+1)","v":123},"Justicium ","Justicium ",12319,"Wood Elves","France"]
[{"$f":"IF(B125=\"\",\"\",MAX(A$1:A124)+1)","v":124},"Liam ","Liam ",5906,"Wood Elves","Italy"]
[{"$f":"IF(B126=\"\",\"\",MAX(A$1:A125)+1)","v":125},"Endalos ","Endalos ",17242,"Wood Elves","Norway"]
[{"$f":"IF(B127=\"\",\"\",MAX(A$1:A126)+1)","v":126},"bothun ","bothun ",20953,"Wood Elves","Norway"]
[{"$f":"IF(B128=\"\",\"\",MAX(A$1:A127)+1)","v":127},"Inforthepain ","Inforthepain ",19483,"Wood Elves","Sweden"]
[{"$f":"IF(B129=\"\",\"\",MAX(A$1:A128)+1)","v":128},"sigu70 ","sigu70 ",17003,"Wood Elves","Switzerland"]
[{"$f":"IF(B130=\"\",\"\",MAX(A$1:A129)+1)","v":""}]
[{"$f":"IF(B131=\"\",\"\",MAX(A$1:A130)+1)","v":""}]
[{"$f":"IF(B132=\"\",\"\",MAX(A$1:A131)+1)","v":""}]
[{"$f":"IF(B133=\"\",\"\",MAX(A$1:A132)+1)","v":""}]
[{"$f":"IF(B134=\"\",\"\",MAX(A$1:A133)+1)","v":""}]
[{"$f":"IF(B135=\"\",\"\",MAX(A$1:A134)+1)","v":""}]
[{"$f":"IF(B136=\"\",\"\",MAX(A$1:A135)+1)","v":""}]
[{"$f":"IF(B137=\"\",\"\",MAX(A$1:A136)+1)","v":""}]
[{"$f":"IF(B138=\"\",\"\",MAX(A$1:A137)+1)","v":""}]
[{"$f":"IF(B139=\"\",\"\",MAX(A$1:A138)+1)","v":""}]
[{"$f":"IF(B140=\"\",\"\",MAX(A$1:A139)+1)","v":""}]
[{"$f":"IF(B141=\"\",\"\",MAX(A$1:A140)+1)","v":""}]
[{"$f":"IF(B142=\"\",\"\",MAX(A$1:A141)+1)","v":""}]
[{"$f":"IF(B143=\"\",\"\",MAX(A$1:A142)+1)","v":""}]
[{"$f":"IF(B144=\"\",\"\",MAX(A$1:A143)+1)","v":""}]
[{"$f":"IF(B145=\"\",\"\",MAX(A$1:A144)+1)","v":""}]
[{"$f":"IF(B146=\"\",\"\",MAX(A$1:A145)+1)","v":""}]
[{"$f":"IF(B147=\"\",\"\",MAX(A$1:A146)+1)","v":""}]
[{"$f":"IF(B148=\"\",\"\",MAX(A$1:A147)+1)","v":""}]
[{"$f":"IF(B149=\"\",\"\",MAX(A$1:A148)+1)","v":""}]
[{"$f":"IF(B150=\"\",\"\",MAX(A$1:A149)+1)","v":""}]
[{"$f":"IF(B151=\"\",\"\",MAX(A$1:A150)+1)","v":""}]
[{"$f":"IF(B152=\"\",\"\",MAX(A$1:A151)+1)","v":""}]
[{"$f":"IF(B153=\"\",\"\",MAX(A$1:A152)+1)","v":""}]
[{"$f":"IF(B154=\"\",\"\",MAX(A$1:A153)+1)","v":""}]
[{"$f":"IF(B155=\"\",\"\",MAX(A$1:A154)+1)","v":""}]
[{"$f":"IF(B156=\"\",\"\",MAX(A$1:A155)+1)","v":""}]
[{"$f":"IF(B157=\"\",\"\",MAX(A$1:A156)+1)","v":""}]
[{"$f":"IF(B158=\"\",\"\",MAX(A$1:A157)+1)","v":""}]
[{"$f":"IF(B159=\"\",\"\",MAX(A$1:A158)+1)","v":""}]
[{"$f":"IF(B160=\"\",\"\",MAX(A$1:A159)+1)","v":""}]

{"sheet":"Table","index":3,"n_rows":129,"n_cols":16,"rows_kept":129,"cut":false,"hidden":false,"merged":[]}
["Player","Points","TD For","TD Against","TD Net","Cas For","Cas Against","Cas Net","Bonus1","Bonus2","Wins","Draws","Losses","Opp Score",null,"Group"]
["Gros Nain ",2,3,0,3,3,1,2,2,0,1,null,null,0,null,"France"]
["Topper ",2,3,0,3,3,2,1,2,2,1,null,null,0,null,"Denmark"]
["Geggster ",2,3,0,3,2,2,0,0,0,1,null,null,0,null,"England"]
["SpecialOne ",2,3,0,3,1,2,-1,1,1,1,null,null,0,null,"Denmark"]
["Loki ",2,3,0,3,0,2,-2,0,2,1,null,null,0,null,"Scotland"]
["swifty ",2,3,1,2,1,0,1,1,1,1,null,null,0,null,"Hungary"]
["BlackOrc ",2,2,0,2,2,1,1,2,1,1,null,null,0,null,"Hungary"]
["Tank ",2,3,1,2,1,1,0,1,2,1,null,null,0,null,"Denmark"]
["Jokaero ",2,3,1,2,2,2,0,1,0,1,null,null,0,null,"Switzerland"]
["Mufflo ",2,3,1,2,0,0,0,1,0,1,null,null,0,null,"Viking"]
["Niebling ",2,3,1,2,1,2,-1,1,1,1,null,null,0,null,"Denmark"]
["Candlejack ",2,2,0,2,1,2,-1,1,0,1,null,null,0,null,"Germany"]
["valkohukka ",2,3,1,2,1,2,-1,0,2,1,null,null,0,null,"Finland"]
["Domingo ",2,3,1,2,1,3,-2,2,1,1,null,null,0,null,"Poland"]
["Muadib ",2,2,1,1,3,0,3,3,1,1,null,null,0,null,"Germany"]
["Purrelito ",2,1,0,1,2,0,2,2,1,1,null,null,0,null,"Viking"]
["Verrinho ",2,2,1,1,3,1,2,0,1,1,null,null,0,null,"Italy"]
["Liam ",2,3,2,1,1,0,1,0,1,1,null,null,0,null,"Italy"]
["DocMaxx ",2,1,0,1,2,1,1,3,1,1,null,null,0,null,"Germany"]
["Bernuz ",2,2,1,1,2,1,1,2,1,1,null,null,0,null,"Viking"]
["Endalos ",2,2,1,1,2,1,1,1,1,1,null,null,0,null,"Norway"]
["Malodoror ",2,2,1,1,3,2,1,2,3,1,null,null,0,null,"Belgium"]
["MadeofWelsh ",2,1,0,1,2,1,1,1,1,1,null,null,0,null,"Wales"]
["bothun ",2,2,1,1,2,1,1,2,1,1,null,null,0,null,"Norway"]
["Pellevin ",2,2,1,1,3,2,1,2,3,1,null,null,0,null,"Sweden"]
["PurpleGoo ",2,1,0,1,1,0,1,2,3,1,null,null,0,null,"England"]
["Dionysian ",2,3,2,1,1,1,0,1,2,1,null,null,0,null,"Wales"]
["jopotzuki ",2,2,1,1,3,3,0,3,1,1,null,null,0,null,"Finland"]
["Driesfield ",2,2,1,1,1,1,0,3,2,1,null,null,0,null,"Belgium"]
["RoterSternHochdahl",2,2,1,1,1,1,0,1,0,1,null,null,0,null,"Germany"]
["Woete ",2,1,0,1,1,1,0,2,2,1,null,null,0,null,"Belgium"]
["Bouzzy ",2,1,0,1,1,1,0,1,3,1,null,null,0,null,"France"]
["Wilzif ",2,1,0,1,1,1,0,2,1,1,null,null,0,null,"England"]
["Harza ",2,1,0,1,1,2,-1,1,3,1,null,null,0,null,"Finland"]
["Slimaq ",2,2,1,1,0,1,-1,0,3,1,null,null,0,null,"Poland"]
["Tripleskull ",2,2,1,1,0,1,-1,2,1,1,null,null,0,null,"Denmark"]
["Duke_Luthor_Von_Hawkfire ",2,2,1,1,1,2,-1,0,3,1,null,null,0,null,"Spain"]
["Mubo ",2,3,2,1,1,2,-1,0,2,1,null,null,0,null,"England"]
["Gaunab ",2,3,2,1,1,2,-1,1,0,1,null,null,0,null,"Germany"]
["Jaqra ",2,2,1,1,1,3,-2,2,2,1,null,null,0,null,"Denmark"]
["Purdindas ",2,3,2,1,1,3,-2,3,2,1,null,null,0,null,"Scotland"]
["Matt le fou ",2,1,0,1,0,2,-2,1,2,1,null,null,0,null,"France"]
["Itzla ",2,2,1,1,0,2,-2,2,1,1,null,null,0,null,"Hungary"]
["Malasnoticias ",2,2,1,1,1,3,-2,2,1,1,null,null,0,null,"Spain"]
["Prince ",2,3,2,1,0,2,-2,1,1,1,null,null,0,null,"Germany"]
["Jonny_Kanone ",1,1,1,0,3,0,3,0,2,null,1,null,1,null,"Germany"]
["Balder ",1,2,2,0,3,1,2,0,2,null,1,null,1,null,"Viking"]
["J-Ho",1,1,1,0,3,1,2,2,1,null,1,null,1,null,"Finland"]
["Faccko ",1,1,1,0,2,0,2,2,3,null,1,null,1,null,"Viking"]
["SFisher91 ",1,2,2,0,2,1,1,1,1,null,1,null,1,null,"Wales"]
["Barry ",1,0,0,0,1,0,1,0,2,null,1,null,1,null,"Spain"]
["Garrick ",1,2,2,0,1,0,1,2,3,null,1,null,1,null,"Scotland"]
["JohnnyD ",1,1,1,0,2,1,1,1,2,null,1,null,1,null,"Sweden"]
["20Phoenix ",1,2,2,0,2,1,1,3,2,null,1,null,1,null,"Wales"]
["Dirold ",1,1,1,0,2,1,1,2,2,null,1,null,1,null,"Italy"]
["Dark Duke ",1,2,2,0,2,1,1,1,1,null,1,null,1,null,"Spain"]
["Spartako ",1,1,1,0,1,0,1,2,1,null,1,null,1,null,"Italy"]
["Harti ",1,2,2,0,2,1,1,1,0,null,1,null,1,null,"France"]
["Kaltenland ",1,2,2,0,1,1,0,2,2,null,1,null,1,null,"Italy"]
["Matte8 ",1,3,3,0,2,2,0,0,0,null,1,null,1,null,"Italy"]
["cz ",1,2,2,0,3,3,0,2,1,null,1,null,1,null,"Hungary"]
["Justicium ",1,1,1,0,2,2,0,1,2,null,1,null,1,null,"France"]
["Skuld ",1,1,1,0,2,2,0,2,0,null,1,null,1,null,"Sweden"]
["Joemanji ",1,1,1,0,1,1,0,0,3,null,1,null,1,null,"England"]
["Leonek ",1,3,3,0,2,2,0,1,2,null,1,null,1,null,"Poland"]
["DonShula ",1,1,1,0,2,2,0,1,2,null,1,null,1,null,"Scotland"]
["Dekra1979 ",1,1,1,0,1,1,0,2,2,null,1,null,1,null,"Belgium"]
["brocCooli ",1,1,1,0,2,2,0,2,2,null,1,null,1,null,"Viking"]
["Obeliz ",1,2,2,0,3,3,0,0,3,null,1,null,1,null,"Spain"]
["Shawass ",1,2,2,0,1,1,0,2,1,null,1,null,1,null,"Poland"]
["Mewash ",1,1,1,0,0,1,-1,0,2,null,1,null,1,null,"Poland"]
["edheim ",1,2,2,0,1,2,-1,2,3,null,1,null,1,null,"Finland"]
["Favi ",1,2,2,0,1,2,-1,1,0,null,1,null,1,null,"Hungary"]
["BiBi ",1,2,2,0,0,1,-1,3,1,null,1,null,1,null,"France"]
["Wolio ",1,0,0,0,0,1,-1,2,2,null,1,null,1,null,"Hungary"]
["Reszka ",1,1,1,0,1,2,-1,1,0,null,1,null,1,null,"Poland"]
["ratogre ",1,2,2,0,1,2,-1,2,0,null,1,null,1,null,"Finland"]
["sann0638 ",1,2,2,0,1,2,-1,2,2,null,1,null,1,null,"Scotland"]
["Corwin ",1,1,1,0,1,2,-1,2,2,null,1,null,1,null,"Viking"]
["Dragons ",1,2,2,0,1,3,-2,2,2,null,1,null,1,null,"Sweden"]
["Inforthepain ",1,1,1,0,0,2,-2,1,1,null,1,null,1,null,"Sweden"]
["Northernknight ",1,1,1,0,1,3,-2,2,3,null,1,null,1,null,"Wales"]
["Elrik ",1,1,1,0,0,3,-3,1,3,null,1,null,1,null,"Switzerland"]
["Tactel ",0,1,2,-1,2,0,2,3,2,null,null,1,2,null,"Spain"]
["straume ",0,1,2,-1,3,1,2,3,1,null,null,1,2,null,"Norway"]
["JamesEs ",0,0,1,-1,2,0,2,1,1,null,null,1,2,null,"Scotland"]
["Strider84 ",0,2,3,-1,2,0,2,1,1,null,null,1,2,null,"Switzerland"]
["BudWiser ",0,2,3,-1,3,1,2,2,1,null,null,1,2,null,"France"]
["noraal ",0,1,2,-1,3,1,2,2,0,null,null,1,2,null,"Hungary"]
["nonumber ",0,0,1,-1,2,1,1,1,3,null,null,1,2,null,"Wales"]
["Madmatt13 ",0,2,3,-1,2,1,1,0,1,null,null,1,2,null,"Switzerland"]
["GreatWhiteHope ",0,1,2,-1,1,0,1,3,1,null,null,1,2,null,"Norway"]
["Alex05 ",0,1,2,-1,2,1,1,1,1,null,null,1,2,null,"Hungary"]
["Araznaroth ",0,2,3,-1,2,1,1,2,2,null,null,1,2,null,"Belgium"]
["Beppe ",0,1,2,-1,1,0,1,3,2,null,null,1,2,null,"Italy"]
["JJ ",0,0,1,-1,1,1,0,3,2,null,null,1,2,null,"Belgium"]
["Ploppy_McPloppy ",0,1,2,-1,3,3,0,3,2,null,null,1,2,null,"Wales"]
["Phifoe ",0,1,2,-1,1,1,0,1,1,null,null,1,2,null,"Switzerland"]
["MacWitt ",0,2,3,-1,1,1,0,0,3,null,null,1,2,null,"Finland"]
["Podfrey ",0,0,1,-1,1,1,0,0,2,null,null,1,2,null,"England"]
["Valen ",0,0,1,-1,1,1,0,3,1,null,null,1,2,null,"Scotland"]
["JimJimany ",0,1,2,-1,1,1,0,0,1,null,null,1,2,null,"England"]
["Warrior1980 ",0,2,3,-1,0,1,-1,0,1,null,null,1,2,null,"Poland"]
["Skoberget ",0,1,2,-1,1,2,-1,1,3,null,null,1,2,null,"Sweden"]
["Duckwing ",0,1,2,-1,2,3,-1,2,1,null,null,1,2,null,"Viking"]
["Lycos ",0,1,2,-1,2,3,-1,3,1,null,null,1,2,null,"England"]
["BeerBeer ",0,0,1,-1,1,2,-1,1,2,null,null,1,2,null,"Finland"]
["Macabeo ",0,0,1,-1,1,2,-1,0,1,null,null,1,2,null,"Switzerland"]
["gninocker ",0,0,1,-1,0,1,-1,3,1,null,null,1,2,null,"Belgium"]
["kfoged ",0,1,2,-1,1,2,-1,0,3,null,null,1,2,null,"Denmark"]
["MissSweden ",0,1,2,-1,1,2,-1,2,0,null,null,1,2,null,"Denmark"]
["Pidpad ",0,0,1,-1,0,2,-2,2,1,null,null,1,2,null,"Sweden"]
["Juniooor7 ",0,1,2,-1,1,3,-2,1,2,null,null,1,2,null,"Poland"]
["Goss ",0,1,2,-1,0,3,-3,2,0,null,null,1,2,null,"Switzerland"]
["Farina ",0,1,3,-2,3,1,2,1,3,null,null,1,2,null,"Italy"]
["sigu70 ",0,0,2,-2,2,1,1,1,2,null,null,1,2,null,"Switzerland"]
["FrankPedersen ",0,1,3,-2,2,1,1,1,3,null,null,1,2,null,"Norway"]
["andydavo ",0,1,3,-2,2,1,1,1,0,null,null,1,2,null,"Wales"]
["Melisqus ",0,1,3,-2,0,0,0,2,1,null,null,1,2,null,"Sweden"]
["mynock ",0,1,3,-2,1,1,0,0,3,null,null,1,2,null,"Norway"]
["Arioso ",0,1,3,-2,2,2,0,3,2,null,null,1,2,null,"Germany"]
["Joanet ",0,1,3,-2,0,1,-1,1,0,null,null,1,2,null,"Spain"]
["Idroj ",0,0,2,-2,1,2,-1,2,0,null,null,1,2,null,"Spain"]
["Simon_ACP ",0,0,3,-3,2,0,2,2,0,null,null,1,2,null,"France"]
["The_Ref ",0,0,3,-3,2,1,1,1,2,null,null,1,2,null,"Norway"]
["Phoenix11 ",0,0,3,-3,2,2,0,1,1,null,null,1,2,null,"Belgium"]
["zulu ",0,0,3,-3,2,3,-1,3,1,null,null,1,2,null,"Norway"]
["HumptyTrump ",0,0,3,-3,1,3,-2,2,2,null,null,1,2,null,"Scotland"]

{"sheet":"Stunty","index":4,"n_rows":12,"n_cols":16,"rows_kept":12,"cut":false,"hidden":false,"merged":[]}
["Player","Points","TD For","TD Against","TD Net","Cas For","Cas Against","Cas Net","Bonus1","Bonus2","Wins","Draws","Losses","Opp Score","Race","Group"]
["Mufflo ",2,3,1,2,0,0,0,1,0,1,null,null,0,"Ogres","Viking"]
["Domingo ",2,3,1,2,1,3,-2,2,1,1,null,null,0,"Ogres","Poland"]
["JohnnyD ",1,1,1,0,2,1,1,1,2,null,1,null,1,"Halflings","Sweden"]
["Strider84 ",0,2,3,-1,2,0,2,1,1,null,null,1,2,"Goblins","Switzerland"]
["Araznaroth ",0,2,3,-1,2,1,1,2,2,null,null,1,2,"Goblins","Belgium"]
["Phifoe ",0,1,2,-1,1,1,0,1,1,null,null,1,2,"Goblins","Switzerland"]
["JimJimany ",0,1,2,-1,1,1,0,0,1,null,null,1,2,"Goblins","England"]
["Lycos ",0,1,2,-1,2,3,-1,3,1,null,null,1,2,"Ogres","England"]
["andydavo ",0,1,3,-2,2,1,1,1,0,null,null,1,2,"Ogres","Wales"]
["mynock ",0,1,3,-2,1,1,0,0,3,null,null,1,2,"Goblins","Norway"]
["zulu ",0,0,3,-3,2,3,-1,3,1,null,null,1,2,"Goblins","Norway"]

{"sheet":"GroupFixtures","index":5,"n_rows":17,"n_cols":14,"rows_kept":17,"cut":false,"hidden":false,"merged":[]}
["Round: 2",null,"Home","Away",null,null,null,null,null,null,null,null,"Points Before Games"]
["Swaps: 0",null,"Germany","Denmark",null,null,null,null,null,null,null,null,"Germany",213]
[null,null,"Viking","Hungary",null,null,null,null,null,null,null,null,"Denmark",212]
[null,null,"England","Finland",null,null,null,null,null,null,null,null,"Viking",210]
[null,null,"France","Poland",null,null,null,null,null,null,null,null,"Hungary",209]
[null,null,"Italy","Scotland",null,null,null,null,null,null,null,null,"England",209]
[null,null,"Wales","Belgium",null,null,null,null,null,null,null,null,"Finland",209]
[null,null,"Spain","Sweden",null,null,null,null,null,null,null,null,"France",209]
[null,null,"Norway","Switzerland",null,null,null,null,null,null,null,null,"Poland",108]
[null,null,null,null,null,null,null,null,null,null,null,null,"Italy",108]
[null,null,null,null,null,null,null,null,null,null,null,null,"Scotland",7]
[null,null,null,null,null,null,null,null,null,null,null,null,"Wales",7]
[null,null,null,null,null,null,null,null,null,null,null,null,"Belgium",7]
[null,null,null,null,null,null,null,null,null,null,null,null,"Spain",7]
[null,null,null,null,null,null,null,null,null,null,null,null,"Sweden",6]
[null,null,null,null,null,null,null,null,null,null,null,null,"Norway",4]
[null,null,null,null,null,null,null,null,null,null,null,null,"Switzerland",3]

{"sheet":"GroupTable","index":6,"n_rows":17,"n_cols":18,"rows_kept":17,"cut":false,"hidden":false,"merged":[]}
["Group","Points","TD For","TD Against","Net TDs","Cas For","Cas Against","Net Cas","Group Total Bonus1","Group Total Bonus2","Group Wins","Groups Draws","Group Losses","Individual Wins","Individual Draws","Individual Losses","Total Individual Points","Opponent Score"]
["Germany",213,15,10,5,13,10,3,13,7,1,null,null,6,1,1,13,3]
["Denmark",212,18,8,10,9,15,-6,11,12,1,null,null,6,null,2,12,4]
["Viking",210,12,9,3,14,9,5,13,12,1,null,null,3,4,1,10,6]
["Hungary",209,13,10,3,12,11,1,13,7,1,null,null,3,3,2,9,7]
["England",209,11,8,3,10,11,-1,7,13,1,null,null,4,1,3,9,7]
["Finland",209,13,11,2,12,15,-3,11,15,1,null,null,3,3,2,9,7]
["France",209,12,11,1,13,9,4,13,9,1,null,null,3,3,2,9,7]
["Poland",108,15,14,1,6,14,-8,7,12,null,1,null,2,4,2,8,108]
["Italy",108,14,15,-1,14,6,8,10,12,null,1,null,2,4,2,8,108]
["Scotland",7,11,12,-1,9,13,-4,14,15,null,null,1,2,3,3,7,209]
["Wales",7,11,13,-2,15,12,3,13,14,null,null,1,2,3,3,7,209]
["Belgium",7,8,11,-3,11,10,1,18,15,null,null,1,3,1,4,7,209]
["Spain",7,10,13,-3,11,12,-1,9,12,null,null,1,2,3,3,7,209]
["Sweden",6,9,12,-3,9,14,-5,13,13,null,null,1,1,4,3,6,210]
["Norway",4,8,18,-10,15,9,6,14,13,null,null,1,2,null,6,4,212]
["Switzerland",3,10,15,-5,10,13,-3,7,9,null,null,1,1,1,6,3,213]

{"sheet":"Presentation","index":7,"n_rows":183,"n_cols":9,"rows_kept":183,"cut":false,"hidden":false,"merged":[]}
["Round",1]
[]
["Board","Home","Away","Home Team","Away Team","Home TD","Away TD","Home Cas","Away Cas"]
[1,{"$f":"IF(A4=\"\",\"\",OFFSET(INDIRECT(\"Round\"&Round&\"!B1\"),$A4,0))","v":"Harti "},{"$f":"IF(A4=\"\",\"\",OFFSET(INDIRECT(\"Round\"&Round&\"!c1\"),$A4,0))","v":"sann0638 "},{"$f":"IF(A4=\"\",\"\",OFFSET(INDIRECT(\"Round\"&Round&\"!n1\"),$A4,0))","v":"France"},{"$f":"IF(A4=\"\",\"\",OFFSET(INDIRECT(\"Round\"&Round&\"!o1\"),$A4,0))","v":"Scotland"}]
[{"$f":"IF(A4=\"\",A3+1,IF(ROUNDUP(A4/8,0)=A4/8,\"\",A4+1))","v":2},{"$f":"IF(A5=\"\",\"\",OFFSET(INDIRECT(\"Round\"&Round&\"!B1\"),$A5,0))","v":"BiBi "},{"$f":"IF(A5=\"\",\"\",OFFSET(INDIRECT(\"Round\"&Round&\"!c1\"),$A5,0))","v":"Garrick "},{"$f":"IF(A5=\"\",\"\",OFFSET(INDIRECT(\"Round\"&Round&\"!n1\"),$A5,0))","v":"France"},{"$f":"IF(A5=\"\",\"\",OFFSET(INDIRECT(\"Round\"&Round&\"!o1\"),$A5,0))","v":"Scotland"}]
[{"$f":"IF(A5=\"\",A4+1,IF(ROUNDUP(A5/8,0)=A5/8,\"\",A5+1))","v":3},{"$f":"IF(A6=\"\",\"\",OFFSET(INDIRECT(\"Round\"&Round&\"!B1\"),$A6,0))","v":"Gros Nain "},{"$f":"IF(A6=\"\",\"\",OFFSET(INDIRECT(\"Round\"&Round&\"!c1\"),$A6,0))","v":"HumptyTrump "},{"$f":"IF(A6=\"\",\"\",OFFSET(INDIRECT(\"Round\"&Round&\"!n1\"),$A6,0))","v":"France"},{"$f":"IF(A6=\"\",\"\",OFFSET(INDIRECT(\"Round\"&Round&\"!o1\"),$A6,0))","v":"Scotland"}]
[4,{"$f":"IF(A7=\"\",\"\",OFFSET(INDIRECT(\"Round\"&Round&\"!B1\"),$A7,0))","v":"Justicium "},{"$f":"IF(A7=\"\",\"\",OFFSET(INDIRECT(\"Round\"&Round&\"!c1\"),$A7,0))","v":"DonShula "},{"$f":"IF(A7=\"\",\"\",OFFSET(INDIRECT(\"Round\"&Round&\"!n1\"),$A7,0))","v":"France"},{"$f":"IF(A7=\"\",\"\",OFFSET(INDIRECT(\"Round\"&Round&\"!o1\"),$A7,0))","v":"Scotland"}]
[5,{"$f":"IF(A8=\"\",\"\",OFFSET(INDIRECT(\"Round\"&Round&\"!B1\"),$A8,0))","v":"BudWiser "},{"$f":"IF(A8=\"\",\"\",OFFSET(INDIRECT(\"Round\"&Round&\"!c1\"),$A8,0))","v":"Purdindas "},{"$f":"IF(A8=\"\",\"\",OFFSET(INDIRECT(\"Round\"&Round&\"!n1\"),$A8,0))","v":"France"},{"$f":"IF(A8=\"\",\"\",OFFSET(INDIRECT(\"Round\"&Round&\"!o1\"),$A8,0))","v":"Scotland"}]
[6,{"$f":"IF(A9=\"\",\"\",OFFSET(INDIRECT(\"Round\"&Round&\"!B1\"),$A9,0))","v":"Simon_ACP "},{"$f":"IF(A9=\"\",\"\",OFFSET(INDIRECT(\"Round\"&Round&\"!c1\"),$A9,0))","v":"Loki "},{"$f":"IF(A9=\"\",\"\",OFFSET(INDIRECT(\"Round\"&Round&\"!n1\"),$A9,0))","v":"France"},{"$f":"IF(A9=\"\",\"\",OFFSET(INDIRECT(\"Round\"&Round&\"!o1\"),$A9,0))","v":"Scotland"}]
[7,{"$f":"IF(A10=\"\",\"\",OFFSET(INDIRECT(\"Round\"&Round&\"!B1\"),$A10,0))","v":"Bouzzy "},{"$f":"IF(A10=\"\",\"\",OFFSET(INDIRECT(\"Round\"&Round&\"!c1\"),$A10,0))","v":"Valen "},{"$f":"IF(A10=\"\",\"\",OFFSET(INDIRECT(\"Round\"&Round&\"!n1\"),$A10,0))","v":"France"},{"$f":"IF(A10=\"\",\"\",OFFSET(INDIRECT(\"Round\"&Round&\"!o1\"),$A10,0))","v":"Scotland"}]
[8,{"$f":"IF(A11=\"\",\"\",OFFSET(INDIRECT(\"Round\"&Round&\"!B1\"),$A11,0))","v":"Matt le fou "},{"$f":"IF(A11=\"\",\"\",OFFSET(INDIRECT(\"Round\"&Round&\"!c1\"),$A11,0))","v":"JamesEs "},{"$f":"IF(A11=\"\",\"\",OFFSET(INDIRECT(\"Round\"&Round&\"!n1\"),$A11,0))","v":"France"},{"$f":"IF(A11=\"\",\"\",OFFSET(INDIRECT(\"Round\"&Round&\"!o1\"),$A11,0))","v":"Scotland"}]
["",{"$f":"IF(A12=\"\",\"\",OFFSET(INDIRECT(\"Round\"&Round&\"!B1\"),$A12,0))","v":""},{"$f":"IF(A12=\"\",\"\",OFFSET(INDIRECT(\"Round\"&Round&\"!c1\"),$A12,0))","v":""},{"$f":"IF(A12=\"\",\"\",OFFSET(INDIRECT(\"Round\"&Round&\"!n1\"),$A12,0))","v":""},{"$f":"IF(A12=\"\",\"\",OFFSET(INDIRECT(\"Round\"&Round&\"!o1\"),$A12,0))","v":""}]
[9,{"$f":"IF(A13=\"\",\"\",OFFSET(INDIRECT(\"Round\"&Round&\"!B1\"),$A13,0))","v":"Duke_Luthor_Von_Hawkfire "},{"$f":"IF(A13=\"\",\"\",OFFSET(INDIRECT(\"Round\"&Round&\"!c1\"),$A13,0))","v":"Alex05 "},{"$f":"IF(A13=\"\",\"\",OFFSET(INDIRECT(\"Round\"&Round&\"!n1\"),$A13,0))","v":"Spain"},{"$f":"IF(A13=\"\",\"\",OFFSET(INDIRECT(\"Round\"&Round&\"!o1\"),$A13,0))","v":"Hungary"}]
[10,{"$f":"IF(A14=\"\",\"\",OFFSET(INDIRECT(\"Round\"&Round&\"!B1\"),$A14,0))","v":"Malasnoticias "},{"$f":"IF(A14=\"\",\"\",OFFSET(INDIRECT(\"Round\"&Round&\"!c1\"),$A14,0))","v":"noraal "},{"$f":"IF(A14=\"\",\"\",OFFSET(INDIRECT(\"Round\"&Round&\"!n1\"),$A14,0))","v":"Spain"},{"$f":"IF(A14=\"\",\"\",OFFSET(INDIRECT(\"Round\"&Round&\"!o1\"),$A14,0))","v":"Hungary"}]
[11,{"$f":"IF(A15=\"\",\"\",OFFSET(INDIRECT(\"Round\"&Round&\"!B1\"),$A15,0))","v":"Obeliz "},{"$f":"IF(A15=\"\",\"\",OFFSET(INDIRECT(\"Round\"&Round&\"!c1\"),$A15,0))","v":"cz "},{"$f":"IF(A15=\"\",\"\",OFFSET(INDIRECT(\"Round\"&Round&\"!n1\"),$A15,0))","v":"Spain"},{"$f":"IF(A15=\"\",\"\",OFFSET(INDIRECT(\"Round\"&Round&\"!o1\"),$A15,0))","v":"Hungary"}]
[12,{"$f":"IF(A16=\"\",\"\",OFFSET(INDIRECT(\"Round\"&Round&\"!B1\"),$A16,0))","v":"Dark Duke "},{"$f":"IF(A16=\"\",\"\",OFFSET(INDIRECT(\"Round\"&Round&\"!c1\"),$A16,0))","v":"Favi "},{"$f":"IF(A16=\"\",\"\",OFFSET(INDIRECT(\"Round\"&Round&\"!n1\"),$A16,0))","v":"Spain"},{"$f":"IF(A16=\"\",\"\",OFFSET(INDIRECT(\"Round\"&Round&\"!o1\"),$A16,0))","v":"Hungary"}]
[13,{"$f":"IF(A17=\"\",\"\",OFFSET(INDIRECT(\"Round\"&Round&\"!B1\"),$A17,0))","v":"Joanet "},{"$f":"IF(A17=\"\",\"\",OFFSET(INDIRECT(\"Round\"&Round&\"!c1\"),$A17,0))","v":"swifty "},{"$f":"IF(A17=\"\",\"\",OFFSET(INDIRECT(\"Round\"&Round&\"!n1\"),$A17,0))","v":"Spain"},{"$f":"IF(A17=\"\",\"\",OFFSET(INDIRECT(\"Round\"&Round&\"!o1\"),$A17,0))","v":"Hungary"}]
[14,{"$f":"IF(A18=\"\",\"\",OFFSET(INDIRECT(\"Round\"&Round&\"!B1\"),$A18,0))","v":"Tactel "},{"$f":"IF(A18=\"\",\"\",OFFSET(INDIRECT(\"Round\"&Round&\"!c1\"),$A18,0))","v":"Itzla "},{"$f":"IF(A18=\"\",\"\",OFFSET(INDIRECT(\"Round\"&Round&\"!n1\"),$A18,0))","v":"Spain"},{"$f":"IF(A18=\"\",\"\",OFFSET(INDIRECT(\"Round\"&Round&\"!o1\"),$A18,0))","v":"Hungary"}]
[15,{"$f":"IF(A19=\"\",\"\",OFFSET(INDIRECT(\"Round\"&Round&\"!B1\"),$A19,0))","v":"Idroj "},{"$f":"IF(A19=\"\",\"\",OFFSET(INDIRECT(\"Round\"&Round&\"!c1\"),$A19,0))","v":"BlackOrc "},{"$f":"IF(A19=\"\",\"\",OFFSET(INDIRECT(\"Round\"&Round&\"!n1\"),$A19,0))","v":"Spain"},{"$f":"IF(A19=\"\",\"\",OFFSET(INDIRECT(\"Round\"&Round&\"!o1\"),$A19,0))","v":"Hungary"}]
[16,{"$f":"IF(A20=\"\",\"\",OFFSET(INDIRECT(\"Round\"&Round&\"!B1\"),$A20,0))","v":"Barry "},{"$f":"IF(A20=\"\",\"\",OFFSET(INDIRECT(\"Round\"&Round&\"!c1\"),$A20,0))","v":"Wolio "},{"$f":"IF(A20=\"\",\"\",OFFSET(INDIRECT(\"Round\"&Round&\"!n1\"),$A20,0))","v":"Spain"},{"$f":"IF(A20=\"\",\"\",OFFSET(INDIRECT(\"Round\"&Round&\"!o1\"),$A20,0))","v":"Hungary"}]
["",{"$f":"IF(A21=\"\",\"\",OFFSET(INDIRECT(\"Round\"&Round&\"!B1\"),$A21,0))","v":""},{"$f":"IF(A21=\"\",\"\",OFFSET(INDIRECT(\"Round\"&Round&\"!c1\"),$A21,0))","v":""},{"$f":"IF(A21=\"\",\"\",OFFSET(INDIRECT(\"Round\"&Round&\"!n1\"),$A21,0))","v":""},{"$f":"IF(A21=\"\",\"\",OFFSET(INDIRECT(\"Round\"&Round&\"!o1\"),$A21,0))","v":""}]
[17,{"$f":"IF(A22=\"\",\"\",OFFSET(INDIRECT(\"Round\"&Round&\"!B1\"),$A22,0))","v":"Candlejack "},{"$f":"IF(A22=\"\",\"\",OFFSET(INDIRECT(\"Round\"&Round&\"!c1\"),$A22,0))","v":"sigu70 "},{"$f":"IF(A22=\"\",\"\",OFFSET(INDIRECT(\"Round\"&Round&\"!n1\"),$A22,0))","v":"Germany"},{"$f":"IF(A22=\"\",\"\",OFFSET(INDIRECT(\"Round\"&Round&\"!o1\"),$A22,0))","v":"Switzerland"}]
[18,{"$f":"IF(A23=\"\",\"\",OFFSET(INDIRECT(\"Round\"&Round&\"!B1\"),$A23,0))","v":"Prince "},{"$f":"IF(A23=\"\",\"\",OFFSET(INDIRECT(\"Round\"&Round&\"!c1\"),$A23,0))","v":"Strider84 "},{"$f":"IF(A23=\"\",\"\",OFFSET(INDIRECT(\"Round\"&Round&\"!n1\"),$A23,0))","v":"Germany"},{"$f":"IF(A23=\"\",\"\",OFFSET(INDIRECT(\"Round\"&Round&\"!o1\"),$A23,0))","v":"Switzerland"}]
[19,{"$f":"IF(A24=\"\",\"\",OFFSET(INDIRECT(\"Round\"&Round&\"!B1\"),$A24,0))","v":"DocMaxx "},{"$f":"IF(A24=\"\",\"\",OFFSET(INDIRECT(\"Round\"&Round&\"!c1\"),$A24,0))","v":"Macabeo "},{"$f":"IF(A24=\"\",\"\",OFFSET(INDIRECT(\"Round\"&Round&\"!n1\"),$A24,0))","v":"Germany"},{"$f":"IF(A24=\"\",\"\",OFFSET(INDIRECT(\"Round\"&Round&\"!o1\"),$A24,0))","v":"Switzerland"}]
[20,{"$f":"IF(A25=\"\",\"\",OFFSET(INDIRECT(\"Round\"&Round&\"!B1\"),$A25,0))","v":"Gaunab "},{"$f":"IF(A25=\"\",\"\",OFFSET(INDIRECT(\"Round\"&Round&\"!c1\"),$A25,0))","v":"Madmatt13 "},{"$f":"IF(A25=\"\",\"\",OFFSET(INDIRECT(\"Round\"&Round&\"!n1\"),$A25,0))","v":"Germany"},{"$f":"IF(A25=\"\",\"\",OFFSET(INDIRECT(\"Round\"&Round&\"!o1\"),$A25,0))","v":"Switzerland"}]
[21,{"$f":"IF(A26=\"\",\"\",OFFSET(INDIRECT(\"Round\"&Round&\"!B1\"),$A26,0))","v":"RoterSternHochdahl"},{"$f":"IF(A26=\"\",\"\",OFFSET(INDIRECT(\"Round\"&Round&\"!c1\"),$A26,0))","v":"Phifoe "},{"$f":"IF(A26=\"\",\"\",OFFSET(INDIRECT(\"Round\"&Round&\"!n1\"),$A26,0))","v":"Germany"},{"$f":"IF(A26=\"\",\"\",OFFSET(INDIRECT(\"Round\"&Round&\"!o1\"),$A26,0))","v":"Switzerland"}]
[22,{"$f":"IF(A27=\"\",\"\",OFFSET(INDIRECT(\"Round\"&Round&\"!B1\"),$A27,0))","v":"Arioso "},{"$f":"IF(A27=\"\",\"\",OFFSET(INDIRECT(\"Round\"&Round&\"!c1\"),$A27,0))","v":"Jokaero "},{"$f":"IF(A27=\"\",\"\",OFFSET(INDIRECT(\"Round\"&Round&\"!n1\"),$A27,0))","v":"Germany"},{"$f":"IF(A27=\"\",\"\",OFFSET(INDIRECT(\"Round\"&Round&\"!o1\"),$A27,0))","v":"Switzerland"}]
[23,{"$f":"IF(A28=\"\",\"\",OFFSET(INDIRECT(\"Round\"&Round&\"!B1\"),$A28,0))","v":"Muadib "},{"$f":"IF(A28=\"\",\"\",OFFSET(INDIRECT(\"Round\"&Round&\"!c1\"),$A28,0))","v":"Goss "},{"$f":"IF(A28=\"\",\"\",OFFSET(INDIRECT(\"Round\"&Round&\"!n1\"),$A28,0))","v":"Germany"},{"$f":"IF(A28=\"\",\"\",OFFSET(INDIRECT(\"Round\"&Round&\"!o1\"),$A28,0))","v":"Switzerland"}]
[24,{"$f":"IF(A29=\"\",\"\",OFFSET(INDIRECT(\"Round\"&Round&\"!B1\"),$A29,0))","v":"Jonny_Kanone "},{"$f":"IF(A29=\"\",\"\",OFFSET(INDIRECT(\"Round\"&Round&\"!c1\"),$A29,0))","v":"Elrik "},{"$f":"IF(A29=\"\",\"\",OFFSET(INDIRECT(\"Round\"&Round&\"!n1\"),$A29,0))","v":"Germany"},{"$f":"IF(A29=\"\",\"\",OFFSET(INDIRECT(\"Round\"&Round&\"!o1\"),$A29,0))","v":"Switzerland"}]
["",{"$f":"IF(A30=\"\",\"\",OFFSET(INDIRECT(\"Round\"&Round&\"!B1\"),$A30,0))","v":""},{"$f":"IF(A30=\"\",\"\",OFFSET(INDIRECT(\"Round\"&Round&\"!c1\"),$A30,0))","v":""},{"$f":"IF(A30=\"\",\"\",OFFSET(INDIRECT(\"Round\"&Round&\"!n1\"),$A30,0))","v":""},{"$f":"IF(A30=\"\",\"\",OFFSET(INDIRECT(\"Round\"&Round&\"!o1\"),$A30,0))","v":""}]
[25,{"$f":"IF(A31=\"\",\"\",OFFSET(INDIRECT(\"Round\"&Round&\"!B1\"),$A31,0))","v":"Pellevin "},{"$f":"IF(A31=\"\",\"\",OFFSET(INDIRECT(\"Round\"&Round&\"!c1\"),$A31,0))","v":"Duckwing "},{"$f":"IF(A31=\"\",\"\",OFFSET(INDIRECT(\"Round\"&Round&\"!n1\"),$A31,0))","v":"Sweden"},{"$f":"IF(A31=\"\",\"\",OFFSET(INDIRECT(\"Round\"&Round&\"!o1\"),$A31,0))","v":"Viking"}]
[26,{"$f":"IF(A32=\"\",\"\",OFFSET(INDIRECT(\"Round\"&Round&\"!B1\"),$A32,0))","v":"JohnnyD "},{"$f":"IF(A32=\"\",\"\",OFFSET(INDIRECT(\"Round\"&Round&\"!c1\"),$A32,0))","v":"Corwin "},{"$f":"IF(A32=\"\",\"\",OFFSET(INDIRECT(\"Round\"&Round&\"!n1\"),$A32,0))","v":"Sweden"},{"$f":"IF(A32=\"\",\"\",OFFSET(INDIRECT(\"Round\"&Round&\"!o1\"),$A32,0))","v":"Viking"}]
[27,{"$f":"IF(A33=\"\",\"\",OFFSET(INDIRECT(\"Round\"&Round&\"!B1\"),$A33,0))","v":"Skoberget "},{"$f":"IF(A33=\"\",\"\",OFFSET(INDIRECT(\"Round\"&Round&\"!c1\"),$A33,0))","v":"Bernuz "},{"$f":"IF(A33=\"\",\"\",OFFSET(INDIRECT(\"Round\"&Round&\"!n1\"),$A33,0))","v":"Sweden"},{"$f":"IF(A33=\"\",\"\",OFFSET(INDIRECT(\"Round\"&Round&\"!o1\"),$A33,0))","v":"Viking"}]
[{"$f":"IF(A33=\"\",A32+1,IF(ROUNDUP(A33/8,0)=A33/8,\"\",A33+1))","v":28},{"$f":"IF(A34=\"\",\"\",OFFSET(INDIRECT(\"Round\"&Round&\"!B1\"),$A34,0))","v":"Inforthepain "},{"$f":"IF(A34=\"\",\"\",OFFSET(INDIRECT(\"Round\"&Round&\"!c1\"),$A34,0))","v":"Faccko "},{"$f":"IF(A34=\"\",\"\",OFFSET(INDIRECT(\"Round\"&Round&\"!n1\"),$A34,0))","v":"Sweden"},{"$f":"IF(A34=\"\",\"\",OFFSET(INDIRECT(\"Round\"&Round&\"!o1\"),$A34,0))","v":"Viking"}]
[29,{"$f":"IF(A35=\"\",\"\",OFFSET(INDIRECT(\"Round\"&Round&\"!B1\"),$A35,0))","v":"Skuld "},{"$f":"IF(A35=\"\",\"\",OFFSET(INDIRECT(\"Round\"&Round&\"!c1\"),$A35,0))","v":"brocCooli "},{"$f":"IF(A35=\"\",\"\",OFFSET(INDIRECT(\"Round\"&Round&\"!n1\"),$A35,0))","v":"Sweden"},{"$f":"IF(A35=\"\",\"\",OFFSET(INDIRECT(\"Round\"&Round&\"!o1\"),$A35,0))","v":"Viking"}]
[30,{"$f":"IF(A36=\"\",\"\",OFFSET(INDIRECT(\"Round\"&Round&\"!B1\"),$A36,0))","v":"Melisqus "},{"$f":"IF(A36=\"\",\"\",OFFSET(INDIRECT(\"Round\"&Round&\"!c1\"),$A36,0))","v":"Mufflo "},{"$f":"IF(A36=\"\",\"\",OFFSET(INDIRECT(\"Round\"&Round&\"!n1\"),$A36,0))","v":"Sweden"},{"$f":"IF(A36=\"\",\"\",OFFSET(INDIRECT(\"Round\"&Round&\"!o1\"),$A36,0))","v":"Viking"}]
[31,{"$f":"IF(A37=\"\",\"\",OFFSET(INDIRECT(\"Round\"&Round&\"!B1\"),$A37,0))","v":"Pidpad "},{"$f":"IF(A37=\"\",\"\",OFFSET(INDIRECT(\"Round\"&Round&\"!c1\"),$A37,0))","v":"Purrelito "},{"$f":"IF(A37=\"\",\"\",OFFSET(INDIRECT(\"Round\"&Round&\"!n1\"),$A37,0))","v":"Sweden"},{"$f":"IF(A37=\"\",\"\",OFFSET(INDIRECT(\"Round\"&Round&\"!o1\"),$A37,0))","v":"Viking"}]
[32,{"$f":"IF(A38=\"\",\"\",OFFSET(INDIRECT(\"Round\"&Round&\"!B1\"),$A38,0))","v":"Dragons "},{"$f":"IF(A38=\"\",\"\",OFFSET(INDIRECT(\"Round\"&Round&\"!c1\"),$A38,0))","v":"Balder "},{"$f":"IF(A38=\"\",\"\",OFFSET(INDIRECT(\"Round\"&Round&\"!n1\"),$A38,0))","v":"Sweden"},{"$f":"IF(A38=\"\",\"\",OFFSET(INDIRECT(\"Round\"&Round&\"!o1\"),$A38,0))","v":"Viking"}]
["",{"$f":"IF(A39=\"\",\"\",OFFSET(INDIRECT(\"Round\"&Round&\"!B1\"),$A39,0))","v":""},{"$f":"IF(A39=\"\",\"\",OFFSET(INDIRECT(\"Round\"&Round&\"!c1\"),$A39,0))","v":""},{"$f":"IF(A39=\"\",\"\",OFFSET(INDIRECT(\"Round\"&Round&\"!n1\"),$A39,0))","v":""},{"$f":"IF(A39=\"\",\"\",OFFSET(INDIRECT(\"Round\"&Round&\"!o1\"),$A39,0))","v":""}]
[33,{"$f":"IF(A40=\"\",\"\",OFFSET(INDIRECT(\"Round\"&Round&\"!B1\"),$A40,0))","v":"JJ "},{"$f":"IF(A40=\"\",\"\",OFFSET(INDIRECT(\"Round\"&Round&\"!c1\"),$A40,0))","v":"Wilzif "},{"$f":"IF(A40=\"\",\"\",OFFSET(INDIRECT(\"Round\"&Round&\"!n1\"),$A40,0))","v":"Belgium"},{"$f":"IF(A40=\"\",\"\",OFFSET(INDIRECT(\"Round\"&Round&\"!o1\"),$A40,0))","v":"England"}]
[34,{"$f":"IF(A41=\"\",\"\",OFFSET(INDIRECT(\"Round\"&Round&\"!B1\"),$A41,0))","v":"Driesfield "},{"$f":"IF(A41=\"\",\"\",OFFSET(INDIRECT(\"Round\"&Round&\"!c1\"),$A41,0))","v":"JimJimany "},{"$f":"IF(A41=\"\",\"\",OFFSET(INDIRECT(\"Round\"&Round&\"!n1\"),$A41,0))","v":"Belgium"},{"$f":"IF(A41=\"\",\"\",OFFSET(INDIRECT(\"Round\"&Round&\"!o1\"),$A41,0))","v":"England"}]
[35,{"$f":"IF(A42=\"\",\"\",OFFSET(INDIRECT(\"Round\"&Round&\"!B1\"),$A42,0))","v":"gninocker "},{"$f":"IF(A42=\"\",\"\",OFFSET(INDIRECT(\"Round\"&Round&\"!c1\"),$A42,0))","v":"PurpleGoo "},{"$f":"IF(A42=\"\",\"\",OFFSET(INDIRECT(\"Round\"&Round&\"!n1\"),$A42,0))","v":"Belgium"},{"$f":"IF(A42=\"\",\"\",OFFSET(INDIRECT(\"Round\"&Round&\"!o1\"),$A42,0))","v":"England"}]
[36,{"$f":"IF(A43=\"\",\"\",OFFSET(INDIRECT(\"Round\"&Round&\"!B1\"),$A43,0))","v":"Dekra1979 "},{"$f":"IF(A43=\"\",\"\",OFFSET(INDIRECT(\"Round\"&Round&\"!c1\"),$A43,0))","v":"Joemanji "},{"$f":"IF(A43=\"\",\"\",OFFSET(INDIRECT(\"Round\"&Round&\"!n1\"),$A43,0))","v":"Belgium"},{"$f":"IF(A43=\"\",\"\",OFFSET(INDIRECT(\"Round\"&Round&\"!o1\"),$A43,0))","v":"England"}]
[37,{"$f":"IF(A44=\"\",\"\",OFFSET(INDIRECT(\"Round\"&Round&\"!B1\"),$A44,0))","v":"Araznaroth "},{"$f":"IF(A44=\"\",\"\",OFFSET(INDIRECT(\"Round\"&Round&\"!c1\"),$A44,0))","v":"Mubo "},{"$f":"IF(A44=\"\",\"\",OFFSET(INDIRECT(\"Round\"&Round&\"!n1\"),$A44,0))","v":"Belgium"},{"$f":"IF(A44=\"\",\"\",OFFSET(INDIRECT(\"Round\"&Round&\"!o1\"),$A44,0))","v":"England"}]
[38,{"$f":"IF(A45=\"\",\"\",OFFSET(INDIRECT(\"Round\"&Round&\"!B1\"),$A45,0))","v":"Woete "},{"$f":"IF(A45=\"\",\"\",OFFSET(INDIRECT(\"Round\"&Round&\"!c1\"),$A45,0))","v":"Podfrey "},{"$f":"IF(A45=\"\",\"\",OFFSET(INDIRECT(\"Round\"&Round&\"!n1\"),$A45,0))","v":"Belgium"},{"$f":"IF(A45=\"\",\"\",OFFSET(INDIRECT(\"Round\"&Round&\"!o1\"),$A45,0))","v":"England"}]
[39,{"$f":"IF(A46=\"\",\"\",OFFSET(INDIRECT(\"Round\"&Round&\"!B1\"),$A46,0))","v":"Malodoror "},{"$f":"IF(A46=\"\",\"\",OFFSET(INDIRECT(\"Round\"&Round&\"!c1\"),$A46,0))","v":"Lycos "},{"$f":"IF(A46=\"\",\"\",OFFSET(INDIRECT(\"Round\"&Round&\"!n1\"),$A46,0))","v":"Belgium"},{"$f":"IF(A46=\"\",\"\",OFFSET(INDIRECT(\"Round\"&Round&\"!o1\"),$A46,0))","v":"England"}]
[40,{"$f":"IF(A47=\"\",\"\",OFFSET(INDIRECT(\"Round\"&Round&\"!B1\"),$A47,0))","v":"Phoenix11 "},{"$f":"IF(A47=\"\",\"\",OFFSET(INDIRECT(\"Round\"&Round&\"!c1\"),$A47,0))","v":"Geggster "},{"$f":"IF(A47=\"\",\"\",OFFSET(INDIRECT(\"Round\"&Round&\"!n1\"),$A47,0))","v":"Belgium"},{"$f":"IF(A47=\"\",\"\",OFFSET(INDIRECT(\"Round\"&Round&\"!o1\"),$A47,0))","v":"England"}]
["",{"$f":"IF(A48=\"\",\"\",OFFSET(INDIRECT(\"Round\"&Round&\"!B1\"),$A48,0))","v":""},{"$f":"IF(A48=\"\",\"\",OFFSET(INDIRECT(\"Round\"&Round&\"!c1\"),$A48,0))","v":""},{"$f":"IF(A48=\"\",\"\",OFFSET(INDIRECT(\"Round\"&Round&\"!n1\"),$A48,0))","v":""},{"$f":"IF(A48=\"\",\"\",OFFSET(INDIRECT(\"Round\"&Round&\"!o1\"),$A48,0))","v":""}]
[41,{"$f":"IF(A49=\"\",\"\",OFFSET(INDIRECT(\"Round\"&Round&\"!B1\"),$A49,0))","v":"Tripleskull "},{"$f":"IF(A49=\"\",\"\",OFFSET(INDIRECT(\"Round\"&Round&\"!c1\"),$A49,0))","v":"GreatWhiteHope "},{"$f":"IF(A49=\"\",\"\",OFFSET(INDIRECT(\"Round\"&Round&\"!n1\"),$A49,0))","v":"Denmark"},{"$f":"IF(A49=\"\",\"\",OFFSET(INDIRECT(\"Round\"&Round&\"!o1\"),$A49,0))","v":"Norway"}]
[42,{"$f":"IF(A50=\"\",\"\",OFFSET(INDIRECT(\"Round\"&Round&\"!B1\"),$A50,0))","v":"Niebling "},{"$f":"IF(A50=\"\",\"\",OFFSET(INDIRECT(\"Round\"&Round&\"!c1\"),$A50,0))","v":"FrankPedersen "},{"$f":"IF(A50=\"\",\"\",OFFSET(INDIRECT(\"Round\"&Round&\"!n1\"),$A50,0))","v":"Denmark"},{"$f":"IF(A50=\"\",\"\",OFFSET(INDIRECT(\"Round\"&Round&\"!o1\"),$A50,0))","v":"Norway"}]
[43,{"$f":"IF(A51=\"\",\"\",OFFSET(INDIRECT(\"Round\"&Round&\"!B1\"),$A51,0))","v":"Jaqra "},{"$f":"IF(A51=\"\",\"\",OFFSET(INDIRECT(\"Round\"&Round&\"!c1\"),$A51,0))","v":"straume "},{"$f":"IF(A51=\"\",\"\",OFFSET(INDIRECT(\"Round\"&Round&\"!n1\"),$A51,0))","v":"Denmark"},{"$f":"IF(A51=\"\",\"\",OFFSET(INDIRECT(\"Round\"&Round&\"!o1\"),$A51,0))","v":"Norway"}]
[44,{"$f":"IF(A52=\"\",\"\",OFFSET(INDIRECT(\"Round\"&Round&\"!B1\"),$A52,0))","v":"Tank "},{"$f":"IF(A52=\"\",\"\",OFFSET(INDIRECT(\"Round\"&Round&\"!c1\"),$A52,0))","v":"mynock "},{"$f":"IF(A52=\"\",\"\",OFFSET(INDIRECT(\"Round\"&Round&\"!n1\"),$A52,0))","v":"Denmark"},{"$f":"IF(A52=\"\",\"\",OFFSET(INDIRECT(\"Round\"&Round&\"!o1\"),$A52,0))","v":"Norway"}]
[45,{"$f":"IF(A53=\"\",\"\",OFFSET(INDIRECT(\"Round\"&Round&\"!B1\"),$A53,0))","v":"MissSweden "},{"$f":"IF(A53=\"\",\"\",OFFSET(INDIRECT(\"Round\"&Round&\"!c1\"),$A53,0))","v":"Endalos "},{"$f":"IF(A53=\"\",\"\",OFFSET(INDIRECT(\"Round\"&Round&\"!n1\"),$A53,0))","v":"Denmark"},{"$f":"IF(A53=\"\",\"\",OFFSET(INDIRECT(\"Round\"&Round&\"!o1\"),$A53,0))","v":"Norway"}]
[46,{"$f":"IF(A54=\"\",\"\",OFFSET(INDIRECT(\"Round\"&Round&\"!B1\"),$A54,0))","v":"kfoged "},{"$f":"IF(A54=\"\",\"\",OFFSET(INDIRECT(\"Round\"&Round&\"!c1\"),$A54,0))","v":"bothun "},{"$f":"IF(A54=\"\",\"\",OFFSET(INDIRECT(\"Round\"&Round&\"!n1\"),$A54,0))","v":"Denmark"},{"$f":"IF(A54=\"\",\"\",OFFSET(INDIRECT(\"Round\"&Round&\"!o1\"),$A54,0))","v":"Norway"}]
[47,{"$f":"IF(A55=\"\",\"\",OFFSET(INDIRECT(\"Round\"&Round&\"!B1\"),$A55,0))","v":"Topper "},{"$f":"IF(A55=\"\",\"\",OFFSET(INDIRECT(\"Round\"&Round&\"!c1\"),$A55,0))","v":"zulu "},{"$f":"IF(A55=\"\",\"\",OFFSET(INDIRECT(\"Round\"&Round&\"!n1\"),$A55,0))","v":"Denmark"},{"$f":"IF(A55=\"\",\"\",OFFSET(INDIRECT(\"Round\"&Round&\"!o1\"),$A55,0))","v":"Norway"}]
[48,{"$f":"IF(A56=\"\",\"\",OFFSET(INDIRECT(\"Round\"&Round&\"!B1\"),$A56,0))","v":"SpecialOne "},{"$f":"IF(A56=\"\",\"\",OFFSET(INDIRECT(\"Round\"&Round&\"!c1\"),$A56,0))","v":"The_Ref "},{"$f":"IF(A56=\"\",\"\",OFFSET(INDIRECT(\"Round\"&Round&\"!n1\"),$A56,0))","v":"Denmark"},{"$f":"IF(A56=\"\",\"\",OFFSET(INDIRECT(\"Round\"&Round&\"!o1\"),$A56,0))","v":"Norway"}]
["",{"$f":"IF(A57=\"\",\"\",OFFSET(INDIRECT(\"Round\"&Round&\"!B1\"),$A57,0))","v":""},{"$f":"IF(A57=\"\",\"\",OFFSET(INDIRECT(\"Round\"&Round&\"!c1\"),$A57,0))","v":""},{"$f":"IF(A57=\"\",\"\",OFFSET(INDIRECT(\"Round\"&Round&\"!n1\"),$A57,0))","v":""},{"$f":"IF(A57=\"\",\"\",OFFSET(INDIRECT(\"Round\"&Round&\"!o1\"),$A57,0))","v":""}]
[49,{"$f":"IF(A58=\"\",\"\",OFFSET(INDIRECT(\"Round\"&Round&\"!B1\"),$A58,0))","v":"Beppe "},{"$f":"IF(A58=\"\",\"\",OFFSET(INDIRECT(\"Round\"&Round&\"!c1\"),$A58,0))","v":"Slimaq "},{"$f":"IF(A58=\"\",\"\",OFFSET(INDIRECT(\"Round\"&Round&\"!n1\"),$A58,0))","v":"Italy"},{"$f":"IF(A58=\"\",\"\",OFFSET(INDIRECT(\"Round\"&Round&\"!o1\"),$A58,0))","v":"Poland"}]
[50,{"$f":"IF(A59=\"\",\"\",OFFSET(INDIRECT(\"Round\"&Round&\"!B1\"),$A59,0))","v":"Farina "},{"$f":"IF(A59=\"\",\"\",OFFSET(INDIRECT(\"Round\"&Round&\"!c1\"),$A59,0))","v":"Domingo "},{"$f":"IF(A59=\"\",\"\",OFFSET(INDIRECT(\"Round\"&Round&\"!n1\"),$A59,0))","v":"Italy"},{"$f":"IF(A59=\"\",\"\",OFFSET(INDIRECT(\"Round\"&Round&\"!o1\"),$A59,0))","v":"Poland"}]
[51,{"$f":"IF(A60=\"\",\"\",OFFSET(INDIRECT(\"Round\"&Round&\"!B1\"),$A60,0))","v":"Spartako "},{"$f":"IF(A60=\"\",\"\",OFFSET(INDIRECT(\"Round\"&Round&\"!c1\"),$A60,0))","v":"Mewash "},{"$f":"IF(A60=\"\",\"\",OFFSET(INDIRECT(\"Round\"&Round&\"!n1\"),$A60,0))","v":"Italy"},{"$f":"IF(A60=\"\",\"\",OFFSET(INDIRECT(\"Round\"&Round&\"!o1\"),$A60,0))","v":"Poland"}]
[52,{"$f":"IF(A61=\"\",\"\",OFFSET(INDIRECT(\"Round\"&Round&\"!B1\"),$A61,0))","v":"Verrinho "},{"$f":"IF(A61=\"\",\"\",OFFSET(INDIRECT(\"Round\"&Round&\"!c1\"),$A61,0))","v":"Juniooor7 "},{"$f":"IF(A61=\"\",\"\",OFFSET(INDIRECT(\"Round\"&Round&\"!n1\"),$A61,0))","v":"Italy"},{"$f":"IF(A61=\"\",\"\",OFFSET(INDIRECT(\"Round\"&Round&\"!o1\"),$A61,0))","v":"Poland"}]
[53,{"$f":"IF(A62=\"\",\"\",OFFSET(INDIRECT(\"Round\"&Round&\"!B1\"),$A62,0))","v":"Liam "},{"$f":"IF(A62=\"\",\"\",OFFSET(INDIRECT(\"Round\"&Round&\"!c1\"),$A62,0))","v":"Warrior1980 "},{"$f":"IF(A62=\"\",\"\",OFFSET(INDIRECT(\"Round\"&Round&\"!n1\"),$A62,0))","v":"Italy"},{"$f":"IF(A62=\"\",\"\",OFFSET(INDIRECT(\"Round\"&Round&\"!o1\"),$A62,0))","v":"Poland"}]
[54,{"$f":"IF(A63=\"\",\"\",OFFSET(INDIRECT(\"Round\"&Round&\"!B1\"),$A63,0))","v":"Matte8 "},{"$f":"IF(A63=\"\",\"\",OFFSET(INDIRECT(\"Round\"&Round&\"!c1\"),$A63,0))","v":"Leonek "},{"$f":"IF(A63=\"\",\"\",OFFSET(INDIRECT(\"Round\"&Round&\"!n1\"),$A63,0))","v":"Italy"},{"$f":"IF(A63=\"\",\"\",OFFSET(INDIRECT(\"Round\"&Round&\"!o1\"),$A63,0))","v":"Poland"}]
[55,{"$f":"IF(A64=\"\",\"\",OFFSET(INDIRECT(\"Round\"&Round&\"!B1\"),$A64,0))","v":"Kaltenland "},{"$f":"IF(A64=\"\",\"\",OFFSET(INDIRECT(\"Round\"&Round&\"!c1\"),$A64,0))","v":"Shawass "},{"$f":"IF(A64=\"\",\"\",OFFSET(INDIRECT(\"Round\"&Round&\"!n1\"),$A64,0))","v":"Italy"},{"$f":"IF(A64=\"\",\"\",OFFSET(INDIRECT(\"Round\"&Round&\"!o1\"),$A64,0))","v":"Poland"}]
[56,{"$f":"IF(A65=\"\",\"\",OFFSET(INDIRECT(\"Round\"&Round&\"!B1\"),$A65,0))","v":"Dirold "},{"$f":"IF(A65=\"\",\"\",OFFSET(INDIRECT(\"Round\"&Round&\"!c1\"),$A65,0))","v":"Reszka "},{"$f":"IF(A65=\"\",\"\",OFFSET(INDIRECT(\"Round\"&Round&\"!n1\"),$A65,0))","v":"Italy"},{"$f":"IF(A65=\"\",\"\",OFFSET(INDIRECT(\"Round\"&Round&\"!o1\"),$A65,0))","v":"Poland"}]
["",{"$f":"IF(A66=\"\",\"\",OFFSET(INDIRECT(\"Round\"&Round&\"!B1\"),$A66,0))","v":""},{"$f":"IF(A66=\"\",\"\",OFFSET(INDIRECT(\"Round\"&Round&\"!c1\"),$A66,0))","v":""},{"$f":"IF(A66=\"\",\"\",OFFSET(INDIRECT(\"Round\"&Round&\"!n1\"),$A66,0))","v":""},{"$f":"IF(A66=\"\",\"\",OFFSET(INDIRECT(\"Round\"&Round&\"!o1\"),$A66,0))","v":""}]
[57,{"$f":"IF(A67=\"\",\"\",OFFSET(INDIRECT(\"Round\"&Round&\"!B1\"),$A67,0))","v":"jopotzuki "},{"$f":"IF(A67=\"\",\"\",OFFSET(INDIRECT(\"Round\"&Round&\"!c1\"),$A67,0))","v":"Ploppy_McPloppy "},{"$f":"IF(A67=\"\",\"\",OFFSET(INDIRECT(\"Round\"&Round&\"!n1\"),$A67,0))","v":"Finland"},{"$f":"IF(A67=\"\",\"\",OFFSET(INDIRECT(\"Round\"&Round&\"!o1\"),$A67,0))","v":"Wales"}]
[58,{"$f":"IF(A68=\"\",\"\",OFFSET(INDIRECT(\"Round\"&Round&\"!B1\"),$A68,0))","v":"valkohukka "},{"$f":"IF(A68=\"\",\"\",OFFSET(INDIRECT(\"Round\"&Round&\"!c1\"),$A68,0))","v":"andydavo "},{"$f":"IF(A68=\"\",\"\",OFFSET(INDIRECT(\"Round\"&Round&\"!n1\"),$A68,0))","v":"Finland"},{"$f":"IF(A68=\"\",\"\",OFFSET(INDIRECT(\"Round\"&Round&\"!o1\"),$A68,0))","v":"Wales"}]
[59,{"$f":"IF(A69=\"\",\"\",OFFSET(INDIRECT(\"Round\"&Round&\"!B1\"),$A69,0))","v":"BeerBeer "},{"$f":"IF(A69=\"\",\"\",OFFSET(INDIRECT(\"Round\"&Round&\"!c1\"),$A69,0))","v":"MadeofWelsh "},{"$f":"IF(A69=\"\",\"\",OFFSET(INDIRECT(\"Round\"&Round&\"!n1\"),$A69,0))","v":"Finland"},{"$f":"IF(A69=\"\",\"\",OFFSET(INDIRECT(\"Round\"&Round&\"!o1\"),$A69,0))","v":"Wales"}]
[60,{"$f":"IF(A70=\"\",\"\",OFFSET(INDIRECT(\"Round\"&Round&\"!B1\"),$A70,0))","v":"J-Ho"},{"$f":"IF(A70=\"\",\"\",OFFSET(INDIRECT(\"Round\"&Round&\"!c1\"),$A70,0))","v":"Northernknight "},{"$f":"IF(A70=\"\",\"\",OFFSET(INDIRECT(\"Round\"&Round&\"!n1\"),$A70,0))","v":"Finland"},{"$f":"IF(A70=\"\",\"\",OFFSET(INDIRECT(\"Round\"&Round&\"!o1\"),$A70,0))","v":"Wales"}]
[61,{"$f":"IF(A71=\"\",\"\",OFFSET(INDIRECT(\"Round\"&Round&\"!B1\"),$A71,0))","v":"edheim "},{"$f":"IF(A71=\"\",\"\",OFFSET(INDIRECT(\"Round\"&Round&\"!c1\"),$A71,0))","v":"SFisher91 "},{"$f":"IF(A71=\"\",\"\",OFFSET(INDIRECT(\"Round\"&Round&\"!n1\"),$A71,0))","v":"Finland"},{"$f":"IF(A71=\"\",\"\",OFFSET(INDIRECT(\"Round\"&Round&\"!o1\"),$A71,0))","v":"Wales"}]
[62,{"$f":"IF(A72=\"\",\"\",OFFSET(INDIRECT(\"Round\"&Round&\"!B1\"),$A72,0))","v":"MacWitt "},{"$f":"IF(A72=\"\",\"\",OFFSET(INDIRECT(\"Round\"&Round&\"!c1\"),$A72,0))","v":"Dionysian "},{"$f":"IF(A72=\"\",\"\",OFFSET(INDIRECT(\"Round\"&Round&\"!n1\"),$A72,0))","v":"Finland"},{"$f":"IF(A72=\"\",\"\",OFFSET(INDIRECT(\"Round\"&Round&\"!o1\"),$A72,0))","v":"Wales"}]
[63,{"$f":"IF(A73=\"\",\"\",OFFSET(INDIRECT(\"Round\"&Round&\"!B1\"),$A73,0))","v":"ratogre "},{"$f":"IF(A73=\"\",\"\",OFFSET(INDIRECT(\"Round\"&Round&\"!c1\"),$A73,0))","v":"20Phoenix "},{"$f":"IF(A73=\"\",\"\",OFFSET(INDIRECT(\"Round\"&Round&\"!n1\"),$A73,0))","v":"Finland"},{"$f":"IF(A73=\"\",\"\",OFFSET(INDIRECT(\"Round\"&Round&\"!o1\"),$A73,0))","v":"Wales"}]
[64,{"$f":"IF(A74=\"\",\"\",OFFSET(INDIRECT(\"Round\"&Round&\"!B1\"),$A74,0))","v":"Harza "},{"$f":"IF(A74=\"\",\"\",OFFSET(INDIRECT(\"Round\"&Round&\"!c1\"),$A74,0))","v":"nonumber "},{"$f":"IF(A74=\"\",\"\",OFFSET(INDIRECT(\"Round\"&Round&\"!n1\"),$A74,0))","v":"Finland"},{"$f":"IF(A74=\"\",\"\",OFFSET(INDIRECT(\"Round\"&Round&\"!o1\"),$A74,0))","v":"Wales"}]
["",{"$f":"IF(A75=\"\",\"\",OFFSET(INDIRECT(\"Round\"&Round&\"!B1\"),$A75,0))","v":""},{"$f":"IF(A75=\"\",\"\",OFFSET(INDIRECT(\"Round\"&Round&\"!c1\"),$A75,0))","v":""},{"$f":"IF(A75=\"\",\"\",OFFSET(INDIRECT(\"Round\"&Round&\"!n1\"),$A75,0))","v":""},{"$f":"IF(A75=\"\",\"\",OFFSET(INDIRECT(\"Round\"&Round&\"!o1\"),$A75,0))","v":""}]
[65,{"$f":"IF(A76=\"\",\"\",OFFSET(INDIRECT(\"Round\"&Round&\"!B1\"),$A76,0))","v":0},{"$f":"IF(A76=\"\",\"\",OFFSET(INDIRECT(\"Round\"&Round&\"!c1\"),$A76,0))","v":0},{"$f":"IF(A76=\"\",\"\",OFFSET(INDIRECT(\"Round\"&Round&\"!n1\"),$A76,0))","v":0},{"$f":"IF(A76=\"\",\"\",OFFSET(INDIRECT(\"Round\"&Round&\"!o1\"),$A76,0))","v":0}]
[66,{"$f":"IF(A77=\"\",\"\",OFFSET(INDIRECT(\"Round\"&Round&\"!B1\"),$A77,0))","v":0},{"$f":"IF(A77=\"\",\"\",OFFSET(INDIRECT(\"Round\"&Round&\"!c1\"),$A77,0))","v":0},{"$f":"IF(A77=\"\",\"\",OFFSET(INDIRECT(\"Round\"&Round&\"!n1\"),$A77,0))","v":0},{"$f":"IF(A77=\"\",\"\",OFFSET(INDIRECT(\"Round\"&Round&\"!o1\"),$A77,0))","v":0}]
[67,{"$f":"IF(A78=\"\",\"\",OFFSET(INDIRECT(\"Round\"&Round&\"!B1\"),$A78,0))","v":0},{"$f":"IF(A78=\"\",\"\",OFFSET(INDIRECT(\"Round\"&Round&\"!c1\"),$A78,0))","v":0},{"$f":"IF(A78=\"\",\"\",OFFSET(INDIRECT(\"Round\"&Round&\"!n1\"),$A78,0))","v":0},{"$f":"IF(A78=\"\",\"\",OFFSET(INDIRECT(\"Round\"&Round&\"!o1\"),$A78,0))","v":0}]
[68,{"$f":"IF(A79=\"\",\"\",OFFSET(INDIRECT(\"Round\"&Round&\"!B1\"),$A79,0))","v":0},{"$f":"IF(A79=\"\",\"\",OFFSET(INDIRECT(\"Round\"&Round&\"!c1\"),$A79,0))","v":0},{"$f":"IF(A79=\"\",\"\",OFFSET(INDIRECT(\"Round\"&Round&\"!n1\"),$A79,0))","v":0},{"$f":"IF(A79=\"\",\"\",OFFSET(INDIRECT(\"Round\"&Round&\"!o1\"),$A79,0))","v":0}]
[69,{"$f":"IF(A80=\"\",\"\",OFFSET(INDIRECT(\"Round\"&Round&\"!B1\"),$A80,0))","v":0},{"$f":"IF(A80=\"\",\"\",OFFSET(INDIRECT(\"Round\"&Round&\"!c1\"),$A80,0))","v":0},{"$f":"IF(A80=\"\",\"\",OFFSET(INDIRECT(\"Round\"&Round&\"!n1\"),$A80,0))","v":0},{"$f":"IF(A80=\"\",\"\",OFFSET(INDIRECT(\"Round\"&Round&\"!o1\"),$A80,0))","v":0}]
[70,{"$f":"IF(A81=\"\",\"\",OFFSET(INDIRECT(\"Round\"&Round&\"!B1\"),$A81,0))","v":0},{"$f":"IF(A81=\"\",\"\",OFFSET(INDIRECT(\"Round\"&Round&\"!c1\"),$A81,0))","v":0},{"$f":"IF(A81=\"\",\"\",OFFSET(INDIRECT(\"Round\"&Round&\"!n1\"),$A81,0))","v":0},{"$f":"IF(A81=\"\",\"\",OFFSET(INDIRECT(\"Round\"&Round&\"!o1\"),$A81,0))","v":0}]
[71,{"$f":"IF(A82=\"\",\"\",OFFSET(INDIRECT(\"Round\"&Round&\"!B1\"),$A82,0))","v":0},{"$f":"IF(A82=\"\",\"\",OFFSET(INDIRECT(\"Round\"&Round&\"!c1\"),$A82,0))","v":0},{"$f":"IF(A82=\"\",\"\",OFFSET(INDIRECT(\"Round\"&Round&\"!n1\"),$A82,0))","v":0},{"$f":"IF(A82=\"\",\"\",OFFSET(INDIRECT(\"Round\"&Round&\"!o1\"),$A82,0))","v":0}]
[72,{"$f":"IF(A83=\"\",\"\",OFFSET(INDIRECT(\"Round\"&Round&\"!B1\"),$A83,0))","v":0},{"$f":"IF(A83=\"\",\"\",OFFSET(INDIRECT(\"Round\"&Round&\"!c1\"),$A83,0))","v":0},{"$f":"IF(A83=\"\",\"\",OFFSET(INDIRECT(\"Round\"&Round&\"!n1\"),$A83,0))","v":0},{"$f":"IF(A83=\"\",\"\",OFFSET(INDIRECT(\"Round\"&Round&\"!o1\"),$A83,0))","v":0}]
["",{"$f":"IF(A84=\"\",\"\",OFFSET(INDIRECT(\"Round\"&Round&\"!B1\"),$A84,0))","v":""},{"$f":"IF(A84=\"\",\"\",OFFSET(INDIRECT(\"Round\"&Round&\"!c1\"),$A84,0))","v":""},{"$f":"IF(A84=\"\",\"\",OFFSET(INDIRECT(\"Round\"&Round&\"!n1\"),$A84,0))","v":""},{"$f":"IF(A84=\"\",\"\",OFFSET(INDIRECT(\"Round\"&Round&\"!o1\"),$A84,0))","v":""}]
[73,{"$f":"IF(A85=\"\",\"\",OFFSET(INDIRECT(\"Round\"&Round&\"!B1\"),$A85,0))","v":0},{"$f":"IF(A85=\"\",\"\",OFFSET(INDIRECT(\"Round\"&Round&\"!c1\"),$A85,0))","v":0},{"$f":"IF(A85=\"\",\"\",OFFSET(INDIRECT(\"Round\"&Round&\"!n1\"),$A85,0))","v":0},{"$f":"IF(A85=\"\",\"\",OFFSET(INDIRECT(\"Round\"&Round&\"!o1\"),$A85,0))","v":0}]
[74,{"$f":"IF(A86=\"\",\"\",OFFSET(INDIRECT(\"Round\"&Round&\"!B1\"),$A86,0))","v":0},{"$f":"IF(A86=\"\",\"\",OFFSET(INDIRECT(\"Round\"&Round&\"!c1\"),$A86,0))","v":0},{"$f":"IF(A86=\"\",\"\",OFFSET(INDIRECT(\"Round\"&Round&\"!n1\"),$A86,0))","v":0},{"$f":"IF(A86=\"\",\"\",OFFSET(INDIRECT(\"Round\"&Round&\"!o1\"),$A86,0))","v":0}]
[75,{"$f":"IF(A87=\"\",\"\",OFFSET(INDIRECT(\"Round\"&Round&\"!B1\"),$A87,0))","v":0},{"$f":"IF(A87=\"\",\"\",OFFSET(INDIRECT(\"Round\"&Round&\"!c1\"),$A87,0))","v":0},{"$f":"IF(A87=\"\",\"\",OFFSET(INDIRECT(\"Round\"&Round&\"!n1\"),$A87,0))","v":0},{"$f":"IF(A87=\"\",\"\",OFFSET(INDIRECT(\"Round\"&Round&\"!o1\"),$A87,0))","v":0}]
[76,{"$f":"IF(A88=\"\",\"\",OFFSET(INDIRECT(\"Round\"&Round&\"!B1\"),$A88,0))","v":0},{"$f":"IF(A88=\"\",\"\",OFFSET(INDIRECT(\"Round\"&Round&\"!c1\"),$A88,0))","v":0},{"$f":"IF(A88=\"\",\"\",OFFSET(INDIRECT(\"Round\"&Round&\"!n1\"),$A88,0))","v":0},{"$f":"IF(A88=\"\",\"\",OFFSET(INDIRECT(\"Round\"&Round&\"!o1\"),$A88,0))","v":0}]
[77,{"$f":"IF(A89=\"\",\"\",OFFSET(INDIRECT(\"Round\"&Round&\"!B1\"),$A89,0))","v":0},{"$f":"IF(A89=\"\",\"\",OFFSET(INDIRECT(\"Round\"&Round&\"!c1\"),$A89,0))","v":0},{"$f":"IF(A89=\"\",\"\",OFFSET(INDIRECT(\"Round\"&Round&\"!n1\"),$A89,0))","v":0},{"$f":"IF(A89=\"\",\"\",OFFSET(INDIRECT(\"Round\"&Round&\"!o1\"),$A89,0))","v":0}]
[78,{"$f":"IF(A90=\"\",\"\",OFFSET(INDIRECT(\"Round\"&Round&\"!B1\"),$A90,0))","v":0},{"$f":"IF(A90=\"\",\"\",OFFSET(INDIRECT(\"Round\"&Round&\"!c1\"),$A90,0))","v":0},{"$f":"IF(A90=\"\",\"\",OFFSET(INDIRECT(\"Round\"&Round&\"!n1\"),$A90,0))","v":0},{"$f":"IF(A90=\"\",\"\",OFFSET(INDIRECT(\"Round\"&Round&\"!o1\"),$A90,0))","v":0}]
[79,{"$f":"IF(A91=\"\",\"\",OFFSET(INDIRECT(\"Round\"&Round&\"!B1\"),$A91,0))","v":0},{"$f":"IF(A91=\"\",\"\",OFFSET(INDIRECT(\"Round\"&Round&\"!c1\"),$A91,0))","v":0},{"$f":"IF(A91=\"\",\"\",OFFSET(INDIRECT(\"Round\"&Round&\"!n1\"),$A91,0))","v":0},{"$f":"IF(A91=\"\",\"\",OFFSET(INDIRECT(\"Round\"&Round&\"!o1\"),$A91,0))","v":0}]
[80,{"$f":"IF(A92=\"\",\"\",OFFSET(INDIRECT(\"Round\"&Round&\"!B1\"),$A92,0))","v":0},{"$f":"IF(A92=\"\",\"\",OFFSET(INDIRECT(\"Round\"&Round&\"!c1\"),$A92,0))","v":0},{"$f":"IF(A92=\"\",\"\",OFFSET(INDIRECT(\"Round\"&Round&\"!n1\"),$A92,0))","v":0},{"$f":"IF(A92=\"\",\"\",OFFSET(INDIRECT(\"Round\"&Round&\"!o1\"),$A92,0))","v":0}]
["",{"$f":"IF(A93=\"\",\"\",OFFSET(INDIRECT(\"Round\"&Round&\"!B1\"),$A93,0))","v":""},{"$f":"IF(A93=\"\",\"\",OFFSET(INDIRECT(\"Round\"&Round&\"!c1\"),$A93,0))","v":""},{"$f":"IF(A93=\"\",\"\",OFFSET(INDIRECT(\"Round\"&Round&\"!n1\"),$A93,0))","v":""},{"$f":"IF(A93=\"\",\"\",OFFSET(INDIRECT(\"Round\"&Round&\"!o1\"),$A93,0))","v":""}]
[81,{"$f":"IF(A94=\"\",\"\",OFFSET(INDIRECT(\"Round\"&Round&\"!B1\"),$A94,0))","v":0},{"$f":"IF(A94=\"\",\"\",OFFSET(INDIRECT(\"Round\"&Round&\"!c1\"),$A94,0))","v":0},{"$f":"IF(A94=\"\",\"\",OFFSET(INDIRECT(\"Round\"&Round&\"!n1\"),$A94,0))","v":0},{"$f":"IF(A94=\"\",\"\",OFFSET(INDIRECT(\"Round\"&Round&\"!o1\"),$A94,0))","v":0}]
[82,{"$f":"IF(A95=\"\",\"\",OFFSET(INDIRECT(\"Round\"&Round&\"!B1\"),$A95,0))","v":0},{"$f":"IF(A95=\"\",\"\",OFFSET(INDIRECT(\"Round\"&Round&\"!c1\"),$A95,0))","v":0},{"$f":"IF(A95=\"\",\"\",OFFSET(INDIRECT(\"Round\"&Round&\"!n1\"),$A95,0))","v":0},{"$f":"IF(A95=\"\",\"\",OFFSET(INDIRECT(\"Round\"&Round&\"!o1\"),$A95,0))","v":0}]
[83,{"$f":"IF(A96=\"\",\"\",OFFSET(INDIRECT(\"Round\"&Round&\"!B1\"),$A96,0))","v":0},{"$f":"IF(A96=\"\",\"\",OFFSET(INDIRECT(\"Round\"&Round&\"!c1\"),$A96,0))","v":0},{"$f":"IF(A96=\"\",\"\",OFFSET(INDIRECT(\"Round\"&Round&\"!n1\"),$A96,0))","v":0},{"$f":"IF(A96=\"\",\"\",OFFSET(INDIRECT(\"Round\"&Round&\"!o1\"),$A96,0))","v":0}]
[84,{"$f":"IF(A97=\"\",\"\",OFFSET(INDIRECT(\"Round\"&Round&\"!B1\"),$A97,0))","v":0},{"$f":"IF(A97=\"\",\"\",OFFSET(INDIRECT(\"Round\"&Round&\"!c1\"),$A97,0))","v":0},{"$f":"IF(A97=\"\",\"\",OFFSET(INDIRECT(\"Round\"&Round&\"!n1\"),$A97,0))","v":0},{"$f":"IF(A97=\"\",\"\",OFFSET(INDIRECT(\"Round\"&Round&\"!o1\"),$A97,0))","v":0}]
[{"$f":"IF(A97=\"\",A96+1,IF(ROUNDUP(A97/8,0)=A97/8,\"\",A97+1))","v":85},{"$f":"IF(A98=\"\",\"\",OFFSET(INDIRECT(\"Round\"&Round&\"!B1\"),$A98,0))","v":0},{"$f":"IF(A98=\"\",\"\",OFFSET(INDIRECT(\"Round\"&Round&\"!c1\"),$A98,0))","v":0},{"$f":"IF(A98=\"\",\"\",OFFSET(INDIRECT(\"Round\"&Round&\"!n1\"),$A98,0))","v":0},{"$f":"IF(A98=\"\",\"\",OFFSET(INDIRECT(\"Round\"&Round&\"!o1\"),$A98,0))","v":0}]
[86,{"$f":"IF(A99=\"\",\"\",OFFSET(INDIRECT(\"Round\"&Round&\"!B1\"),$A99,0))","v":0},{"$f":"IF(A99=\"\",\"\",OFFSET(INDIRECT(\"Round\"&Round&\"!c1\"),$A99,0))","v":0},{"$f":"IF(A99=\"\",\"\",OFFSET(INDIRECT(\"Round\"&Round&\"!n1\"),$A99,0))","v":0},{"$f":"IF(A99=\"\",\"\",OFFSET(INDIRECT(\"Round\"&Round&\"!o1\"),$A99,0))","v":0}]
[87,{"$f":"IF(A100=\"\",\"\",OFFSET(INDIRECT(\"Round\"&Round&\"!B1\"),$A100,0))","v":0},{"$f":"IF(A100=\"\",\"\",OFFSET(INDIRECT(\"Round\"&Round&\"!c1\"),$A100,0))","v":0},{"$f":"IF(A100=\"\",\"\",OFFSET(INDIRECT(\"Round\"&Round&\"!n1\"),$A100,0))","v":0},{"$f":"IF(A100=\"\",\"\",OFFSET(INDIRECT(\"Round\"&Round&\"!o1\"),$A100,0))","v":0}]
[88,{"$f":"IF(A101=\"\",\"\",OFFSET(INDIRECT(\"Round\"&Round&\"!B1\"),$A101,0))","v":0},{"$f":"IF(A101=\"\",\"\",OFFSET(INDIRECT(\"Round\"&Round&\"!c1\"),$A101,0))","v":0},{"$f":"IF(A101=\"\",\"\",OFFSET(INDIRECT(\"Round\"&Round&\"!n1\"),$A101,0))","v":0},{"$f":"IF(A101=\"\",\"\",OFFSET(INDIRECT(\"Round\"&Round&\"!o1\"),$A101,0))","v":0}]
["",{"$f":"IF(A102=\"\",\"\",OFFSET(INDIRECT(\"Round\"&Round&\"!B1\"),$A102,0))","v":""},{"$f":"IF(A102=\"\",\"\",OFFSET(INDIRECT(\"Round\"&Round&\"!c1\"),$A102,0))","v":""},{"$f":"IF(A102=\"\",\"\",OFFSET(INDIRECT(\"Round\"&Round&\"!n1\"),$A102,0))","v":""},{"$f":"IF(A102=\"\",\"\",OFFSET(INDIRECT(\"Round\"&Round&\"!o1\"),$A102,0))","v":""}]
[89,{"$f":"IF(A103=\"\",\"\",OFFSET(INDIRECT(\"Round\"&Round&\"!B1\"),$A103,0))","v":0},{"$f":"IF(A103=\"\",\"\",OFFSET(INDIRECT(\"Round\"&Round&\"!c1\"),$A103,0))","v":0},{"$f":"IF(A103=\"\",\"\",OFFSET(INDIRECT(\"Round\"&Round&\"!n1\"),$A103,0))","v":0},{"$f":"IF(A103=\"\",\"\",OFFSET(INDIRECT(\"Round\"&Round&\"!o1\"),$A103,0))","v":0}]
[90,{"$f":"IF(A104=\"\",\"\",OFFSET(INDIRECT(\"Round\"&Round&\"!B1\"),$A104,0))","v":0},{"$f":"IF(A104=\"\",\"\",OFFSET(INDIRECT(\"Round\"&Round&\"!c1\"),$A104,0))","v":0},{"$f":"IF(A104=\"\",\"\",OFFSET(INDIRECT(\"Round\"&Round&\"!n1\"),$A104,0))","v":0},{"$f":"IF(A104=\"\",\"\",OFFSET(INDIRECT(\"Round\"&Round&\"!o1\"),$A104,0))","v":0}]
[91,{"$f":"IF(A105=\"\",\"\",OFFSET(INDIRECT(\"Round\"&Round&\"!B1\"),$A105,0))","v":0},{"$f":"IF(A105=\"\",\"\",OFFSET(INDIRECT(\"Round\"&Round&\"!c1\"),$A105,0))","v":0},{"$f":"IF(A105=\"\",\"\",OFFSET(INDIRECT(\"Round\"&Round&\"!n1\"),$A105,0))","v":0},{"$f":"IF(A105=\"\",\"\",OFFSET(INDIRECT(\"Round\"&Round&\"!o1\"),$A105,0))","v":0}]
[92,{"$f":"IF(A106=\"\",\"\",OFFSET(INDIRECT(\"Round\"&Round&\"!B1\"),$A106,0))","v":0},{"$f":"IF(A106=\"\",\"\",OFFSET(INDIRECT(\"Round\"&Round&\"!c1\"),$A106,0))","v":0},{"$f":"IF(A106=\"\",\"\",OFFSET(INDIRECT(\"Round\"&Round&\"!n1\"),$A106,0))","v":0},{"$f":"IF(A106=\"\",\"\",OFFSET(INDIRECT(\"Round\"&Round&\"!o1\"),$A106,0))","v":0}]
[93,{"$f":"IF(A107=\"\",\"\",OFFSET(INDIRECT(\"Round\"&Round&\"!B1\"),$A107,0))","v":0},{"$f":"IF(A107=\"\",\"\",OFFSET(INDIRECT(\"Round\"&Round&\"!c1\"),$A107,0))","v":0},{"$f":"IF(A107=\"\",\"\",OFFSET(INDIRECT(\"Round\"&Round&\"!n1\"),$A107,0))","v":0},{"$f":"IF(A107=\"\",\"\",OFFSET(INDIRECT(\"Round\"&Round&\"!o1\"),$A107,0))","v":0}]
[94,{"$f":"IF(A108=\"\",\"\",OFFSET(INDIRECT(\"Round\"&Round&\"!B1\"),$A108,0))","v":0},{"$f":"IF(A108=\"\",\"\",OFFSET(INDIRECT(\"Round\"&Round&\"!c1\"),$A108,0))","v":0},{"$f":"IF(A108=\"\",\"\",OFFSET(INDIRECT(\"Round\"&Round&\"!n1\"),$A108,0))","v":0},{"$f":"IF(A108=\"\",\"\",OFFSET(INDIRECT(\"Round\"&Round&\"!o1\"),$A108,0))","v":0}]
[95,{"$f":"IF(A109=\"\",\"\",OFFSET(INDIRECT(\"Round\"&Round&\"!B1\"),$A109,0))","v":0},{"$f":"IF(A109=\"\",\"\",OFFSET(INDIRECT(\"Round\"&Round&\"!c1\"),$A109,0))","v":0},{"$f":"IF(A109=\"\",\"\",OFFSET(INDIRECT(\"Round\"&Round&\"!n1\"),$A109,0))","v":0},{"$f":"IF(A109=\"\",\"\",OFFSET(INDIRECT(\"Round\"&Round&\"!o1\"),$A109,0))","v":0}]
[96,{"$f":"IF(A110=\"\",\"\",OFFSET(INDIRECT(\"Round\"&Round&\"!B1\"),$A110,0))","v":0},{"$f":"IF(A110=\"\",\"\",OFFSET(INDIRECT(\"Round\"&Round&\"!c1\"),$A110,0))","v":0},{"$f":"IF(A110=\"\",\"\",OFFSET(INDIRECT(\"Round\"&Round&\"!n1\"),$A110,0))","v":0},{"$f":"IF(A110=\"\",\"\",OFFSET(INDIRECT(\"Round\"&Round&\"!o1\"),$A110,0))","v":0}]
["",{"$f":"IF(A111=\"\",\"\",OFFSET(INDIRECT(\"Round\"&Round&\"!B1\"),$A111,0))","v":""},{"$f":"IF(A111=\"\",\"\",OFFSET(INDIRECT(\"Round\"&Round&\"!c1\"),$A111,0))","v":""},{"$f":"IF(A111=\"\",\"\",OFFSET(INDIRECT(\"Round\"&Round&\"!n1\"),$A111,0))","v":""},{"$f":"IF(A111=\"\",\"\",OFFSET(INDIRECT(\"Round\"&Round&\"!o1\"),$A111,0))","v":""}]
[97,{"$f":"IF(A112=\"\",\"\",OFFSET(INDIRECT(\"Round\"&Round&\"!B1\"),$A112,0))","v":0},{"$f":"IF(A112=\"\",\"\",OFFSET(INDIRECT(\"Round\"&Round&\"!c1\"),$A112,0))","v":0},{"$f":"IF(A112=\"\",\"\",OFFSET(INDIRECT(\"Round\"&Round&\"!n1\"),$A112,0))","v":0},{"$f":"IF(A112=\"\",\"\",OFFSET(INDIRECT(\"Round\"&Round&\"!o1\"),$A112,0))","v":0}]
[98,{"$f":"IF(A113=\"\",\"\",OFFSET(INDIRECT(\"Round\"&Round&\"!B1\"),$A113,0))","v":0},{"$f":"IF(A113=\"\",\"\",OFFSET(INDIRECT(\"Round\"&Round&\"!c1\"),$A113,0))","v":0},{"$f":"IF(A113=\"\",\"\",OFFSET(INDIRECT(\"Round\"&Round&\"!n1\"),$A113,0))","v":0},{"$f":"IF(A113=\"\",\"\",OFFSET(INDIRECT(\"Round\"&Round&\"!o1\"),$A113,0))","v":0}]
[99,{"$f":"IF(A114=\"\",\"\",OFFSET(INDIRECT(\"Round\"&Round&\"!B1\"),$A114,0))","v":0},{"$f":"IF(A114=\"\",\"\",OFFSET(INDIRECT(\"Round\"&Round&\"!c1\"),$A114,0))","v":0},{"$f":"IF(A114=\"\",\"\",OFFSET(INDIRECT(\"Round\"&Round&\"!n1\"),$A114,0))","v":0},{"$f":"IF(A114=\"\",\"\",OFFSET(INDIRECT(\"Round\"&Round&\"!o1\"),$A114,0))","v":0}]
[100,{"$f":"IF(A115=\"\",\"\",OFFSET(INDIRECT(\"Round\"&Round&\"!B1\"),$A115,0))","v":0},{"$f":"IF(A115=\"\",\"\",OFFSET(INDIRECT(\"Round\"&Round&\"!c1\"),$A115,0))","v":0},{"$f":"IF(A115=\"\",\"\",OFFSET(INDIRECT(\"Round\"&Round&\"!n1\"),$A115,0))","v":0},{"$f":"IF(A115=\"\",\"\",OFFSET(INDIRECT(\"Round\"&Round&\"!o1\"),$A115,0))","v":0}]
[101,{"$f":"IF(A116=\"\",\"\",OFFSET(INDIRECT(\"Round\"&Round&\"!B1\"),$A116,0))","v":0},{"$f":"IF(A116=\"\",\"\",OFFSET(INDIRECT(\"Round\"&Round&\"!c1\"),$A116,0))","v":0},{"$f":"IF(A116=\"\",\"\",OFFSET(INDIRECT(\"Round\"&Round&\"!n1\"),$A116,0))","v":0},{"$f":"IF(A116=\"\",\"\",OFFSET(INDIRECT(\"Round\"&Round&\"!o1\"),$A116,0))","v":0}]
[102,{"$f":"IF(A117=\"\",\"\",OFFSET(INDIRECT(\"Round\"&Round&\"!B1\"),$A117,0))","v":0},{"$f":"IF(A117=\"\",\"\",OFFSET(INDIRECT(\"Round\"&Round&\"!c1\"),$A117,0))","v":0},{"$f":"IF(A117=\"\",\"\",OFFSET(INDIRECT(\"Round\"&Round&\"!n1\"),$A117,0))","v":0},{"$f":"IF(A117=\"\",\"\",OFFSET(INDIRECT(\"Round\"&Round&\"!o1\"),$A117,0))","v":0}]
[103,{"$f":"IF(A118=\"\",\"\",OFFSET(INDIRECT(\"Round\"&Round&\"!B1\"),$A118,0))","v":0},{"$f":"IF(A118=\"\",\"\",OFFSET(INDIRECT(\"Round\"&Round&\"!c1\"),$A118,0))","v":0},{"$f":"IF(A118=\"\",\"\",OFFSET(INDIRECT(\"Round\"&Round&\"!n1\"),$A118,0))","v":0},{"$f":"IF(A118=\"\",\"\",OFFSET(INDIRECT(\"Round\"&Round&\"!o1\"),$A118,0))","v":0}]
[104,{"$f":"IF(A119=\"\",\"\",OFFSET(INDIRECT(\"Round\"&Round&\"!B1\"),$A119,0))","v":0},{"$f":"IF(A119=\"\",\"\",OFFSET(INDIRECT(\"Round\"&Round&\"!c1\"),$A119,0))","v":0},{"$f":"IF(A119=\"\",\"\",OFFSET(INDIRECT(\"Round\"&Round&\"!n1\"),$A119,0))","v":0},{"$f":"IF(A119=\"\",\"\",OFFSET(INDIRECT(\"Round\"&Round&\"!o1\"),$A119,0))","v":0}]
["",{"$f":"IF(A120=\"\",\"\",OFFSET(INDIRECT(\"Round\"&Round&\"!B1\"),$A120,0))","v":""},{"$f":"IF(A120=\"\",\"\",OFFSET(INDIRECT(\"Round\"&Round&\"!c1\"),$A120,0))","v":""},{"$f":"IF(A120=\"\",\"\",OFFSET(INDIRECT(\"Round\"&Round&\"!n1\"),$A120,0))","v":""},{"$f":"IF(A120=\"\",\"\",OFFSET(INDIRECT(\"Round\"&Round&\"!o1\"),$A120,0))","v":""}]
[105,{"$f":"IF(A121=\"\",\"\",OFFSET(INDIRECT(\"Round\"&Round&\"!B1\"),$A121,0))","v":0},{"$f":"IF(A121=\"\",\"\",OFFSET(INDIRECT(\"Round\"&Round&\"!c1\"),$A121,0))","v":0},{"$f":"IF(A121=\"\",\"\",OFFSET(INDIRECT(\"Round\"&Round&\"!n1\"),$A121,0))","v":0},{"$f":"IF(A121=\"\",\"\",OFFSET(INDIRECT(\"Round\"&Round&\"!o1\"),$A121,0))","v":0}]
[106,{"$f":"IF(A122=\"\",\"\",OFFSET(INDIRECT(\"Round\"&Round&\"!B1\"),$A122,0))","v":0},{"$f":"IF(A122=\"\",\"\",OFFSET(INDIRECT(\"Round\"&Round&\"!c1\"),$A122,0))","v":0},{"$f":"IF(A122=\"\",\"\",OFFSET(INDIRECT(\"Round\"&Round&\"!n1\"),$A122,0))","v":0},{"$f":"IF(A122=\"\",\"\",OFFSET(INDIRECT(\"Round\"&Round&\"!o1\"),$A122,0))","v":0}]
[107,{"$f":"IF(A123=\"\",\"\",OFFSET(INDIRECT(\"Round\"&Round&\"!B1\"),$A123,0))","v":0},{"$f":"IF(A123=\"\",\"\",OFFSET(INDIRECT(\"Round\"&Round&\"!c1\"),$A123,0))","v":0},{"$f":"IF(A123=\"\",\"\",OFFSET(INDIRECT(\"Round\"&Round&\"!n1\"),$A123,0))","v":0},{"$f":"IF(A123=\"\",\"\",OFFSET(INDIRECT(\"Round\"&Round&\"!o1\"),$A123,0))","v":0}]
[108,{"$f":"IF(A124=\"\",\"\",OFFSET(INDIRECT(\"Round\"&Round&\"!B1\"),$A124,0))","v":0},{"$f":"IF(A124=\"\",\"\",OFFSET(INDIRECT(\"Round\"&Round&\"!c1\"),$A124,0))","v":0},{"$f":"IF(A124=\"\",\"\",OFFSET(INDIRECT(\"Round\"&Round&\"!n1\"),$A124,0))","v":0},{"$f":"IF(A124=\"\",\"\",OFFSET(INDIRECT(\"Round\"&Round&\"!o1\"),$A124,0))","v":0}]
[109,{"$f":"IF(A125=\"\",\"\",OFFSET(INDIRECT(\"Round\"&Round&\"!B1\"),$A125,0))","v":0},{"$f":"IF(A125=\"\",\"\",OFFSET(INDIRECT(\"Round\"&Round&\"!c1\"),$A125,0))","v":0},{"$f":"IF(A125=\"\",\"\",OFFSET(INDIRECT(\"Round\"&Round&\"!n1\"),$A125,0))","v":0},{"$f":"IF(A125=\"\",\"\",OFFSET(INDIRECT(\"Round\"&Round&\"!o1\"),$A125,0))","v":0}]
[110,{"$f":"IF(A126=\"\",\"\",OFFSET(INDIRECT(\"Round\"&Round&\"!B1\"),$A126,0))","v":0},{"$f":"IF(A126=\"\",\"\",OFFSET(INDIRECT(\"Round\"&Round&\"!c1\"),$A126,0))","v":0},{"$f":"IF(A126=\"\",\"\",OFFSET(INDIRECT(\"Round\"&Round&\"!n1\"),$A126,0))","v":0},{"$f":"IF(A126=\"\",\"\",OFFSET(INDIRECT(\"Round\"&Round&\"!o1\"),$A126,0))","v":0}]
[111,{"$f":"IF(A127=\"\",\"\",OFFSET(INDIRECT(\"Round\"&Round&\"!B1\"),$A127,0))","v":0},{"$f":"IF(A127=\"\",\"\",OFFSET(INDIRECT(\"Round\"&Round&\"!c1\"),$A127,0))","v":0},{"$f":"IF(A127=\"\",\"\",OFFSET(INDIRECT(\"Round\"&Round&\"!n1\"),$A127,0))","v":0},{"$f":"IF(A127=\"\",\"\",OFFSET(INDIRECT(\"Round\"&Round&\"!o1\"),$A127,0))","v":0}]
[112,{"$f":"IF(A128=\"\",\"\",OFFSET(INDIRECT(\"Round\"&Round&\"!B1\"),$A128,0))","v":0},{"$f":"IF(A128=\"\",\"\",OFFSET(INDIRECT(\"Round\"&Round&\"!c1\"),$A128,0))","v":0},{"$f":"IF(A128=\"\",\"\",OFFSET(INDIRECT(\"Round\"&Round&\"!n1\"),$A128,0))","v":0},{"$f":"IF(A128=\"\",\"\",OFFSET(INDIRECT(\"Round\"&Round&\"!o1\"),$A128,0))","v":0}]
["",{"$f":"IF(A129=\"\",\"\",OFFSET(INDIRECT(\"Round\"&Round&\"!B1\"),$A129,0))","v":""},{"$f":"IF(A129=\"\",\"\",OFFSET(INDIRECT(\"Round\"&Round&\"!c1\"),$A129,0))","v":""},{"$f":"IF(A129=\"\",\"\",OFFSET(INDIRECT(\"Round\"&Round&\"!n1\"),$A129,0))","v":""},{"$f":"IF(A129=\"\",\"\",OFFSET(INDIRECT(\"Round\"&Round&\"!o1\"),$A129,0))","v":""}]
[113,{"$f":"IF(A130=\"\",\"\",OFFSET(INDIRECT(\"Round\"&Round&\"!B1\"),$A130,0))","v":0},{"$f":"IF(A130=\"\",\"\",OFFSET(INDIRECT(\"Round\"&Round&\"!c1\"),$A130,0))","v":0},{"$f":"IF(A130=\"\",\"\",OFFSET(INDIRECT(\"Round\"&Round&\"!n1\"),$A130,0))","v":0},{"$f":"IF(A130=\"\",\"\",OFFSET(INDIRECT(\"Round\"&Round&\"!o1\"),$A130,0))","v":0}]
[114,{"$f":"IF(A131=\"\",\"\",OFFSET(INDIRECT(\"Round\"&Round&\"!B1\"),$A131,0))","v":0},{"$f":"IF(A131=\"\",\"\",OFFSET(INDIRECT(\"Round\"&Round&\"!c1\"),$A131,0))","v":0},{"$f":"IF(A131=\"\",\"\",OFFSET(INDIRECT(\"Round\"&Round&\"!n1\"),$A131,0))","v":0},{"$f":"IF(A131=\"\",\"\",OFFSET(INDIRECT(\"Round\"&Round&\"!o1\"),$A131,0))","v":0}]
[115,{"$f":"IF(A132=\"\",\"\",OFFSET(INDIRECT(\"Round\"&Round&\"!B1\"),$A132,0))","v":0},{"$f":"IF(A132=\"\",\"\",OFFSET(INDIRECT(\"Round\"&Round&\"!c1\"),$A132,0))","v":0},{"$f":"IF(A132=\"\",\"\",OFFSET(INDIRECT(\"Round\"&Round&\"!n1\"),$A132,0))","v":0},{"$f":"IF(A132=\"\",\"\",OFFSET(INDIRECT(\"Round\"&Round&\"!o1\"),$A132,0))","v":0}]
[116,{"$f":"IF(A133=\"\",\"\",OFFSET(INDIRECT(\"Round\"&Round&\"!B1\"),$A133,0))","v":0},{"$f":"IF(A133=\"\",\"\",OFFSET(INDIRECT(\"Round\"&Round&\"!c1\"),$A133,0))","v":0},{"$f":"IF(A133=\"\",\"\",OFFSET(INDIRECT(\"Round\"&Round&\"!n1\"),$A133,0))","v":0},{"$f":"IF(A133=\"\",\"\",OFFSET(INDIRECT(\"Round\"&Round&\"!o1\"),$A133,0))","v":0}]
[117,{"$f":"IF(A134=\"\",\"\",OFFSET(INDIRECT(\"Round\"&Round&\"!B1\"),$A134,0))","v":0},{"$f":"IF(A134=\"\",\"\",OFFSET(INDIRECT(\"Round\"&Round&\"!c1\"),$A134,0))","v":0},{"$f":"IF(A134=\"\",\"\",OFFSET(INDIRECT(\"Round\"&Round&\"!n1\"),$A134,0))","v":0},{"$f":"IF(A134=\"\",\"\",OFFSET(INDIRECT(\"Round\"&Round&\"!o1\"),$A134,0))","v":0}]
[118,{"$f":"IF(A135=\"\",\"\",OFFSET(INDIRECT(\"Round\"&Round&\"!B1\"),$A135,0))","v":0},{"$f":"IF(A135=\"\",\"\",OFFSET(INDIRECT(\"Round\"&Round&\"!c1\"),$A135,0))","v":0},{"$f":"IF(A135=\"\",\"\",OFFSET(INDIRECT(\"Round\"&Round&\"!n1\"),$A135,0))","v":0},{"$f":"IF(A135=\"\",\"\",OFFSET(INDIRECT(\"Round\"&Round&\"!o1\"),$A135,0))","v":0}]
[119,{"$f":"IF(A136=\"\",\"\",OFFSET(INDIRECT(\"Round\"&Round&\"!B1\"),$A136,0))","v":0},{"$f":"IF(A136=\"\",\"\",OFFSET(INDIRECT(\"Round\"&Round&\"!c1\"),$A136,0))","v":0},{"$f":"IF(A136=\"\",\"\",OFFSET(INDIRECT(\"Round\"&Round&\"!n1\"),$A136,0))","v":0},{"$f":"IF(A136=\"\",\"\",OFFSET(INDIRECT(\"Round\"&Round&\"!o1\"),$A136,0))","v":0}]
[120,{"$f":"IF(A137=\"\",\"\",OFFSET(INDIRECT(\"Round\"&Round&\"!B1\"),$A137,0))","v":0},{"$f":"IF(A137=\"\",\"\",OFFSET(INDIRECT(\"Round\"&Round&\"!c1\"),$A137,0))","v":0},{"$f":"IF(A137=\"\",\"\",OFFSET(INDIRECT(\"Round\"&Round&\"!n1\"),$A137,0))","v":0},{"$f":"IF(A137=\"\",\"\",OFFSET(INDIRECT(\"Round\"&Round&\"!o1\"),$A137,0))","v":0}]
["",{"$f":"IF(A138=\"\",\"\",OFFSET(INDIRECT(\"Round\"&Round&\"!B1\"),$A138,0))","v":""},{"$f":"IF(A138=\"\",\"\",OFFSET(INDIRECT(\"Round\"&Round&\"!c1\"),$A138,0))","v":""},{"$f":"IF(A138=\"\",\"\",OFFSET(INDIRECT(\"Round\"&Round&\"!n1\"),$A138,0))","v":""},{"$f":"IF(A138=\"\",\"\",OFFSET(INDIRECT(\"Round\"&Round&\"!o1\"),$A138,0))","v":""}]
[121,{"$f":"IF(A139=\"\",\"\",OFFSET(INDIRECT(\"Round\"&Round&\"!B1\"),$A139,0))","v":0},{"$f":"IF(A139=\"\",\"\",OFFSET(INDIRECT(\"Round\"&Round&\"!c1\"),$A139,0))","v":0},{"$f":"IF(A139=\"\",\"\",OFFSET(INDIRECT(\"Round\"&Round&\"!n1\"),$A139,0))","v":0},{"$f":"IF(A139=\"\",\"\",OFFSET(INDIRECT(\"Round\"&Round&\"!o1\"),$A139,0))","v":0}]
[122,{"$f":"IF(A140=\"\",\"\",OFFSET(INDIRECT(\"Round\"&Round&\"!B1\"),$A140,0))","v":0},{"$f":"IF(A140=\"\",\"\",OFFSET(INDIRECT(\"Round\"&Round&\"!c1\"),$A140,0))","v":0},{"$f":"IF(A140=\"\",\"\",OFFSET(INDIRECT(\"Round\"&Round&\"!n1\"),$A140,0))","v":0},{"$f":"IF(A140=\"\",\"\",OFFSET(INDIRECT(\"Round\"&Round&\"!o1\"),$A140,0))","v":0}]
[123,{"$f":"IF(A141=\"\",\"\",OFFSET(INDIRECT(\"Round\"&Round&\"!B1\"),$A141,0))","v":0},{"$f":"IF(A141=\"\",\"\",OFFSET(INDIRECT(\"Round\"&Round&\"!c1\"),$A141,0))","v":0},{"$f":"IF(A141=\"\",\"\",OFFSET(INDIRECT(\"Round\"&Round&\"!n1\"),$A141,0))","v":0},{"$f":"IF(A141=\"\",\"\",OFFSET(INDIRECT(\"Round\"&Round&\"!o1\"),$A141,0))","v":0}]
[124,{"$f":"IF(A142=\"\",\"\",OFFSET(INDIRECT(\"Round\"&Round&\"!B1\"),$A142,0))","v":0},{"$f":"IF(A142=\"\",\"\",OFFSET(INDIRECT(\"Round\"&Round&\"!c1\"),$A142,0))","v":0},{"$f":"IF(A142=\"\",\"\",OFFSET(INDIRECT(\"Round\"&Round&\"!n1\"),$A142,0))","v":0},{"$f":"IF(A142=\"\",\"\",OFFSET(INDIRECT(\"Round\"&Round&\"!o1\"),$A142,0))","v":0}]
[125,{"$f":"IF(A143=\"\",\"\",OFFSET(INDIRECT(\"Round\"&Round&\"!B1\"),$A143,0))","v":0},{"$f":"IF(A143=\"\",\"\",OFFSET(INDIRECT(\"Round\"&Round&\"!c1\"),$A143,0))","v":0},{"$f":"IF(A143=\"\",\"\",OFFSET(INDIRECT(\"Round\"&Round&\"!n1\"),$A143,0))","v":0},{"$f":"IF(A143=\"\",\"\",OFFSET(INDIRECT(\"Round\"&Round&\"!o1\"),$A143,0))","v":0}]
[126,{"$f":"IF(A144=\"\",\"\",OFFSET(INDIRECT(\"Round\"&Round&\"!B1\"),$A144,0))","v":0},{"$f":"IF(A144=\"\",\"\",OFFSET(INDIRECT(\"Round\"&Round&\"!c1\"),$A144,0))","v":0},{"$f":"IF(A144=\"\",\"\",OFFSET(INDIRECT(\"Round\"&Round&\"!n1\"),$A144,0))","v":0},{"$f":"IF(A144=\"\",\"\",OFFSET(INDIRECT(\"Round\"&Round&\"!o1\"),$A144,0))","v":0}]
[127,{"$f":"IF(A145=\"\",\"\",OFFSET(INDIRECT(\"Round\"&Round&\"!B1\"),$A145,0))","v":0},{"$f":"IF(A145=\"\",\"\",OFFSET(INDIRECT(\"Round\"&Round&\"!c1\"),$A145,0))","v":0},{"$f":"IF(A145=\"\",\"\",OFFSET(INDIRECT(\"Round\"&Round&\"!n1\"),$A145,0))","v":0},{"$f":"IF(A145=\"\",\"\",OFFSET(INDIRECT(\"Round\"&Round&\"!o1\"),$A145,0))","v":0}]
[128,{"$f":"IF(A146=\"\",\"\",OFFSET(INDIRECT(\"Round\"&Round&\"!B1\"),$A146,0))","v":0},{"$f":"IF(A146=\"\",\"\",OFFSET(INDIRECT(\"Round\"&Round&\"!c1\"),$A146,0))","v":0},{"$f":"IF(A146=\"\",\"\",OFFSET(INDIRECT(\"Round\"&Round&\"!n1\"),$A146,0))","v":0},{"$f":"IF(A146=\"\",\"\",OFFSET(INDIRECT(\"Round\"&Round&\"!o1\"),$A146,0))","v":0}]
["",{"$f":"IF(A147=\"\",\"\",OFFSET(INDIRECT(\"Round\"&Round&\"!B1\"),$A147,0))","v":""},{"$f":"IF(A147=\"\",\"\",OFFSET(INDIRECT(\"Round\"&Round&\"!c1\"),$A147,0))","v":""},{"$f":"IF(A147=\"\",\"\",OFFSET(INDIRECT(\"Round\"&Round&\"!n1\"),$A147,0))","v":""},{"$f":"IF(A147=\"\",\"\",OFFSET(INDIRECT(\"Round\"&Round&\"!o1\"),$A147,0))","v":""}]
[129,{"$f":"IF(A148=\"\",\"\",OFFSET(INDIRECT(\"Round\"&Round&\"!B1\"),$A148,0))","v":0},{"$f":"IF(A148=\"\",\"\",OFFSET(INDIRECT(\"Round\"&Round&\"!c1\"),$A148,0))","v":0},{"$f":"IF(A148=\"\",\"\",OFFSET(INDIRECT(\"Round\"&Round&\"!n1\"),$A148,0))","v":0},{"$f":"IF(A148=\"\",\"\",OFFSET(INDIRECT(\"Round\"&Round&\"!o1\"),$A148,0))","v":0}]
[130,{"$f":"IF(A149=\"\",\"\",OFFSET(INDIRECT(\"Round\"&Round&\"!B1\"),$A149,0))","v":0},{"$f":"IF(A149=\"\",\"\",OFFSET(INDIRECT(\"Round\"&Round&\"!c1\"),$A149,0))","v":0},{"$f":"IF(A149=\"\",\"\",OFFSET(INDIRECT(\"Round\"&Round&\"!n1\"),$A149,0))","v":0},{"$f":"IF(A149=\"\",\"\",OFFSET(INDIRECT(\"Round\"&Round&\"!o1\"),$A149,0))","v":0}]
[131,{"$f":"IF(A150=\"\",\"\",OFFSET(INDIRECT(\"Round\"&Round&\"!B1\"),$A150,0))","v":0},{"$f":"IF(A150=\"\",\"\",OFFSET(INDIRECT(\"Round\"&Round&\"!c1\"),$A150,0))","v":0},{"$f":"IF(A150=\"\",\"\",OFFSET(INDIRECT(\"Round\"&Round&\"!n1\"),$A150,0))","v":0},{"$f":"IF(A150=\"\",\"\",OFFSET(INDIRECT(\"Round\"&Round&\"!o1\"),$A150,0))","v":0}]
[132,{"$f":"IF(A151=\"\",\"\",OFFSET(INDIRECT(\"Round\"&Round&\"!B1\"),$A151,0))","v":0},{"$f":"IF(A151=\"\",\"\",OFFSET(INDIRECT(\"Round\"&Round&\"!c1\"),$A151,0))","v":0},{"$f":"IF(A151=\"\",\"\",OFFSET(INDIRECT(\"Round\"&Round&\"!n1\"),$A151,0))","v":0},{"$f":"IF(A151=\"\",\"\",OFFSET(INDIRECT(\"Round\"&Round&\"!o1\"),$A151,0))","v":0}]
[133,{"$f":"IF(A152=\"\",\"\",OFFSET(INDIRECT(\"Round\"&Round&\"!B1\"),$A152,0))","v":0},{"$f":"IF(A152=\"\",\"\",OFFSET(INDIRECT(\"Round\"&Round&\"!c1\"),$A152,0))","v":0},{"$f":"IF(A152=\"\",\"\",OFFSET(INDIRECT(\"Round\"&Round&\"!n1\"),$A152,0))","v":0},{"$f":"IF(A152=\"\",\"\",OFFSET(INDIRECT(\"Round\"&Round&\"!o1\"),$A152,0))","v":0}]
[134,{"$f":"IF(A153=\"\",\"\",OFFSET(INDIRECT(\"Round\"&Round&\"!B1\"),$A153,0))","v":0},{"$f":"IF(A153=\"\",\"\",OFFSET(INDIRECT(\"Round\"&Round&\"!c1\"),$A153,0))","v":0},{"$f":"IF(A153=\"\",\"\",OFFSET(INDIRECT(\"Round\"&Round&\"!n1\"),$A153,0))","v":0},{"$f":"IF(A153=\"\",\"\",OFFSET(INDIRECT(\"Round\"&Round&\"!o1\"),$A153,0))","v":0}]
[135,{"$f":"IF(A154=\"\",\"\",OFFSET(INDIRECT(\"Round\"&Round&\"!B1\"),$A154,0))","v":0},{"$f":"IF(A154=\"\",\"\",OFFSET(INDIRECT(\"Round\"&Round&\"!c1\"),$A154,0))","v":0},{"$f":"IF(A154=\"\",\"\",OFFSET(INDIRECT(\"Round\"&Round&\"!n1\"),$A154,0))","v":0},{"$f":"IF(A154=\"\",\"\",OFFSET(INDIRECT(\"Round\"&Round&\"!o1\"),$A154,0))","v":0}]
[136,{"$f":"IF(A155=\"\",\"\",OFFSET(INDIRECT(\"Round\"&Round&\"!B1\"),$A155,0))","v":0},{"$f":"IF(A155=\"\",\"\",OFFSET(INDIRECT(\"Round\"&Round&\"!c1\"),$A155,0))","v":0},{"$f":"IF(A155=\"\",\"\",OFFSET(INDIRECT(\"Round\"&Round&\"!n1\"),$A155,0))","v":0},{"$f":"IF(A155=\"\",\"\",OFFSET(INDIRECT(\"Round\"&Round&\"!o1\"),$A155,0))","v":0}]
["",{"$f":"IF(A156=\"\",\"\",OFFSET(INDIRECT(\"Round\"&Round&\"!B1\"),$A156,0))","v":""},{"$f":"IF(A156=\"\",\"\",OFFSET(INDIRECT(\"Round\"&Round&\"!c1\"),$A156,0))","v":""},{"$f":"IF(A156=\"\",\"\",OFFSET(INDIRECT(\"Round\"&Round&\"!n1\"),$A156,0))","v":""},{"$f":"IF(A156=\"\",\"\",OFFSET(INDIRECT(\"Round\"&Round&\"!o1\"),$A156,0))","v":""}]
[137,{"$f":"IF(A157=\"\",\"\",OFFSET(INDIRECT(\"Round\"&Round&\"!B1\"),$A157,0))","v":0},{"$f":"IF(A157=\"\",\"\",OFFSET(INDIRECT(\"Round\"&Round&\"!c1\"),$A157,0))","v":0},{"$f":"IF(A157=\"\",\"\",OFFSET(INDIRECT(\"Round\"&Round&\"!n1\"),$A157,0))","v":0},{"$f":"IF(A157=\"\",\"\",OFFSET(INDIRECT(\"Round\"&Round&\"!o1\"),$A157,0))","v":0}]
[138,{"$f":"IF(A158=\"\",\"\",OFFSET(INDIRECT(\"Round\"&Round&\"!B1\"),$A158,0))","v":0},{"$f":"IF(A158=\"\",\"\",OFFSET(INDIRECT(\"Round\"&Round&\"!c1\"),$A158,0))","v":0},{"$f":"IF(A158=\"\",\"\",OFFSET(INDIRECT(\"Round\"&Round&\"!n1\"),$A158,0))","v":0},{"$f":"IF(A158=\"\",\"\",OFFSET(INDIRECT(\"Round\"&Round&\"!o1\"),$A158,0))","v":0}]
[139,{"$f":"IF(A159=\"\",\"\",OFFSET(INDIRECT(\"Round\"&Round&\"!B1\"),$A159,0))","v":0},{"$f":"IF(A159=\"\",\"\",OFFSET(INDIRECT(\"Round\"&Round&\"!c1\"),$A159,0))","v":0},{"$f":"IF(A159=\"\",\"\",OFFSET(INDIRECT(\"Round\"&Round&\"!n1\"),$A159,0))","v":0},{"$f":"IF(A159=\"\",\"\",OFFSET(INDIRECT(\"Round\"&Round&\"!o1\"),$A159,0))","v":0}]
[140,{"$f":"IF(A160=\"\",\"\",OFFSET(INDIRECT(\"Round\"&Round&\"!B1\"),$A160,0))","v":0},{"$f":"IF(A160=\"\",\"\",OFFSET(INDIRECT(\"Round\"&Round&\"!c1\"),$A160,0))","v":0},{"$f":"IF(A160=\"\",\"\",OFFSET(INDIRECT(\"Round\"&Round&\"!n1\"),$A160,0))","v":0},{"$f":"IF(A160=\"\",\"\",OFFSET(INDIRECT(\"Round\"&Round&\"!o1\"),$A160,0))","v":0}]
[141,{"$f":"IF(A161=\"\",\"\",OFFSET(INDIRECT(\"Round\"&Round&\"!B1\"),$A161,0))","v":0},{"$f":"IF(A161=\"\",\"\",OFFSET(INDIRECT(\"Round\"&Round&\"!c1\"),$A161,0))","v":0},{"$f":"IF(A161=\"\",\"\",OFFSET(INDIRECT(\"Round\"&Round&\"!n1\"),$A161,0))","v":0},{"$f":"IF(A161=\"\",\"\",OFFSET(INDIRECT(\"Round\"&Round&\"!o1\"),$A161,0))","v":0}]
[{"$f":"IF(A161=\"\",A160+1,IF(ROUNDUP(A161/8,0)=A161/8,\"\",A161+1))","v":142},{"$f":"IF(A162=\"\",\"\",OFFSET(INDIRECT(\"Round\"&Round&\"!B1\"),$A162,0))","v":0},{"$f":"IF(A162=\"\",\"\",OFFSET(INDIRECT(\"Round\"&Round&\"!c1\"),$A162,0))","v":0},{"$f":"IF(A162=\"\",\"\",OFFSET(INDIRECT(\"Round\"&Round&\"!n1\"),$A162,0))","v":0},{"$f":"IF(A162=\"\",\"\",OFFSET(INDIRECT(\"Round\"&Round&\"!o1\"),$A162,0))","v":0}]
[143,{"$f":"IF(A163=\"\",\"\",OFFSET(INDIRECT(\"Round\"&Round&\"!B1\"),$A163,0))","v":0},{"$f":"IF(A163=\"\",\"\",OFFSET(INDIRECT(\"Round\"&Round&\"!c1\"),$A163,0))","v":0},{"$f":"IF(A163=\"\",\"\",OFFSET(INDIRECT(\"Round\"&Round&\"!n1\"),$A163,0))","v":0},{"$f":"IF(A163=\"\",\"\",OFFSET(INDIRECT(\"Round\"&Round&\"!o1\"),$A163,0))","v":0}]
[144,{"$f":"IF(A164=\"\",\"\",OFFSET(INDIRECT(\"Round\"&Round&\"!B1\"),$A164,0))","v":0},{"$f":"IF(A164=\"\",\"\",OFFSET(INDIRECT(\"Round\"&Round&\"!c1\"),$A164,0))","v":0},{"$f":"IF(A164=\"\",\"\",OFFSET(INDIRECT(\"Round\"&Round&\"!n1\"),$A164,0))","v":0},{"$f":"IF(A164=\"\",\"\",OFFSET(INDIRECT(\"Round\"&Round&\"!o1\"),$A164,0))","v":0}]
["",{"$f":"IF(A165=\"\",\"\",OFFSET(INDIRECT(\"Round\"&Round&\"!B1\"),$A165,0))","v":""},{"$f":"IF(A165=\"\",\"\",OFFSET(INDIRECT(\"Round\"&Round&\"!c1\"),$A165,0))","v":""},{"$f":"IF(A165=\"\",\"\",OFFSET(INDIRECT(\"Round\"&Round&\"!n1\"),$A165,0))","v":""},{"$f":"IF(A165=\"\",\"\",OFFSET(INDIRECT(\"Round\"&Round&\"!o1\"),$A165,0))","v":""}]
[145,{"$f":"IF(A166=\"\",\"\",OFFSET(INDIRECT(\"Round\"&Round&\"!B1\"),$A166,0))","v":0},{"$f":"IF(A166=\"\",\"\",OFFSET(INDIRECT(\"Round\"&Round&\"!c1\"),$A166,0))","v":0},{"$f":"IF(A166=\"\",\"\",OFFSET(INDIRECT(\"Round\"&Round&\"!n1\"),$A166,0))","v":0},{"$f":"IF(A166=\"\",\"\",OFFSET(INDIRECT(\"Round\"&Round&\"!o1\"),$A166,0))","v":0}]
[146,{"$f":"IF(A167=\"\",\"\",OFFSET(INDIRECT(\"Round\"&Round&\"!B1\"),$A167,0))","v":0},{"$f":"IF(A167=\"\",\"\",OFFSET(INDIRECT(\"Round\"&Round&\"!c1\"),$A167,0))","v":0},{"$f":"IF(A167=\"\",\"\",OFFSET(INDIRECT(\"Round\"&Round&\"!n1\"),$A167,0))","v":0},{"$f":"IF(A167=\"\",\"\",OFFSET(INDIRECT(\"Round\"&Round&\"!o1\"),$A167,0))","v":0}]
[147,{"$f":"IF(A168=\"\",\"\",OFFSET(INDIRECT(\"Round\"&Round&\"!B1\"),$A168,0))","v":0},{"$f":"IF(A168=\"\",\"\",OFFSET(INDIRECT(\"Round\"&Round&\"!c1\"),$A168,0))","v":0},{"$f":"IF(A168=\"\",\"\",OFFSET(INDIRECT(\"Round\"&Round&\"!n1\"),$A168,0))","v":0},{"$f":"IF(A168=\"\",\"\",OFFSET(INDIRECT(\"Round\"&Round&\"!o1\"),$A168,0))","v":0}]
[148,{"$f":"IF(A169=\"\",\"\",OFFSET(INDIRECT(\"Round\"&Round&\"!B1\"),$A169,0))","v":0},{"$f":"IF(A169=\"\",\"\",OFFSET(INDIRECT(\"Round\"&Round&\"!c1\"),$A169,0))","v":0},{"$f":"IF(A169=\"\",\"\",OFFSET(INDIRECT(\"Round\"&Round&\"!n1\"),$A169,0))","v":0},{"$f":"IF(A169=\"\",\"\",OFFSET(INDIRECT(\"Round\"&Round&\"!o1\"),$A169,0))","v":0}]
[149,{"$f":"IF(A170=\"\",\"\",OFFSET(INDIRECT(\"Round\"&Round&\"!B1\"),$A170,0))","v":0},{"$f":"IF(A170=\"\",\"\",OFFSET(INDIRECT(\"Round\"&Round&\"!c1\"),$A170,0))","v":0},{"$f":"IF(A170=\"\",\"\",OFFSET(INDIRECT(\"Round\"&Round&\"!n1\"),$A170,0))","v":0},{"$f":"IF(A170=\"\",\"\",OFFSET(INDIRECT(\"Round\"&Round&\"!o1\"),$A170,0))","v":0}]
[150,{"$f":"IF(A171=\"\",\"\",OFFSET(INDIRECT(\"Round\"&Round&\"!B1\"),$A171,0))","v":0},{"$f":"IF(A171=\"\",\"\",OFFSET(INDIRECT(\"Round\"&Round&\"!c1\"),$A171,0))","v":0},{"$f":"IF(A171=\"\",\"\",OFFSET(INDIRECT(\"Round\"&Round&\"!n1\"),$A171,0))","v":0},{"$f":"IF(A171=\"\",\"\",OFFSET(INDIRECT(\"Round\"&Round&\"!o1\"),$A171,0))","v":0}]
[151,{"$f":"IF(A172=\"\",\"\",OFFSET(INDIRECT(\"Round\"&Round&\"!B1\"),$A172,0))","v":0},{"$f":"IF(A172=\"\",\"\",OFFSET(INDIRECT(\"Round\"&Round&\"!c1\"),$A172,0))","v":0},{"$f":"IF(A172=\"\",\"\",OFFSET(INDIRECT(\"Round\"&Round&\"!n1\"),$A172,0))","v":0},{"$f":"IF(A172=\"\",\"\",OFFSET(INDIRECT(\"Round\"&Round&\"!o1\"),$A172,0))","v":0}]
[152,{"$f":"IF(A173=\"\",\"\",OFFSET(INDIRECT(\"Round\"&Round&\"!B1\"),$A173,0))","v":0},{"$f":"IF(A173=\"\",\"\",OFFSET(INDIRECT(\"Round\"&Round&\"!c1\"),$A173,0))","v":0},{"$f":"IF(A173=\"\",\"\",OFFSET(INDIRECT(\"Round\"&Round&\"!n1\"),$A173,0))","v":0},{"$f":"IF(A173=\"\",\"\",OFFSET(INDIRECT(\"Round\"&Round&\"!o1\"),$A173,0))","v":0}]
["",{"$f":"IF(A174=\"\",\"\",OFFSET(INDIRECT(\"Round\"&Round&\"!B1\"),$A174,0))","v":""},{"$f":"IF(A174=\"\",\"\",OFFSET(INDIRECT(\"Round\"&Round&\"!c1\"),$A174,0))","v":""},{"$f":"IF(A174=\"\",\"\",OFFSET(INDIRECT(\"Round\"&Round&\"!n1\"),$A174,0))","v":""},{"$f":"IF(A174=\"\",\"\",OFFSET(INDIRECT(\"Round\"&Round&\"!o1\"),$A174,0))","v":""}]
[153,{"$f":"IF(A175=\"\",\"\",OFFSET(INDIRECT(\"Round\"&Round&\"!B1\"),$A175,0))","v":0},{"$f":"IF(A175=\"\",\"\",OFFSET(INDIRECT(\"Round\"&Round&\"!c1\"),$A175,0))","v":0},{"$f":"IF(A175=\"\",\"\",OFFSET(INDIRECT(\"Round\"&Round&\"!n1\"),$A175,0))","v":0},{"$f":"IF(A175=\"\",\"\",OFFSET(INDIRECT(\"Round\"&Round&\"!o1\"),$A175,0))","v":0}]
[154,{"$f":"IF(A176=\"\",\"\",OFFSET(INDIRECT(\"Round\"&Round&\"!B1\"),$A176,0))","v":0},{"$f":"IF(A176=\"\",\"\",OFFSET(INDIRECT(\"Round\"&Round&\"!c1\"),$A176,0))","v":0},{"$f":"IF(A176=\"\",\"\",OFFSET(INDIRECT(\"Round\"&Round&\"!n1\"),$A176,0))","v":0},{"$f":"IF(A176=\"\",\"\",OFFSET(INDIRECT(\"Round\"&Round&\"!o1\"),$A176,0))","v":0}]
[155,{"$f":"IF(A177=\"\",\"\",OFFSET(INDIRECT(\"Round\"&Round&\"!B1\"),$A177,0))","v":0},{"$f":"IF(A177=\"\",\"\",OFFSET(INDIRECT(\"Round\"&Round&\"!c1\"),$A177,0))","v":0},{"$f":"IF(A177=\"\",\"\",OFFSET(INDIRECT(\"Round\"&Round&\"!n1\"),$A177,0))","v":0},{"$f":"IF(A177=\"\",\"\",OFFSET(INDIRECT(\"Round\"&Round&\"!o1\"),$A177,0))","v":0}]
[156,{"$f":"IF(A178=\"\",\"\",OFFSET(INDIRECT(\"Round\"&Round&\"!B1\"),$A178,0))","v":0},{"$f":"IF(A178=\"\",\"\",OFFSET(INDIRECT(\"Round\"&Round&\"!c1\"),$A178,0))","v":0},{"$f":"IF(A178=\"\",\"\",OFFSET(INDIRECT(\"Round\"&Round&\"!n1\"),$A178,0))","v":0},{"$f":"IF(A178=\"\",\"\",OFFSET(INDIRECT(\"Round\"&Round&\"!o1\"),$A178,0))","v":0}]
[157,{"$f":"IF(A179=\"\",\"\",OFFSET(INDIRECT(\"Round\"&Round&\"!B1\"),$A179,0))","v":0},{"$f":"IF(A179=\"\",\"\",OFFSET(INDIRECT(\"Round\"&Round&\"!c1\"),$A179,0))","v":0},{"$f":"IF(A179=\"\",\"\",OFFSET(INDIRECT(\"Round\"&Round&\"!n1\"),$A179,0))","v":0},{"$f":"IF(A179=\"\",\"\",OFFSET(INDIRECT(\"Round\"&Round&\"!o1\"),$A179,0))","v":0}]
[158,{"$f":"IF(A180=\"\",\"\",OFFSET(INDIRECT(\"Round\"&Round&\"!B1\"),$A180,0))","v":0},{"$f":"IF(A180=\"\",\"\",OFFSET(INDIRECT(\"Round\"&Round&\"!c1\"),$A180,0))","v":0},{"$f":"IF(A180=\"\",\"\",OFFSET(INDIRECT(\"Round\"&Round&\"!n1\"),$A180,0))","v":0},{"$f":"IF(A180=\"\",\"\",OFFSET(INDIRECT(\"Round\"&Round&\"!o1\"),$A180,0))","v":0}]
[159,{"$f":"IF(A181=\"\",\"\",OFFSET(INDIRECT(\"Round\"&Round&\"!B1\"),$A181,0))","v":0},{"$f":"IF(A181=\"\",\"\",OFFSET(INDIRECT(\"Round\"&Round&\"!c1\"),$A181,0))","v":0},{"$f":"IF(A181=\"\",\"\",OFFSET(INDIRECT(\"Round\"&Round&\"!n1\"),$A181,0))","v":0},{"$f":"IF(A181=\"\",\"\",OFFSET(INDIRECT(\"Round\"&Round&\"!o1\"),$A181,0))","v":0}]
[160,{"$f":"IF(A182=\"\",\"\",OFFSET(INDIRECT(\"Round\"&Round&\"!B1\"),$A182,0))","v":0},{"$f":"IF(A182=\"\",\"\",OFFSET(INDIRECT(\"Round\"&Round&\"!c1\"),$A182,0))","v":0},{"$f":"IF(A182=\"\",\"\",OFFSET(INDIRECT(\"Round\"&Round&\"!n1\"),$A182,0))","v":0},{"$f":"IF(A182=\"\",\"\",OFFSET(INDIRECT(\"Round\"&Round&\"!o1\"),$A182,0))","v":0}]
["",{"$f":"IF(A183=\"\",\"\",OFFSET(INDIRECT(\"Round\"&Round&\"!B1\"),$A183,0))","v":""},{"$f":"IF(A183=\"\",\"\",OFFSET(INDIRECT(\"Round\"&Round&\"!c1\"),$A183,0))","v":""},{"$f":"IF(A183=\"\",\"\",OFFSET(INDIRECT(\"Round\"&Round&\"!n1\"),$A183,0))","v":""},{"$f":"IF(A183=\"\",\"\",OFFSET(INDIRECT(\"Round\"&Round&\"!o1\"),$A183,0))","v":""}]

{"sheet":"GroupMatrix","index":8,"n_rows":17,"n_cols":17,"rows_kept":17,"cut":false,"hidden":false,"merged":[]}
[null,"Belgium","Denmark","England","Finland","France","Germany","Hungary","Italy","Norway","Poland","Scotland","Spain","Sweden","Switzerland","Viking","Wales"]
["Belgium",null,null,"Rd 1 - 7"]
["Denmark",null,null,null,null,null,null,null,null,"Rd 1 - 212"]
["England","Rd 1 - 209"]
["Finland",null,null,null,null,null,null,null,null,null,null,null,null,null,null,null,"Rd 1 - 209"]
["France",null,null,null,null,null,null,null,null,null,null,"Rd 1 - 209"]
["Germany",null,null,null,null,null,null,null,null,null,null,null,null,null,"Rd 1 - 213"]
["Hungary",null,null,null,null,null,null,null,null,null,null,null,"Rd 1 - 209"]
["Italy",null,null,null,null,null,null,null,null,null,"Rd 1 - 108"]
["Norway",null,"Rd 1 - 4"]
["Poland",null,null,null,null,null,null,null,"Rd 1 - 108"]
["Scotland",null,null,null,null,"Rd 1 - 7"]
["Spain",null,null,null,null,null,null,"Rd 1 - 7"]
["Sweden",null,null,null,null,null,null,null,null,null,null,null,null,null,null,"Rd 1 - 6"]
["Switzerland",null,null,null,null,null,"Rd 1 - 3"]
["Viking",null,null,null,null,null,null,null,null,null,null,null,null,"Rd 1 - 210"]
["Wales",null,null,null,"Rd 1 - 7"]

{"sheet":"Matrix","index":9,"n_rows":129,"n_cols":129,"rows_kept":129,"cut":false,"hidden":false,"merged":[]}
[null,"Niebling ","PurpleGoo ","Mubo ","Dirold ","The_Ref ","Tripleskull ","MissSweden ","Topper ","Joemanji ","edheim ","FrankPedersen ","Obeliz ","Northernknight ","Woete ","RoterSternHochdahl","Jonny_Kanone ","Itzla ","Farina ","Garrick ","Dark Duke ","20Phoenix ","Malodoror ","Bouzzy ","DocMaxx ","BlackOrc ","Kaltenland ","Shawass ","Malasnoticias ","Macabeo ","Corwin ","SFisher91 ","Phoenix11 ","Wolio ","Reszka ","Slimaq ","Skuld ","Balder ","Dionysian ","Harza ","Idroj ","Faccko ","MacWitt ","Pellevin ","Araznaroth ","JimJimany ","zulu ","mynock ","Strider84 ","Phifoe ","JohnnyD ","Dekra1979 ","straume ","Barry ","Tactel ","Pidpad ","Elrik ","Simon_ACP ","sann0638 ","Goss ","Muadib ","swifty ","Matte8 ","Joanet ","SpecialOne ","Prince ","GreatWhiteHope ","Bernuz ","MadeofWelsh ","Tank ","BeerBeer ","ratogre ","BudWiser ","Gros Nain ","Warrior1980 ","Juniooor7 ","Madmatt13 ","jopotzuki ","J-Ho","Verrinho ","Valen ","Lycos ","Domingo ","Mufflo ","andydavo ","Geggster ","Arioso ","Gaunab ","Alex05 ","Beppe ","Melisqus ","Dragons ","Jaqra ","Harti ","Favi ","Spartako ","DonShula ","HumptyTrump ","Purrelito ","nonumber ","Driesfield ","kfoged ","Podfrey ","valkohukka ","Skoberget ","brocCooli ","Ploppy_McPloppy ","BiBi ","Matt le fou ","Candlejack ","Purdindas ","JJ ","Wilzif ","noraal ","cz ","Loki ","gninocker ","Mewash ","Leonek ","JamesEs ","Duke_Luthor_Von_Hawkfire ","Jokaero ","Duckwing ","Justicium ","Liam ","Endalos ","bothun ","Inforthepain ","sigu70 "]
["Niebling ",null,null,null,null,null,null,null,null,null,null,"R1, 2 - 0",null,null,null,null,null,null,null,null,null,null,null,null,null,null,null,null,null,null,null,null,null,null,null,null,null,null,null,null,null,null,null,null,null,null,null,null,null,null,null,null,null,null,null,null,null,null,null,null,null,null,null,null,null,null,null,null,null,null,null,null,null,null,null,null,null,null,null,null,null,null,null,null,null,null,null,null,null,null,null,null,null,null,null,null,null,null,null,null,"R1, 1 - 0","R5, 1 - 0","R1, 1 - 0","R3, 0 - 1",null,"R4, 1 - 0","R6, 1 - 0",null,"R1, 0.5 - 0.5","R4, 4 - 18","R2, 0 - 1",null,"R4, 1 - 0",null,"R5, 0 - 1","R7, 0.5 - 0.5","R1, 1 - 0","R8, 1 - 0","R3, 0 - 1","R3, 1 - 0","R3, 23 - 5",null,"R3, 0 - 1",null,"R1, 0 - 1",null,null,"R3, 1 - 0","R5, 1 - 0"]
["PurpleGoo ",null,null,null,null,null,null,null,null,null,null,null,null,null,null,null,null,null,null,null,null,null,null,null,null,null,null,null,null,null,null,null,null,null,null,null,null,null,null,null,null,null,null,null,null,null,null,null,null,null,null,null,null,null,null,null,null,null,null,null,null,null,null,null,null,null,null,null,null,null,null,null,null,null,null,null,null,null,null,null,null,null,null,null,null,null,null,null,null,null,null,null,null,null,null,null,null,null,null,null,null,"R1, 0.5 - 0.5",null,"R4, 0.5 - 0.5","R5, 0.5 - 0.5","R2, 0 - 1","R1, 1 - 0",null,null,"R4, 0.5 - 0.5",null,"R3, 1 - 0",null,"R1, 0.5 - 0.5",null,"R3, 0.5 - 0.5","R1, 2 - 0",null,null,null,"R1, 1 - 0","R3, 0 - 1","R5, 1 - 0",null,null,"R4, 5 - 22","R6, 0 - 1"]
["Mubo ",null,null,null,null,null,null,null,null,null,null,null,null,null,null,null,null,null,null,null,null,null,null,null,null,null,null,null,null,null,null,null,null,null,null,null,null,null,null,null,null,null,null,null,"R1, 2 - 0",null,null,null,null,null,null,null,null,null,null,null,null,null,null,null,null,null,null,null,null,null,null,null,null,null,null,null,null,null,null,null,null,null,null,null,null,null,null,null,null,null,null,null,null,null,null,null,null,null,null,null,null,null,null,null,"R1, 0.5 - 0.5","R4, 0.5 - 0.5","R1, 0 - 1","R2, 0.5 - 0.5",null,"R3, 0 - 1","R3, 1 - 0","R4, 0 - 1","R4, 0.5 - 0.5","R5, 3 - 20","R4, 0 - 1",null,null,"R5, 0 - 1","R6, 1 - 0","R6, 1 - 0","R1, 1 - 0","R3, 1 - 0","R2, 0 - 1","R1, 0.5 - 0.5","R2, 0 - 1",null,null,"R2, 0 - 1","R2, 22 - 6","R5, 0.5 - 0.5","R5, 1 - 0","R2, 0 - 1"]
["Dirold ",null,null,null,null,null,null,null,null,null,null,null,null,null,null,null,null,null,null,null,null,null,null,null,null,null,null,null,null,null,null,null,null,null,"R1, 1 - 1",null,null,null,null,null,null,null,null,null,null,null,null,null,null,null,null,null,null,null,null,null,null,null,null,null,null,null,null,null,null,null,null,null,null,null,null,null,null,null,null,null,null,null,null,null,null,null,null,null,null,null,null,null,null,null,null,null,null,null,null,null,null,null,null,null,"R4, 0 - 1","R5, 0.5 - 0.5","R1, 0 - 1","R1, 1 - 0","R1, 0.5 - 0.5","R2, 0 - 1","R4, 0.5 - 0.5","R3, 0.5 - 0.5","R7, 1 - 0",null,null,"R6, 0 - 1","R1, 0 - 1","R3, 0.5 - 0.5","R6, 0.5 - 0.5","R4, 0.5 - 0.5","R1, 1 - 0","R4, 0.5 - 0.5",null,"R2, 1 - 0","R1, 0.5 - 0.5","R3, 0 - 1",null,"R3, 21 - 4","R2, 0 - 1","R6, 0.5 - 0.5",null,"R3, 1 - 0","R6, 19 - 3"]
["The_Ref ",null,null,null,null,null,null,null,null,null,null,null,null,null,null,null,null,null,null,null,null,null,null,null,null,null,null,null,null,null,null,null,null,null,null,null,null,null,null,null,null,null,null,null,null,null,null,null,null,null,null,null,null,null,null,null,null,null,null,null,null,null,null,null,"R1, 0 - 2",null,null,null,null,null,null,null,null,null,null,null,null,null,null,null,null,null,null,null,null,null,null,null,null,null,null,null,null,null,null,null,null,null,null,null,null,null,"R5, 0 - 1","R2, 1 - 0","R1, 0.5 - 0.5","R2, 0.5 - 0.5",null,"R1, 0 - 1","R4, 1 - 0","R5, 1 - 0","R4, 0 - 1","R1, 0 - 1","R5, 0 - 1","R3, 0.5 - 0.5","R1, 0 - 1","R1, 0.5 - 0.5",null,null,"R5, 0 - 1","R1, 0.5 - 0.5",null,null,"R6, 1 - 0","R3, 1 - 0",null,null,"R2, 1 - 0",null,"R6, 0 - 1"]
["Tripleskull ",null,null,null,null,null,null,null,null,null,null,null,null,null,null,null,null,null,null,null,null,null,null,null,null,null,null,null,null,null,null,null,null,null,null,null,null,null,null,null,null,null,null,null,null,null,null,null,null,null,null,null,null,null,null,null,null,null,null,null,null,null,null,null,null,null,"R1, 2 - 0",null,null,null,null,null,null,null,null,null,null,null,null,null,null,null,null,null,null,null,null,null,null,null,null,null,null,null,null,null,null,null,null,null,"R5, 1 - 0","R1, 0 - 1","R5, 0.5 - 0.5","R4, 0 - 1","R6, 0.5 - 0.5",null,"R4, 0.5 - 0.5",null,"R4, 0.5 - 0.5","R6, 0.5 - 0.5","R1, 0.5 - 0.5","R3, 1 - 0","R3, 1 - 0","R6, 0.5 - 0.5","R3, 0.5 - 0.5","R2, 1 - 0","R2, 1 - 0","R3, 0.5 - 0.5","R1, 1 - 0","R7, 1 - 0","R3, 1 - 0","R5, 0.5 - 0.5",null,null,"R3, 1 - 0","R2, 1 - 0","R5, 0 - 1"]
["MissSweden ",null,null,null,null,null,null,null,null,null,null,null,null,null,null,null,null,null,null,null,null,null,null,null,null,null,null,null,null,null,null,null,null,null,null,null,null,null,null,null,null,null,null,null,null,null,null,null,null,null,null,null,null,null,null,null,null,null,null,null,null,null,null,null,null,null,null,null,null,null,null,null,null,null,null,null,null,null,null,null,null,null,null,null,null,null,null,null,null,null,null,null,null,null,null,null,null,null,null,null,"R1, 1 - 0",null,"R4, 0 - 1","R1, 1 - 0","R3, 1 - 0","R1, 1 - 0",null,"R5, 0.5 - 0.5",null,"R3, 0 - 1","R7, 0 - 1","R4, 1 - 0",null,"R2, 1 - 0",null,"R1, 0 - 1","R5, 1 - 0","R1, 1 - 0","R2, 0 - 1",null,"R1, 0.5 - 0.5",null,null,"R7, 0 - 1",null,"R1, 0 - 2","R5, 0.5 - 0.5",null,"R2, 0 - 1"]
["Topper ",null,null,null,null,null,null,null,null,null,null,null,null,null,null,null,null,null,null,null,null,null,null,null,null,null,null,null,null,null,null,null,null,null,null,null,null,null,null,null,null,null,null,null,null,null,"R1, 2 - 0",null,null,null,null,null,null,null,null,null,null,null,null,null,null,null,null,null,null,null,null,null,null,null,null,null,null,null,null,null,null,null,null,null,null,null,null,null,null,null,null,null,null,null,null,null,null,null,null,null,null,null,null,null,"R1, 0 - 1","R1, 1 - 0","R1, 0.5 - 0.5","R5, 0 - 1",null,null,"R3, 0 - 1","R7, 0.5 - 0.5",null,"R1, 1 - 0",null,"R4, 0 - 1","R4, 0 - 1","R1, 0 - 1","R2, 1 - 0",null,"R3, 0 - 1",null,"R2, 0.5 - 0.5",null,null,null,"R2, 1 - 0","R4, 19 - 4","R5, 0.5 - 0.5","R2, 0.5 - 0.5",null,"R6, 0.5 - 0.5","R3, 1 - 0"]
["Joemanji ",null,null,null,null,null,null,null,null,null,null,null,null,null,null,null,null,null,null,null,null,null,null,null,null,null,null,null,null,null,null,null,null,null,null,null,null,null,null,null,null,null,null,null,null,null,null,null,null,null,null,"R1, 1 - 1",null,null,null,null,null,null,null,null,null,null,null,null,null,null,null,null,null,null,null,null,null,null,null,null,null,null,null,null,null,null,null,null,null,null,null,null,null,null,null,null,null,null,null,null,null,null,null,null,"R4, 1 - 0",null,"R1, 0.5 - 0.5","R3, 0 - 1","R1, 1 - 0","R2, 1 - 0","R2, 0.5 - 0.5","R2, 1 - 0","R2, 1 - 0","R1, 0.5 - 0.5","R1, 0.5 - 0.5","R2, 0.5 - 0.5","R5, 0 - 1",null,"R1, 1 - 0","R6, 1 - 0","R6, 0.5 - 0.5",null,null,"R1, 0.5 - 0.5","R2, 0 - 1","R3, 0.5 - 0.5","R1, 0.5 - 0.5","R1, 0.5 - 0.5",null,"R3, 1 - 0","R4, 1 - 0","R5, 0.5 - 0.5","R1, 1 - 0"]
["edheim ",null,null,null,null,null,null,null,null,null,null,null,null,null,null,null,null,null,null,null,null,null,null,null,null,null,null,null,null,null,null,"R1, 1 - 1",null,null,null,null,null,null,null,null,null,null,null,null,null,null,null,null,null,null,null,null,null,null,null,null,null,null,null,null,null,null,null,null,null,null,null,null,null,null,null,null,null,null,null,null,null,null,null,null,null,null,null,null,null,null,null,null,null,null,null,null,null,null,null,null,null,null,null,null,null,"R1, 1 - 0","R1, 1 - 0","R4, 1 - 0","R1, 0 - 1","R2, 1 - 0","R1, 0.5 - 0.5","R6, 0.5 - 0.5","R1, 0 - 1","R3, 1 - 0",null,"R2, 0.5 - 0.5","R2, 0.5 - 0.5","R1, 0.5 - 0.5","R2, 1 - 0","R6, 1 - 0","R7, 0.5 - 0.5","R1, 0.5 - 0.5",null,"R2, 1 - 0",null,null,"R5, 1 - 0","R5, 0 - 1",null,"R1, 0.5 - 0.5","R1, 0 - 1","R1, 0.5 - 0.5","R4, 1 - 0"]
["FrankPedersen ","R1, 0 - 2",null,null,null,null,null,null,null,null,null,null,null,null,null,null,null,null,null,null,null,null,null,null,null,null,null,null,null,null,null,null,null,null,null,null,null,null,null,null,null,null,null,null,null,null,null,null,null,null,null,null,null,null,null,null,null,null,null,null,null,null,null,null,null,null,null,null,null,null,null,null,null,null,null,null,null,null,null,null,null,null,null,null,null,null,null,null,null,null,null,null,null,null,null,null,null,null,null,null,"R1, 1 - 0",null,"R8, 0 - 1","R1, 0.5 - 0.5","R3, 1 - 0","R3, 0 - 1","R3, 0.5 - 0.5","R1, 1 - 0",null,"R2, 0.5 - 0.5","R2, 1 - 0","R1, 1 - 0",null,"R4, 20 - 3","R2, 1 - 0",null,"R2, 1 - 0",null,"R1, 0.5 - 0.5",null,null,"R1, 0.5 - 0.5",null,"R3, 1 - 0","R1, 1 - 0",null,"R1, 0 - 1"]
["Obeliz ",null,null,null,null,null,null,null,null,null,null,null,null,null,null,null,null,null,null,null,null,null,null,null,null,null,null,null,null,null,null,null,null,null,null,null,null,null,null,null,null,null,null,null,null,null,null,null,null,null,null,null,null,null,null,null,null,null,null,null,null,null,null,null,null,null,null,null,null,null,null,null,null,null,null,null,null,null,null,null,null,null,null,null,null,null,null,null,null,null,null,null,null,null,null,null,null,null,null,null,"R4, 0.5 - 0.5",null,null,"R1, 0.5 - 0.5","R1, 0.5 - 0.5","R1, 0 - 1","R2, 0.5 - 0.5","R4, 0 - 1","R3, 0 - 1","R2, 0 - 1","R3, 0.5 - 0.5","R2, 0.5 - 0.5",null,"R2, 1 - 0","R1, 1 - 1","R8, 0.5 - 0.5","R1, 1 - 0",null,null,"R4, 0 - 1","R2, 0 - 1","R3, 0.5 - 0.5",null,null,"R4, 0 - 1","R5, 0 - 1","R1, 1 - 0","R5, 0 - 1","R1, 1 - 0"]
["Northernknight ",null,null,null,null,null,null,null,null,null,null,null,null,null,null,null,null,null,null,null,null,null,null,null,null,null,null,null,null,null,null,null,null,null,null,null,null,null,null,null,null,null,null,null,null,null,null,null,null,null,null,null,null,null,null,null,null,null,null,null,null,null,null,null,null,null,null,null,null,null,null,null,null,null,null,null,null,null,"R1, 1 - 1",null,null,null,null,null,null,null,null,null,null,null,null,null,null,null,null,null,null,null,null,null,null,"R2, 0 - 1",null,"R1, 0.5 - 0.5","R4, 0 - 1",null,"R1, 0 - 1","R6, 1 - 0","R2, 1 - 0",null,null,null,"R2, 1 - 0","R2, 6 - 22","R6, 0.5 - 0.5",null,null,"R5, 0.5 - 0.5","R7, 0 - 1","R2, 0 - 1","R1, 1 - 0","R5, 0.5 - 0.5",null,"R1, 0.5 - 0.5","R1, 0.5 - 0.5","R6, 20 - 3","R1, 0 - 1","R1, 0 - 1"]
["Woete ",null,null,null,null,null,null,null,null,null,null,null,null,null,null,null,null,null,null,null,null,null,null,null,null,null,null,null,null,null,null,null,null,null,null,null,null,null,null,null,null,null,null,null,null,null,null,null,null,null,null,null,null,null,null,null,null,null,null,null,null,null,null,null,null,null,null,null,null,null,null,null,null,null,null,null,null,null,null,null,null,null,null,null,null,null,null,null,null,null,null,null,null,null,null,null,null,null,null,null,"R1, 0 - 1","R1, 0.5 - 0.5","R1, 2 - 0",null,null,"R3, 0.5 - 0.5","R2, 1 - 0",null,"R3, 1 - 0","R1, 0 - 1","R1, 0.5 - 0.5",null,"R2, 1 - 0","R1, 0.5 - 0.5","R3, 0.5 - 0.5","R1, 1 - 0",null,"R2, 0.5 - 0.5","R2, 0 - 1","R6, 0 - 1",null,"R1, 0.5 - 0.5",null,"R4, 0 - 1",null,"R1, 0.5 - 0.5","R3, 1 - 0","R8, 0 - 1"]
["RoterSternHochdahl",null,null,null,null,null,null,null,null,null,null,null,null,null,null,null,null,null,null,null,null,null,null,null,null,null,null,null,null,null,null,null,null,null,null,null,null,null,null,null,null,null,null,null,null,null,null,null,null,"R1, 2 - 0",null,null,null,null,null,null,null,null,null,null,null,null,null,null,null,null,null,null,null,null,null,null,null,null,null,null,null,null,null,null,null,null,null,null,null,null,null,null,null,null,null,null,null,null,null,null,null,null,null,null,"R1, 0.5 - 0.5","R4, 0 - 1","R1, 0.5 - 0.5",null,"R2, 0 - 1","R1, 0 - 1","R2, 19 - 3","R2, 0 - 1","R2, 1 - 0","R2, 1 - 0","R2, 1 - 0","R1, 1 - 0","R3, 0 - 1",null,null,"R5, 0.5 - 0.5","R2, 0 - 1","R1, 1 - 0","R2, 1 - 0","R7, 1 - 0",null,"R7, 1 - 0","R1, 0.5 - 0.5","R1, 1 - 0","R1, 0.5 - 0.5",null,null,"R3, 0.5 - 0.5"]
["Jonny_Kanone ",null,null,null,null,null,null,null,null,null,null,null,null,null,null,null,null,null,null,null,null,null,null,null,null,null,null,null,null,null,null,null,null,null,null,null,null,null,null,null,null,null,null,null,null,null,null,null,null,null,null,null,null,null,null,null,"R1, 1 - 1",null,null,null,null,null,null,null,null,null,null,null,null,null,null,null,null,null,null,null,null,null,null,null,null,null,null,null,null,null,null,null,null,null,null,null,null,null,null,null,null,null,null,null,"R1, 1 - 0","R1, 0.5 - 0.5","R4, 0.5 - 0.5",null,"R1, 0 - 1","R3, 0.5 - 0.5",null,"R2, 0.5 - 0.5",null,null,null,null,"R1, 0 - 1","R4, 0 - 1","R1, 1 - 0","R2, 0.5 - 0.5",null,null,"R1, 0.5 - 0.5","R1, 0 - 1",null,null,"R1, 1 - 0","R2, 0 - 1","R1, 1 - 0","R1, 1 - 0","R5, 0.5 - 0.5"]
["Itzla ",null,null,null,null,null,null,null,null,null,null,null,null,null,null,null,null,null,null,null,null,null,null,null,null,null,null,null,null,null,null,null,null,null,null,null,null,null,null,null,null,null,null,null,null,null,null,null,null,null,null,null,null,null,"R1, 2 - 0",null,null,null,null,null,null,null,null,null,null,null,null,null,null,null,null,null,null,null,null,null,null,null,null,null,null,null,null,null,null,null,null,null,null,null,null,null,null,null,null,null,null,null,null,null,"R2, 0 - 1","R2, 0.5 - 0.5","R6, 1 - 0","R1, 1 - 0","R1, 1 - 0","R3, 0 - 1","R4, 1 - 0","R6, 0.5 - 0.5","R1, 0 - 1","R4, 1 - 0",null,"R1, 1 - 0","R2, 0.5 - 0.5",null,null,"R1, 0 - 1","R3, 1 - 0","R3, 1 - 0","R1, 0.5 - 0.5",null,"R2, 0 - 1",null,null,"R2, 1 - 0","R1, 0 - 1",null,null,"R1, 0.5 - 0.5","R2, 12 - 10"]
["Farina ",null,null,null,null,null,null,null,null,null,null,null,null,null,null,null,null,null,null,null,null,null,null,null,null,null,null,null,null,null,null,null,null,null,null,null,null,null,null,null,null,null,null,null,null,null,null,null,null,null,null,null,null,null,null,null,null,null,null,null,null,null,null,null,null,null,null,null,null,null,null,null,null,null,null,null,null,null,null,null,null,null,"R1, 0 - 2",null,null,null,null,null,null,null,null,null,null,null,null,null,null,null,null,null,"R2, 0 - 1","R2, 1 - 0",null,"R2, 1 - 0","R3, 0.5 - 0.5",null,"R1, 0 - 1",null,"R5, 0 - 1","R4, 0.5 - 0.5","R2, 0 - 1",null,"R3, 1 - 0",null,"R4, 0 - 1",null,"R1, 1 - 0","R1, 0.5 - 0.5","R2, 0 - 1","R1, 1 - 0","R1, 0 - 1","R5, 0.5 - 0.5",null,"R1, 0 - 1","R5, 0 - 1","R1, 1 - 0",null,null,"R3, 1 - 0"]
["Garrick ",null,null,null,null,null,null,null,null,null,null,null,null,null,null,null,null,null,null,null,null,null,null,null,null,null,null,null,null,null,null,null,null,null,null,null,null,null,null,null,null,null,null,null,null,null,null,null,null,null,null,null,null,null,null,null,null,null,null,null,null,null,null,null,null,null,null,null,null,null,null,null,null,null,null,null,null,null,null,null,null,null,null,null,null,null,null,null,null,null,null,null,null,null,null,null,null,null,null,null,"R3, 1 - 0","R3, 0.5 - 0.5","R6, 1 - 0","R5, 1 - 0",null,null,null,"R1, 1 - 1","R3, 1 - 0","R2, 0 - 1","R4, 0.5 - 0.5","R5, 1 - 0","R3, 1 - 0","R3, 1 - 0","R1, 0.5 - 0.5","R2, 0.5 - 0.5","R4, 0.5 - 0.5","R1, 0.5 - 0.5","R4, 0 - 1",null,null,null,null,"R1, 0.5 - 0.5",null,"R1, 0 - 1","R2, 1 - 0","R3, 1 - 0"]
["Dark Duke ",null,null,null,null,null,null,null,null,null,null,null,null,null,null,null,null,null,null,null,null,null,null,null,null,null,null,null,null,null,null,null,null,null,null,null,null,null,null,null,null,null,null,null,null,null,null,null,null,null,null,null,null,null,null,null,null,null,null,null,null,null,null,null,null,null,null,null,null,null,null,null,null,null,null,null,null,null,null,null,null,null,null,null,null,null,null,null,null,null,null,null,null,null,"R1, 1 - 1",null,null,null,null,null,"R5, 1 - 0","R3, 0 - 1","R7, 1 - 0","R6, 0 - 1","R4, 1 - 0",null,"R1, 0.5 - 0.5","R4, 0.5 - 0.5",null,"R5, 1 - 0","R3, 0.5 - 0.5","R4, 0 - 1","R1, 1 - 0","R5, 0.5 - 0.5","R2, 1 - 0","R1, 1 - 0",null,"R5, 0 - 1","R1, 1 - 0","R1, 0.5 - 0.5",null,null,"R2, 0 - 1",null,"R6, 1 - 0","R1, 0.5 - 0.5","R1, 1 - 0",null,"R2, 1 - 0"]
["20Phoenix ",null,null,null,null,null,null,null,null,null,null,null,null,null,null,null,null,null,null,null,null,null,null,null,null,null,null,null,null,null,null,null,null,null,null,null,null,null,null,null,null,null,null,null,null,null,null,null,null,null,null,null,null,null,null,null,null,null,null,null,null,null,null,null,null,null,null,null,null,null,null,"R1, 1 - 1",null,null,null,null,null,null,null,null,null,null,null,null,null,null,null,null,null,null,null,null,null,null,null,null,null,null,null,null,"R3, 22 - 4","R2, 1 - 0","R2, 0 - 1",null,"R1, 0.5 - 0.5","R2, 1 - 0","R1, 0 - 1",null,null,"R3, 0 - 1",null,"R4, 1 - 0","R3, 1 - 0","R1, 1 - 0","R3, 0.5 - 0.5","R5, 0.5 - 0.5","R3, 0.5 - 0.5",null,null,"R4, 1 - 0","R1, 0 - 1","R1, 0.5 - 0.5","R2, 1 - 0",null,"R1, 0 - 1",null,null,null,"R1, 1 - 0"]
["Malodoror ",null,null,null,null,null,null,null,null,null,null,null,null,null,null,null,null,null,null,null,null,null,null,null,null,null,null,null,null,null,null,null,null,null,null,null,null,null,null,null,null,null,null,null,null,null,null,null,null,null,null,null,null,null,null,null,null,null,null,null,null,null,null,null,null,null,null,null,null,null,null,null,null,null,null,null,null,null,null,null,null,"R1, 2 - 0",null,null,null,null,null,null,null,null,null,null,null,null,null,null,null,null,null,null,"R4, 1 - 0","R1, 0 - 1","R3, 0.5 - 0.5","R2, 1 - 0","R5, 0 - 1","R1, 0.5 - 0.5",null,"R5, 0 - 1","R2, 0 - 1","R6, 0 - 1",null,"R3, 0 - 1",null,"R1, 0.5 - 0.5","R1, 1 - 0","R2, 0 - 1","R1, 0.5 - 0.5","R2, 0 - 1","R1, 0.5 - 0.5","R3, 1 - 0","R4, 0.5 - 0.5","R1, 1 - 0",null,null,"R5, 0.5 - 0.5","R2, 0.5 - 0.5",null,"R1, 1 - 0"]
["Bouzzy ",null,null,null,null,null,null,null,null,null,null,null,null,null,null,null,null,null,null,null,null,null,null,null,null,null,null,null,null,null,null,null,null,null,null,null,null,null,null,null,null,null,null,null,null,null,null,null,null,null,null,null,null,null,null,null,null,null,null,null,null,null,null,null,null,null,null,null,null,null,null,null,null,null,null,null,null,null,null,null,"R1, 2 - 0",null,null,null,null,null,null,null,null,null,null,null,null,null,null,null,null,null,null,null,null,null,"R4, 1 - 0","R3, 0.5 - 0.5","R3, 0.5 - 0.5","R6, 1 - 0",null,"R2, 0 - 1","R3, 0 - 1","R3, 1 - 0",null,"R4, 0.5 - 0.5","R1, 1 - 0","R2, 0 - 1","R3, 1 - 0","R1, 0.5 - 0.5","R1, 1 - 0",null,"R2, 0.5 - 0.5","R1, 0.5 - 0.5","R3, 0.5 - 0.5","R2, 0.5 - 0.5","R1, 0 - 1",null,"R2, 0 - 1",null,"R1, 1 - 0","R5, 0 - 1","R4, 1 - 0"]
["DocMaxx ",null,null,null,null,null,null,null,null,null,null,null,null,null,null,null,null,null,null,null,null,null,null,null,null,null,null,null,null,"R1, 2 - 0",null,null,null,null,null,null,null,null,null,null,null,null,null,null,null,null,null,null,null,null,null,null,null,null,null,null,null,null,null,null,null,null,null,null,null,null,null,null,null,null,null,null,null,null,null,null,null,null,null,null,null,null,null,null,null,null,null,null,null,null,null,null,null,null,null,null,null,null,null,null,"R3, 0 - 1","R4, 0.5 - 0.5","R5, 0 - 1","R3, 0.5 - 0.5","R2, 0 - 1","R4, 0 - 1","R2, 0.5 - 0.5","R3, 0 - 1",null,null,"R5, 1 - 0","R1, 1 - 0",null,"R1, 1 - 0",null,"R3, 1 - 0","R2, 1 - 0","R2, 0 - 1",null,"R1, 0.5 - 0.5","R4, 0.5 - 0.5",null,"R1, 0.5 - 0.5","R1, 0 - 1",null,null,null,"R2, 0.5 - 0.5"]
["BlackOrc ",null,null,null,null,null,null,null,null,null,null,null,null,null,null,null,null,null,null,null,null,null,null,null,null,null,null,null,null,null,null,null,null,null,null,null,null,null,null,null,"R1, 2 - 0",null,null,null,null,null,null,null,null,null,null,null,null,null,null,null,null,null,null,null,null,null,null,null,null,null,null,null,null,null,null,null,null,null,null,null,null,null,null,null,null,null,null,null,null,null,null,null,null,null,null,null,null,null,null,null,null,null,null,null,"R1, 1 - 0","R2, 0 - 1",null,null,null,null,"R3, 0 - 1","R1, 1 - 0","R2, 1 - 0",null,"R3, 1 - 0",null,null,"R1, 1 - 0",null,"R5, 1 - 0","R3, 0.5 - 0.5",null,"R2, 1 - 0",null,"R3, 0 - 1","R1, 0.5 - 0.5",null,"R6, 0 - 1","R2, 0 - 1","R1, 1 - 0",null,"R1, 0.5 - 0.5","R2, 0.5 - 0.5"]
["Kaltenland ",null,null,null,null,null,null,null,null,null,null,null,null,null,null,null,null,null,null,null,null,null,null,null,null,null,null,"R1, 1 - 1",null,null,null,null,null,null,null,null,null,null,null,null,null,null,null,null,null,null,null,null,null,null,null,null,null,null,null,null,null,null,null,null,null,null,null,null,null,null,null,null,null,null,null,null,null,null,null,null,null,null,null,null,null,null,null,null,null,null,null,null,null,null,null,null,null,null,null,null,null,null,null,null,"R6, 0.5 - 0.5",null,"R2, 1 - 0","R7, 0 - 1","R1, 0 - 1",null,"R1, 0.5 - 0.5","R5, 1 - 0",null,"R2, 0.5 - 0.5","R4, 1 - 0","R2, 1 - 0","R3, 0.5 - 0.5","R1, 21 - 4","R3, 0.5 - 0.5",null,null,"R1, 1 - 0","R3, 0.5 - 0.5","R5, 1 - 0","R2, 0 - 1","R1, 0.5 - 0.5","R5, 0.5 - 0.5","R5, 23 - 7","R1, 0 - 1",null,null,"R6, 0.5 - 0.5","R2, 0.5 - 0.5"]
["Shawass ",null,null,null,null,null,null,null,null,null,null,null,null,null,null,null,null,null,null,null,null,null,null,null,null,null,"R1, 1 - 1",null,null,null,null,null,null,null,null,null,null,null,null,null,null,null,null,null,null,null,null,null,null,null,null,null,null,null,null,null,null,null,null,null,null,null,null,null,null,null,null,null,null,null,null,null,null,null,null,null,null,null,null,null,null,null,null,null,null,null,null,null,null,null,null,null,null,null,null,null,null,null,null,null,null,"R2, 0 - 1",null,"R1, 0 - 1","R2, 1 - 0","R2, 0 - 1","R3, 0 - 1",null,"R2, 0 - 1","R2, 0 - 1","R1, 1 - 0",null,"R1, 0 - 1","R5, 0 - 1",null,null,null,"R2, 1 - 0","R3, 0.5 - 0.5","R5, 0 - 1","R1, 0 - 1","R6, 0.5 - 0.5","R6, 0.5 - 0.5","R3, 0.5 - 0.5","R3, 1 - 0","R1, 0.5 - 0.5",null,null,"R2, 0 - 1"]
["Malasnoticias ",null,null,null,null,null,null,null,null,null,null,null,null,null,null,null,null,null,null,null,null,null,null,null,null,null,null,null,null,null,null,null,null,null,null,null,null,null,null,null,null,null,null,null,null,null,null,null,null,null,null,null,null,null,null,null,null,null,null,null,null,null,null,null,null,null,null,null,null,null,null,null,null,null,null,null,null,null,null,null,null,null,null,null,null,null,null,null,null,null,null,null,null,null,null,null,null,null,null,null,null,null,null,"R2, 1 - 0",null,null,"R1, 1 - 0",null,"R3, 0.5 - 0.5",null,"R8, 0.5 - 0.5","R6, 0 - 1","R2, 0 - 1","R1, 2 - 0",null,null,"R4, 0 - 1","R3, 0 - 1","R5, 0 - 1","R1, 0.5 - 0.5",null,"R1, 0.5 - 0.5","R6, 0.5 - 0.5",null,"R3, 0.5 - 0.5",null,"R2, 0 - 1",null,"R1, 0 - 1"]
["Macabeo ",null,null,null,null,null,null,null,null,null,null,null,null,null,null,null,null,null,null,null,null,null,null,null,"R1, 0 - 2",null,null,null,null,null,null,null,null,null,null,null,null,null,null,null,null,null,null,null,null,null,null,null,null,null,null,null,null,null,null,null,null,null,null,null,null,null,null,null,null,null,null,null,null,null,null,null,null,null,null,null,null,null,null,null,null,null,null,null,null,null,null,null,null,null,null,null,null,null,null,null,null,null,null,null,"R2, 0 - 1",null,"R3, 0 - 1",null,"R4, 1 - 0","R3, 0.5 - 0.5","R2, 0 - 1","R2, 0.5 - 0.5","R1, 0.5 - 0.5","R1, 0.5 - 0.5","R3, 0.5 - 0.5","R5, 0.5 - 0.5",null,"R3, 1 - 0","R5, 0 - 1","R1, 0.5 - 0.5",null,null,"R6, 0 - 1","R2, 0 - 1","R5, 0.5 - 0.5","R3, 0.5 - 0.5","R1, 1 - 0","R8, 0.5 - 0.5","R1, 0.5 - 0.5","R6, 1 - 0",null,"R1, 1 - 0"]
["Corwin ",null,null,null,null,null,null,null,null,null,null,null,null,null,null,null,null,null,null,null,null,null,null,null,null,null,null,null,null,null,null,null,null,null,null,null,null,null,null,null,null,null,null,null,null,null,null,null,null,null,"R1, 1 - 1",null,null,null,null,null,null,null,null,null,null,null,null,null,null,null,null,null,null,null,null,null,null,null,null,null,null,null,null,null,null,null,null,null,null,null,null,null,null,null,null,null,null,null,null,null,null,null,null,null,null,"R1, 1 - 0","R4, 0.5 - 0.5","R3, 1 - 20","R7, 0 - 1","R1, 1 - 0","R8, 0.5 - 0.5","R2, 1 - 0",null,null,"R2, 0.5 - 0.5","R3, 1 - 0","R1, 0 - 1","R7, 1 - 0",null,"R3, 1 - 0","R2, 0.5 - 0.5","R5, 1 - 0","R3, 0.5 - 0.5","R1, 6 - 20","R4, 1 - 0","R4, 1 - 0","R2, 0.5 - 0.5","R1, 0 - 1","R6, 0.5 - 0.5","R2, 1 - 0","R2, 0.5 - 0.5","R2, 0.5 - 0.5","R3, 1 - 0"]
["SFisher91 ",null,null,null,null,null,null,null,null,null,"R1, 1 - 1",null,null,null,null,null,null,null,null,null,null,null,null,null,null,null,null,null,null,null,null,null,null,null,null,null,null,null,null,null,null,null,null,null,null,null,null,null,null,null,null,null,null,null,null,null,null,null,null,null,null,null,null,null,null,null,null,null,null,null,null,null,null,null,null,null,null,null,null,null,null,null,null,null,null,null,null,null,null,null,null,null,null,null,null,null,null,null,null,null,"R4, 1 - 0",null,"R3, 0.5 - 0.5",null,"R5, 0 - 1",null,null,"R3, 1 - 0","R2, 3 - 18","R2, 1 - 0","R1, 1 - 0","R3, 0 - 1",null,null,"R2, 0.5 - 0.5",null,"R3, 0.5 - 0.5",null,null,null,"R2, 1 - 0","R2, 0 - 1","R1, 0 - 1","R2, 0.5 - 0.5",null,"R2, 0.5 - 0.5","R1, 0 - 1","R2, 0.5 - 0.5","R6, 0 - 1"]
["Phoenix11 ",null,null,null,null,null,null,null,null,null,null,null,null,null,null,null,null,null,null,null,null,null,null,null,null,null,null,null,null,null,null,null,null,null,null,null,null,null,null,null,null,null,null,null,null,null,null,null,null,null,null,null,null,null,null,null,null,null,null,null,null,null,null,null,null,null,null,null,null,null,null,null,null,null,null,null,null,null,null,null,null,null,null,null,null,"R1, 0 - 2",null,null,null,null,null,null,null,null,null,null,null,null,null,null,null,"R4, 0 - 1","R2, 1 - 0",null,null,"R1, 0.5 - 0.5",null,"R2, 0.5 - 0.5","R5, 1 - 0","R3, 0.5 - 0.5","R5, 1 - 0","R6, 20 - 5",null,"R3, 0 - 1",null,"R2, 0 - 1","R1, 0 - 1","R5, 0 - 1",null,"R3, 0 - 1","R4, 0 - 1","R1, 0 - 1","R2, 1 - 0",null,"R2, 0.5 - 0.5","R1, 1 - 0","R6, 0.5 - 0.5","R6, 0.5 - 0.5","R1, 0.5 - 0.5"]
["Wolio ",null,null,null,null,null,null,null,null,null,null,null,null,null,null,null,null,null,null,null,null,null,null,null,null,null,null,null,null,null,null,null,null,null,null,null,null,null,null,null,null,null,null,null,null,null,null,null,null,null,null,null,null,"R1, 1 - 1",null,null,null,null,null,null,null,null,null,null,null,null,null,null,null,null,null,null,null,null,null,null,null,null,null,null,null,null,null,null,null,null,null,null,null,null,null,null,null,null,null,null,null,null,null,null,"R3, 1 - 0","R1, 0 - 1",null,null,"R5, 0 - 1","R6, 1 - 0",null,"R2, 0.5 - 0.5","R5, 0 - 1","R2, 0.5 - 0.5","R1, 0.5 - 0.5",null,"R6, 1 - 0","R2, 0.5 - 0.5",null,null,"R1, 0.5 - 0.5","R4, 0.5 - 0.5",null,"R1, 1 - 0","R5, 1 - 0","R4, 0.5 - 0.5","R1, 0 - 1","R4, 0.5 - 0.5","R6, 0 - 1",null,null,"R5, 0.5 - 0.5","R3, 0.5 - 0.5"]
["Reszka ",null,null,null,"R1, 1 - 1",null,null,null,null,null,null,null,null,null,null,null,null,null,null,null,null,null,null,null,null,null,null,null,null,null,null,null,null,null,null,null,null,null,null,null,null,null,null,null,null,null,null,null,null,null,null,null,null,null,null,null,null,null,null,null,null,null,null,null,null,null,null,null,null,null,null,null,null,null,null,null,null,null,null,null,null,null,null,null,null,null,null,null,null,null,null,null,null,null,null,null,null,null,null,null,null,"R8, 0.5 - 0.5","R4, 1 - 0",null,null,"R1, 1 - 0","R7, 0.5 - 0.5","R1, 0 - 1","R2, 1 - 0","R1, 1 - 0",null,null,"R1, 0.5 - 0.5","R5, 0 - 1","R3, 1 - 0","R4, 0 - 1","R1, 0 - 1",null,"R4, 0.5 - 0.5","R2, 0.5 - 0.5","R4, 0.5 - 0.5","R1, 0 - 1","R4, 3 - 18","R1, 0 - 1","R6, 1 - 0",null,"R4, 0 - 1","R1, 1 - 0","R5, 0.5 - 0.5"]
["Slimaq ",null,null,null,null,null,null,null,null,null,null,null,null,null,null,null,null,null,null,null,null,null,null,null,null,null,null,null,null,null,null,null,null,null,null,null,null,null,null,null,null,null,null,null,null,null,null,null,null,null,null,null,null,null,null,null,null,null,null,null,null,null,null,null,null,null,null,null,null,null,null,null,null,null,null,null,null,null,null,null,null,null,null,null,null,null,null,null,null,"R1, 2 - 0",null,null,null,null,null,null,null,null,null,null,null,"R4, 1 - 0","R1, 0.5 - 0.5",null,null,"R3, 1 - 0","R1, 0.5 - 0.5","R6, 0.5 - 0.5","R1, 1 - 0",null,"R6, 0.5 - 0.5","R7, 0.5 - 0.5","R2, 0.5 - 0.5","R3, 0 - 1","R4, 0 - 1","R6, 0 - 1","R1, 0.5 - 0.5","R1, 1 - 0","R4, 0 - 1","R3, 0.5 - 0.5","R5, 0 - 1","R6, 0.5 - 0.5","R1, 0.5 - 0.5","R1, 0 - 1","R5, 0.5 - 0.5","R4, 0.5 - 0.5","R6, 0.5 - 0.5","R4, 0 - 1"]
["Skuld ",null,null,null,null,null,null,null,null,null,null,null,null,null,null,null,null,null,null,null,null,null,null,null,null,null,null,null,null,null,null,null,null,null,null,null,null,null,null,null,null,null,null,null,null,null,null,null,null,null,null,null,null,null,null,null,null,null,null,null,null,null,null,null,null,null,null,null,null,null,null,null,null,null,null,null,null,null,null,null,null,null,null,null,null,null,null,null,null,null,null,null,null,null,null,null,null,null,null,null,"R1, 0 - 1","R6, 1 - 0","R5, 0.5 - 0.5",null,"R6, 20 - 5","R1, 1 - 1","R2, 0 - 1","R5, 0 - 1","R1, 23 - 3","R1, 1 - 0","R5, 0 - 1",null,"R1, 0.5 - 0.5","R1, 0 - 1","R2, 22 - 3","R1, 0 - 1","R4, 1 - 0","R3, 1 - 0","R5, 0 - 1","R4, 20 - 4","R2, 0.5 - 0.5","R1, 0 - 1","R1, 1 - 0",null,"R1, 1 - 0","R3, 1 - 0","R2, 19 - 5",null,"R1, 1 - 0"]
["Balder ",null,null,null,null,null,null,null,null,null,null,null,null,null,null,null,null,null,null,null,null,null,null,null,null,null,null,null,null,null,null,null,null,null,null,null,null,null,null,null,null,null,null,null,null,null,null,null,null,null,null,null,null,null,null,null,null,null,null,null,null,null,null,null,null,null,null,null,null,null,null,null,null,null,null,null,null,null,null,null,null,null,null,null,null,null,null,null,null,null,null,"R1, 1 - 1",null,null,null,null,null,null,null,null,null,null,null,"R5, 0.5 - 0.5","R1, 0 - 1","R5, 0 - 1",null,"R2, 0 - 1","R6, 0 - 1","R1, 1 - 0","R1, 0 - 1",null,null,"R1, 1 - 0","R4, 0.5 - 0.5","R3, 0.5 - 0.5","R2, 0 - 1",null,null,"R4, 0.5 - 0.5","R1, 1 - 0",null,"R4, 0 - 1","R5, 0.5 - 0.5","R5, 0 - 1","R3, 1 - 0","R1, 0.5 - 0.5","R1, 0 - 1"]
["Dionysian ",null,null,null,null,null,null,null,null,null,null,null,null,null,null,null,null,null,null,null,null,null,null,null,null,null,null,null,null,null,null,null,null,null,null,null,null,null,null,null,null,null,"R1, 2 - 0",null,null,null,null,null,null,null,null,null,null,null,null,null,null,null,null,null,null,null,null,null,null,null,null,null,null,null,null,null,null,null,null,null,null,null,null,null,null,null,null,null,null,null,null,null,null,null,null,null,null,null,null,null,null,null,null,null,"R4, 0.5 - 0.5",null,"R5, 18 - 2","R1, 0.5 - 0.5",null,null,null,"R4, 19 - 2","R6, 0 - 1","R6, 0 - 1",null,"R2, 0.5 - 0.5",null,"R4, 1 - 0","R1, 1 - 0","R5, 0 - 1","R3, 0 - 1","R4, 1 - 0","R2, 1 - 0",null,"R1, 1 - 0","R5, 0 - 1","R8, 1 - 0","R1, 1 - 0",null,"R6, 1 - 0","R1, 0 - 1","R3, 1 - 0","R1, 0.5 - 0.5"]
["Harza ",null,null,null,null,null,null,null,null,null,null,null,null,null,null,null,null,null,null,null,null,null,null,null,null,null,null,null,null,null,null,null,null,null,null,null,null,null,null,null,null,null,null,null,null,null,null,null,null,null,null,null,null,null,null,null,null,null,null,null,null,null,null,null,null,null,null,null,null,null,null,null,null,null,null,null,null,null,null,null,null,null,null,null,null,null,null,null,null,null,null,null,null,null,null,null,null,null,null,"R1, 2 - 0","R5, 0.5 - 0.5","R4, 0 - 1",null,null,"R1, 0 - 1","R2, 0.5 - 0.5","R5, 1 - 0","R1, 1 - 0",null,"R1, 9 - 10",null,"R4, 0 - 1","R6, 0.5 - 0.5",null,"R4, 0.5 - 0.5","R1, 0 - 1","R5, 0.5 - 0.5",null,"R3, 0.5 - 0.5","R3, 1 - 0",null,"R1, 1 - 0","R5, 1 - 0","R3, 0 - 1","R4, 0.5 - 0.5",null,"R1, 0 - 1","R1, 1 - 0","R3, 0 - 1"]
["Idroj ",null,null,null,null,null,null,null,null,null,null,null,null,null,null,null,null,null,null,null,null,null,null,null,null,"R1, 0 - 2",null,null,null,null,null,null,null,null,null,null,null,null,null,null,null,null,null,null,null,null,null,null,null,null,null,null,null,null,null,null,null,null,null,null,null,null,null,null,null,null,null,null,null,null,null,null,null,null,null,null,null,null,null,null,null,null,null,null,null,null,null,null,null,null,null,null,null,null,null,null,null,null,null,null,null,"R3, 0.5 - 0.5","R4, 0 - 1",null,null,null,"R1, 0 - 1","R3, 1 - 0",null,"R4, 1 - 0","R1, 0 - 1","R1, 0 - 1","R1, 0 - 1",null,"R5, 1 - 0","R4, 0.5 - 0.5","R2, 0 - 1",null,"R1, 0.5 - 0.5","R4, 0.5 - 0.5",null,"R1, 0 - 1","R1, 0.5 - 0.5","R3, 1 - 0","R1, 0 - 1","R1, 0 - 1","R5, 0.5 - 0.5",null,"R4, 0 - 1"]
["Faccko ",null,null,null,null,null,null,null,null,null,null,null,null,null,null,null,null,null,null,null,null,null,null,null,null,null,null,null,null,null,null,null,null,null,null,null,null,null,null,null,null,null,null,null,null,null,null,null,null,null,null,null,null,null,null,null,null,null,null,null,null,null,null,null,null,null,null,null,null,null,null,null,null,null,null,null,null,null,null,null,null,null,null,null,null,null,null,null,null,null,null,null,null,null,null,null,null,null,null,null,"R1, 0.5 - 0.5",null,null,"R6, 1 - 0",null,"R2, 20 - 3","R2, 0.5 - 0.5",null,null,"R1, 1 - 0","R1, 0 - 1","R1, 0 - 1","R1, 0.5 - 0.5","R5, 0 - 1",null,"R3, 0 - 1","R6, 0 - 1","R4, 0.5 - 0.5","R6, 0 - 1",null,null,"R2, 1 - 0",null,"R1, 1 - 0","R6, 0 - 1","R2, 0.5 - 0.5","R1, 0.5 - 0.5","R1, 1 - 1"]
["MacWitt ",null,null,null,null,null,null,null,null,null,null,null,null,null,null,null,null,null,null,null,null,null,null,null,null,null,null,null,null,null,null,null,null,null,null,null,null,null,"R1, 0 - 2",null,null,null,null,null,null,null,null,null,null,null,null,null,null,null,null,null,null,null,null,null,null,null,null,null,null,null,null,null,null,null,null,null,null,null,null,null,null,null,null,null,null,null,null,null,null,null,null,null,null,null,null,null,null,null,null,null,null,null,null,null,"R4, 0 - 1","R3, 0.5 - 0.5","R1, 1 - 0","R5, 1 - 0","R1, 0 - 1","R1, 0.5 - 0.5","R1, 1 - 0","R1, 0 - 1",null,null,null,"R1, 0 - 1","R2, 0.5 - 0.5","R3, 1 - 0","R8, 1 - 0",null,null,"R2, 0.5 - 0.5","R6, 0.5 - 0.5","R5, 0 - 1","R2, 0.5 - 0.5","R2, 1 - 0","R1, 1 - 0","R6, 0.5 - 0.5","R1, 0 - 1","R1, 0 - 1","R2, 1 - 0","R2, 0.5 - 0.5","R5, 0 - 1"]
["Pellevin ",null,null,null,null,null,null,null,null,null,null,null,null,null,null,null,null,null,null,null,null,null,null,null,null,null,null,null,null,null,null,null,null,null,null,null,null,null,null,null,null,null,null,null,null,null,null,null,null,null,null,null,null,null,null,null,null,null,null,null,null,null,null,null,null,null,null,null,null,null,null,null,null,null,null,null,null,null,null,null,null,null,null,null,null,null,null,null,null,null,null,null,null,null,null,null,null,null,null,null,"R5, 1 - 0","R6, 0 - 1",null,"R6, 0.5 - 0.5","R4, 0 - 1",null,"R7, 0 - 1",null,"R5, 1 - 0","R1, 0 - 1","R1, 0.5 - 0.5",null,"R1, 0.5 - 0.5","R6, 0 - 1",null,"R5, 1 - 0","R2, 1 - 0",null,null,"R3, 0 - 1","R2, 1 - 0",null,"R1, 2 - 0",null,"R3, 1 - 0","R3, 0.5 - 0.5","R2, 1 - 0","R6, 0.5 - 0.5","R2, 0 - 1"]
["Araznaroth ",null,null,"R1, 0 - 2",null,null,null,null,null,null,null,null,null,null,null,null,null,null,null,null,null,null,null,null,null,null,null,null,null,null,null,null,null,null,null,null,null,null,null,null,null,null,null,null,null,null,null,null,null,null,null,null,null,null,null,null,null,null,null,null,null,null,null,null,null,null,null,null,null,null,null,null,null,null,null,null,null,null,null,null,null,null,null,null,null,null,null,null,null,null,null,null,null,null,null,null,null,null,null,null,null,null,"R4, 0.5 - 0.5",null,"R6, 0.5 - 0.5","R3, 0.5 - 0.5",null,"R1, 1 - 0","R4, 0.5 - 0.5",null,"R1, 1 - 0",null,null,"R6, 1 - 0","R1, 0.5 - 0.5","R4, 0.5 - 0.5","R3, 0 - 1","R5, 1 - 0","R2, 1 - 0","R2, 1 - 0",null,"R5, 1 - 0","R4, 1 - 0","R2, 1 - 0","R3, 0 - 1","R1, 0.5 - 0.5","R2, 1 - 0","R1, 1 - 0"]
["JimJimany ",null,null,null,null,null,null,null,null,null,null,null,null,null,null,null,null,null,null,null,null,null,null,null,null,null,null,null,null,null,null,null,null,null,null,null,null,null,null,null,null,null,null,null,null,null,null,null,null,null,null,null,null,null,null,null,null,null,null,null,null,null,null,null,null,null,null,null,null,null,null,null,null,null,null,null,null,null,null,null,null,null,null,null,null,null,null,null,null,null,null,null,null,null,null,null,null,null,null,null,"R1, 0 - 2","R6, 0.5 - 0.5",null,"R4, 1 - 0","R2, 0.5 - 0.5","R1, 0 - 1","R1, 0 - 1",null,"R4, 0 - 1",null,null,null,"R1, 1 - 0",null,"R2, 1 - 0",null,null,null,"R3, 1 - 0","R3, 0.5 - 0.5","R6, 0.5 - 0.5","R1, 0 - 1",null,"R2, 1 - 0","R4, 0 - 1","R4, 0.5 - 0.5","R8, 0 - 1","R2, 0 - 1"]
["zulu ",null,null,null,null,null,null,null,"R1, 0 - 2",null,null,null,null,null,null,null,null,null,null,null,null,null,null,null,null,null,null,null,null,null,null,null,null,null,null,null,null,null,null,null,null,null,null,null,null,null,null,null,null,null,null,null,null,null,null,null,null,null,null,null,null,null,null,null,null,null,null,null,null,null,null,null,null,null,null,null,null,null,null,null,null,null,null,null,null,null,null,null,null,null,null,null,null,null,null,null,null,null,null,null,"R6, 0.5 - 0.5",null,"R5, 0.5 - 0.5","R1, 0.5 - 0.5","R2, 0 - 1","R6, 0.5 - 0.5",null,null,"R1, 0.5 - 0.5","R3, 0 - 1","R2, 0.5 - 0.5","R1, 0 - 1",null,"R2, 0.5 - 0.5","R7, 0 - 1",null,null,"R4, 0.5 - 0.5",null,"R2, 1 - 0","R5, 0.5 - 0.5","R7, 1 - 0",null,"R2, 1 - 0","R2, 0 - 1",null,"R3, 0.5 - 0.5","R3, 0 - 1","R1, 1 - 0"]
["mynock ",null,null,null,null,null,null,null,null,null,null,null,null,null,null,null,null,null,null,null,null,null,null,null,null,null,null,null,null,null,null,null,null,null,null,null,null,null,null,null,null,null,null,null,null,null,null,null,null,null,null,null,null,null,null,null,null,null,null,null,null,null,null,null,null,null,null,null,null,"R1, 0 - 2",null,null,null,null,null,null,null,null,null,null,null,null,null,null,null,null,null,null,null,null,null,null,null,null,null,null,null,null,null,null,"R1, 0 - 1",null,null,null,null,"R1, 0.5 - 0.5","R1, 1 - 0",null,"R5, 1 - 0",null,"R2, 0 - 1",null,"R1, 0 - 1","R2, 1 - 0",null,null,"R5, 0.5 - 0.5","R6, 1 - 0","R4, 1 - 0","R2, 0 - 1","R3, 0.5 - 0.5",null,"R2, 0.5 - 0.5","R1, 1 - 0",null,null,null,null,"R2, 1 - 0"]
["Strider84 ",null,null,null,null,null,null,null,null,null,null,null,null,null,null,null,null,null,null,null,null,null,null,null,null,null,null,null,null,null,null,null,null,null,null,null,null,null,null,null,null,null,null,null,null,null,null,null,null,null,null,null,null,null,null,null,null,null,null,null,null,null,null,null,null,"R1, 0 - 2",null,null,null,null,null,null,null,null,null,null,null,null,null,null,null,null,null,null,null,null,null,null,null,null,null,null,null,null,null,null,null,null,null,null,null,"R1, 0 - 1","R6, 1 - 0",null,null,null,null,"R4, 0 - 1","R8, 1 - 0",null,"R1, 1 - 0","R1, 0.5 - 0.5",null,"R4, 0 - 1","R3, 0 - 1","R6, 0 - 1","R2, 0 - 1",null,"R3, 1 - 0",null,null,"R2, 0.5 - 0.5",null,"R2, 1 - 0","R5, 0 - 1","R7, 0.5 - 0.5","R6, 0 - 1","R2, 0.5 - 0.5","R4, 0.5 - 0.5"]
["Phifoe ",null,null,null,null,null,null,null,null,null,null,null,null,null,null,"R1, 0 - 2",null,null,null,null,null,null,null,null,null,null,null,null,null,null,null,null,null,null,null,null,null,null,null,null,null,null,null,null,null,null,null,null,null,null,null,null,null,null,null,null,null,null,null,null,null,null,null,null,null,null,null,null,null,null,null,null,null,null,null,null,null,null,null,null,null,null,null,null,null,null,null,null,null,null,null,null,null,null,null,null,null,null,null,null,"R5, 1 - 0",null,"R3, 0 - 1","R3, 1 - 0","R3, 0.5 - 0.5","R1, 0 - 1","R2, 0.5 - 0.5","R3, 1 - 0",null,"R5, 0 - 1","R1, 0 - 1",null,"R1, 0.5 - 0.5","R6, 0.5 - 0.5","R1, 0 - 1",null,null,"R6, 10 - 11","R2, 1 - 0","R2, 0 - 1","R2, 1 - 0","R1, 1 - 0",null,"R4, 1 - 0","R4, 0 - 1",null,null,"R1, 0 - 1","R3, 1 - 0"]
["JohnnyD ",null,null,null,null,null,null,null,null,null,null,null,null,null,null,null,null,null,null,null,null,null,null,null,null,null,null,null,null,null,"R1, 1 - 1",null,null,null,null,null,null,null,null,null,null,null,null,null,null,null,null,null,null,null,null,null,null,null,null,null,null,null,null,null,null,null,null,null,null,null,null,null,null,null,null,null,null,null,null,null,null,null,null,null,null,null,null,null,null,null,null,null,null,null,null,null,null,null,null,null,null,null,null,null,null,"R1, 0 - 1","R1, 0.5 - 0.5",null,null,"R1, 1 - 0",null,null,"R1, 1 - 0",null,"R1, 0.5 - 0.5","R8, 1 - 0",null,"R2, 0.5 - 0.5","R1, 0 - 1",null,"R6, 0 - 1",null,"R6, 1 - 0","R6, 0.5 - 0.5","R4, 0.5 - 0.5",null,"R4, 1 - 0",null,"R1, 1 - 0","R2, 0 - 1","R3, 0.5 - 0.5","R4, 1 - 0"]
["Dekra1979 ",null,null,null,null,null,null,null,null,"R1, 1 - 1",null,null,null,null,null,null,null,null,null,null,null,null,null,null,null,null,null,null,null,null,null,null,null,null,null,null,null,null,null,null,null,null,null,null,null,null,null,null,null,null,null,null,null,null,null,null,null,null,null,null,null,null,null,null,null,null,null,null,null,null,null,null,null,null,null,null,null,null,null,null,null,null,null,null,null,null,null,null,null,null,null,null,null,null,null,null,null,null,null,null,"R1, 0.5 - 0.5",null,"R2, 0 - 1",null,null,"R1, 0.5 - 0.5","R4, 1 - 0","R1, 1 - 0","R1, 0.5 - 0.5","R1, 0 - 1","R2, 0.5 - 0.5",null,"R3, 0 - 1","R1, 0.5 - 0.5",null,"R5, 0.5 - 0.5","R6, 1 - 0",null,"R7, 0 - 1",null,null,"R4, 0.5 - 0.5",null,"R6, 0.5 - 0.5","R4, 1 - 0",null,"R1, 0.5 - 0.5","R1, 1 - 0","R5, 1 - 0"]
["straume ",null,null,null,null,null,null,null,null,null,null,null,null,null,null,null,null,null,null,null,null,null,null,null,null,null,null,null,null,null,null,null,null,null,null,null,null,null,null,null,null,null,null,null,null,null,null,null,null,null,null,null,null,null,null,null,null,null,null,null,null,null,null,null,null,null,null,null,null,null,null,null,null,null,null,null,null,null,null,null,null,null,null,null,null,null,null,null,null,null,null,null,"R1, 0 - 2",null,null,null,null,null,null,null,"R3, 1 - 0","R5, 0.5 - 0.5","R5, 0 - 1","R3, 0 - 1",null,null,"R1, 0.5 - 0.5","R5, 0.5 - 0.5",null,"R3, 0 - 1","R1, 0.5 - 0.5","R1, 1 - 0","R1, 1 - 0","R4, 0.5 - 0.5","R6, 0.5 - 0.5","R2, 0.5 - 0.5",null,"R2, 1 - 0","R4, 0.5 - 0.5",null,null,"R4, 0 - 1",null,null,"R6, 1 - 0","R1, 1 - 0","R4, 0.5 - 0.5","R2, 0.5 - 0.5","R6, 0.5 - 0.5"]
["Barry ",null,null,null,null,null,null,null,null,null,null,null,null,null,null,null,null,null,null,null,null,null,null,null,null,null,null,null,null,null,null,null,null,"R1, 1 - 1",null,null,null,null,null,null,null,null,null,null,null,null,null,null,null,null,null,null,null,null,null,null,null,null,null,null,null,null,null,null,null,null,null,null,null,null,null,null,null,null,null,null,null,null,null,null,null,null,null,null,null,null,null,null,null,null,null,null,null,null,null,null,null,null,null,null,"R3, 0.5 - 0.5","R2, 1 - 0",null,"R3, 0 - 1","R1, 0 - 1","R1, 1 - 0","R2, 1 - 0","R1, 0 - 1","R1, 1 - 0","R1, 1 - 0",null,"R5, 1 - 0","R7, 0.5 - 0.5","R2, 0 - 1",null,null,null,"R2, 0 - 1",null,"R6, 0.5 - 0.5","R1, 0.5 - 0.5","R2, 0.5 - 0.5","R4, 0 - 1",null,"R1, 1 - 0","R4, 0.5 - 0.5"]
["Tactel ",null,null,null,null,null,null,null,null,null,null,null,null,null,null,null,null,"R1, 0 - 2",null,null,null,null,null,null,null,null,null,null,null,null,null,null,null,null,null,null,null,null,null,null,null,null,null,null,null,null,null,null,null,null,null,null,null,null,null,null,null,null,null,null,null,null,null,null,null,null,null,null,null,null,null,null,null,null,null,null,null,null,null,null,null,null,null,null,null,null,null,null,null,null,null,null,null,null,null,null,null,null,null,null,"R3, 3 - 20",null,"R1, 0.5 - 0.5","R1, 0.5 - 0.5","R1, 0 - 1",null,null,"R1, 1 - 0","R1, 0.5 - 0.5","R1, 1 - 0",null,"R3, 1 - 0","R5, 1 - 0",null,"R5, 1 - 0",null,"R6, 1 - 0","R6, 0.5 - 0.5",null,"R1, 1 - 0",null,"R2, 0.5 - 0.5","R6, 0 - 1","R3, 1 - 0",null,"R3, 1 - 0","R4, 1 - 0","R4, 0 - 1","R1, 0 - 1"]
["Pidpad ",null,null,null,null,null,null,null,null,null,null,null,null,null,null,null,null,null,null,null,null,null,null,null,null,null,null,null,null,null,null,null,null,null,null,null,null,null,null,null,null,null,null,null,null,null,null,null,null,null,null,null,null,null,null,null,null,null,null,null,null,null,null,null,null,null,null,null,null,null,null,null,null,null,null,null,null,null,null,null,null,null,null,null,null,null,null,null,null,null,null,null,null,null,null,null,null,null,"R1, 0 - 2",null,"R1, 1 - 0","R3, 1 - 0","R3, 0 - 1","R1, 0.5 - 0.5",null,"R5, 0.5 - 0.5",null,null,"R3, 0.5 - 0.5","R1, 1 - 0","R1, 0.5 - 0.5","R1, 1 - 0","R1, 0 - 1","R1, 0.5 - 0.5","R4, 0 - 1",null,null,"R1, 0 - 1",null,null,"R6, 0 - 1","R6, 1 - 0","R1, 1 - 0","R5, 0 - 1","R4, 0.5 - 0.5","R4, 0 - 1","R1, 1 - 0","R6, 5 - 18","R2, 0.5 - 0.5"]
["Elrik ",null,null,null,null,null,null,null,null,null,null,null,null,null,null,null,"R1, 1 - 1",null,null,null,null,null,null,null,null,null,null,null,null,null,null,null,null,null,null,null,null,null,null,null,null,null,null,null,null,null,null,null,null,null,null,null,null,null,null,null,null,null,null,null,null,null,null,null,null,null,null,null,null,null,null,null,null,null,null,null,null,null,null,null,null,null,null,null,null,null,null,null,null,null,null,null,null,null,null,null,null,null,null,null,null,null,null,"R4, 1 - 0","R3, 1 - 0","R3, 0.5 - 0.5","R1, 0.5 - 0.5",null,null,null,null,"R1, 1 - 0",null,null,"R2, 0.5 - 0.5","R6, 0 - 1","R5, 1 - 0",null,null,null,null,"R6, 0 - 1","R4, 0 - 1","R1, 1 - 0",null,"R1, 11 - 11",null,"R6, 0 - 1","R4, 0 - 1"]
["Simon_ACP ",null,null,null,null,null,null,null,null,null,null,null,null,null,null,null,null,null,null,null,null,null,null,null,null,null,null,null,null,null,null,null,null,null,null,null,null,null,null,null,null,null,null,null,null,null,null,null,null,null,null,null,null,null,null,null,null,null,null,null,null,null,null,null,null,null,null,null,null,null,null,null,null,null,null,null,null,null,null,null,null,null,null,null,null,null,null,null,null,null,null,null,null,null,null,null,null,null,null,null,"R5, 0.5 - 0.5","R6, 1 - 0","R4, 0.5 - 0.5","R2, 0.5 - 0.5","R2, 0 - 1","R1, 0.5 - 0.5","R1, 0 - 1","R6, 0 - 1","R2, 1 - 0",null,"R3, 0 - 1","R4, 0.5 - 0.5",null,null,null,"R1, 0 - 2","R1, 0 - 1",null,"R3, 0 - 1",null,"R1, 0 - 1","R2, 1 - 0",null,null,"R7, 0 - 1","R3, 0.5 - 0.5",null,"R2, 0 - 1"]
["sann0638 ",null,null,null,null,null,null,null,null,null,null,null,null,null,null,null,null,null,null,null,null,null,null,null,null,null,null,null,null,null,null,null,null,null,null,null,null,null,null,null,null,null,null,null,null,null,null,null,null,null,null,null,null,null,null,null,null,null,null,null,null,null,null,null,null,null,null,null,null,null,null,null,null,null,null,null,null,null,null,null,null,null,null,null,null,null,null,null,null,null,null,null,null,"R1, 1 - 1",null,null,null,null,null,null,"R1, 0 - 1","R2, 0.5 - 0.5","R2, 0.5 - 0.5","R1, 0.5 - 0.5",null,"R2, 0.5 - 0.5","R5, 0.5 - 0.5","R2, 18 - 4","R1, 1 - 0","R5, 1 - 0","R4, 0.5 - 0.5","R2, 0 - 1","R1, 0 - 1","R3, 0 - 1","R3, 0 - 1",null,null,"R4, 1 - 0","R1, 0.5 - 0.5","R1, 0.5 - 0.5","R3, 0 - 1","R3, 1 - 0","R2, 0 - 1","R1, 0 - 1","R1, 0.5 - 0.5",null,"R2, 1 - 0","R6, 0.5 - 0.5","R2, 0.5 - 0.5"]
["Goss ",null,null,null,null,null,null,null,null,null,null,null,null,null,null,null,null,null,null,null,null,null,null,null,null,null,null,null,null,null,null,null,null,null,null,null,null,null,null,null,null,null,null,null,null,null,null,null,null,null,null,null,null,null,null,null,null,null,null,null,"R1, 0 - 2",null,null,null,null,null,null,null,null,null,null,null,null,null,null,null,null,null,null,null,null,null,null,null,null,null,null,null,null,null,null,null,null,null,null,null,null,null,null,null,null,"R2, 0 - 1",null,"R5, 0.5 - 0.5","R1, 0 - 1",null,"R2, 0 - 1","R1, 0.5 - 0.5","R2, 0.5 - 0.5","R2, 21 - 4","R1, 0.5 - 0.5",null,"R4, 1 - 0","R1, 1 - 0","R1, 1 - 0","R2, 1 - 0",null,null,"R3, 0.5 - 0.5","R3, 0.5 - 0.5",null,"R5, 0 - 1","R1, 0.5 - 0.5","R2, 1 - 0",null,"R2, 0.5 - 0.5","R6, 0 - 1",null,"R2, 0.5 - 0.5"]
["Muadib ",null,null,null,null,null,null,null,null,null,null,null,null,null,null,null,null,null,null,null,null,null,null,null,null,null,null,null,null,null,null,null,null,null,null,null,null,null,null,null,null,null,null,null,null,null,null,null,null,null,null,null,null,null,null,null,null,null,null,"R1, 2 - 0",null,null,null,null,null,null,null,null,null,null,null,null,null,null,null,null,null,null,null,null,null,null,null,null,null,null,null,null,null,null,null,null,null,null,null,null,null,null,null,null,"R1, 1 - 0","R6, 1 - 0","R1, 1 - 0","R5, 0.5 - 0.5","R2, 0 - 1",null,"R4, 1 - 0","R3, 0 - 1",null,"R3, 0 - 1","R1, 1 - 0","R4, 0.5 - 0.5","R1, 1 - 0","R2, 0.5 - 0.5",null,"R3, 0 - 1",null,"R1, 1 - 0",null,"R3, 0 - 1","R1, 0.5 - 0.5","R5, 0.5 - 0.5","R2, 0 - 1","R3, 0 - 1","R8, 0 - 1","R3, 0.5 - 0.5","R1, 1 - 0","R2, 0 - 1"]
["swifty ",null,null,null,null,null,null,null,null,null,null,null,null,null,null,null,null,null,null,null,null,null,null,null,null,null,null,null,null,null,null,null,null,null,null,null,null,null,null,null,null,null,null,null,null,null,null,null,null,null,null,null,null,null,null,null,null,null,null,null,null,null,null,"R1, 2 - 0",null,null,null,null,null,null,null,null,null,null,null,null,null,null,null,null,null,null,null,null,null,null,null,null,null,null,null,null,null,null,null,null,null,null,null,null,"R2, 1 - 0","R1, 1 - 0","R2, 0 - 1","R6, 0 - 1","R1, 1 - 0","R4, 0 - 1","R2, 0.5 - 0.5","R4, 0.5 - 0.5","R1, 1 - 0","R4, 1 - 0",null,"R3, 1 - 0","R5, 0.5 - 0.5","R3, 0 - 1","R3, 0 - 1","R1, 0.5 - 0.5","R3, 1 - 0","R2, 0.5 - 0.5","R1, 0.5 - 0.5","R3, 1 - 0","R5, 0.5 - 0.5",null,"R4, 0.5 - 0.5",null,"R2, 0.5 - 0.5","R2, 1 - 0","R7, 0 - 1","R1, 1 - 0","R3, 0 - 1"]
["Matte8 ",null,null,null,null,null,null,null,null,null,null,null,null,null,null,null,null,null,null,null,null,null,null,null,null,null,null,null,null,null,null,null,null,null,null,null,null,null,null,null,null,null,null,null,null,null,null,null,null,null,null,null,null,null,null,null,null,null,null,null,null,null,null,null,null,null,null,null,null,null,null,null,null,null,null,null,null,null,null,null,null,null,null,null,null,null,null,null,null,null,null,null,null,null,null,null,null,null,null,null,"R5, 0 - 1","R1, 0.5 - 0.5","R2, 0.5 - 0.5","R2, 1 - 0","R5, 1 - 0","R5, 0 - 1",null,null,"R4, 0.5 - 0.5","R1, 0.5 - 0.5",null,"R1, 0.5 - 0.5","R4, 0 - 1","R6, 0 - 1","R1, 0 - 1",null,"R1, 0.5 - 0.5","R3, 1 - 0","R1, 1 - 1",null,null,"R2, 0 - 1","R2, 0.5 - 0.5",null,"R2, 0 - 1",null,null,null,"R5, 1 - 0"]
["Joanet ",null,null,null,null,null,null,null,null,null,null,null,null,null,null,null,null,null,null,null,null,null,null,null,null,null,null,null,null,null,null,null,null,null,null,null,null,null,null,null,null,null,null,null,null,null,null,null,null,null,null,null,null,null,null,null,null,null,null,null,null,"R1, 0 - 2",null,null,null,null,null,null,null,null,null,null,null,null,null,null,null,null,null,null,null,null,null,null,null,null,null,null,null,null,null,null,null,null,null,null,null,null,null,null,"R4, 0.5 - 0.5",null,"R7, 0 - 1",null,"R5, 0 - 1","R1, 1 - 0","R1, 1 - 0","R5, 0 - 1",null,"R2, 1 - 0","R4, 0 - 1","R1, 0.5 - 0.5","R4, 0 - 1","R1, 1 - 0","R3, 1 - 0","R3, 1 - 0","R2, 0 - 1","R1, 1 - 0","R5, 0.5 - 0.5",null,"R3, 0.5 - 0.5",null,"R3, 0.5 - 0.5","R2, 0 - 1",null,"R5, 1 - 0","R1, 0.5 - 0.5","R2, 0 - 1","R3, 0 - 1"]
["SpecialOne ",null,null,null,null,"R1, 2 - 0",null,null,null,null,null,null,null,null,null,null,null,null,null,null,null,null,null,null,null,null,null,null,null,null,null,null,null,null,null,null,null,null,null,null,null,null,null,null,null,null,null,null,null,null,null,null,null,null,null,null,null,null,null,null,null,null,null,null,null,null,null,null,null,null,null,null,null,null,null,null,null,null,null,null,null,null,null,null,null,null,null,null,null,null,null,null,null,null,null,null,null,null,null,null,"R1, 0 - 1","R2, 0 - 1","R6, 1 - 0","R4, 0.5 - 0.5",null,null,"R4, 1 - 0","R1, 1 - 0","R5, 1 - 0","R1, 0 - 1","R2, 1 - 0","R2, 4 - 21","R4, 0.5 - 0.5","R2, 1 - 0","R2, 0.5 - 0.5","R1, 1 - 0",null,"R3, 0 - 1","R8, 1 - 0","R3, 0.5 - 0.5",null,null,"R2, 0 - 1",null,"R5, 0.5 - 0.5","R5, 1 - 0","R2, 1 - 0","R4, 0.5 - 0.5","R2, 0.5 - 0.5"]
["Prince ",null,null,null,null,null,null,null,null,null,null,null,null,null,null,null,null,null,null,null,null,null,null,null,null,null,null,null,null,null,null,null,null,null,null,null,null,null,null,null,null,null,null,null,null,null,null,null,"R1, 2 - 0",null,null,null,null,null,null,null,null,null,null,null,null,null,null,null,null,null,null,null,null,null,null,null,null,null,null,null,null,null,null,null,null,null,null,null,null,null,null,null,null,null,null,null,null,null,null,null,null,null,null,null,"R1, 0 - 1","R1, 0 - 1",null,"R3, 0.5 - 0.5",null,"R3, 0 - 1","R1, 0.5 - 0.5","R2, 0 - 1","R3, 1 - 0",null,"R7, 1 - 0","R5, 0.5 - 0.5","R5, 1 - 0","R4, 0 - 1","R1, 6 - 22","R4, 0.5 - 0.5","R1, 0 - 1","R2, 0.5 - 0.5","R5, 0.5 - 0.5","R4, 0.5 - 0.5","R4, 0.5 - 0.5","R1, 0 - 1","R5, 0 - 1","R3, 1 - 0","R1, 1 - 0","R6, 0 - 1","R3, 0 - 1","R3, 1 - 0","R2, 1 - 0"]
["GreatWhiteHope ",null,null,null,null,null,"R1, 0 - 2",null,null,null,null,null,null,null,null,null,null,null,null,null,null,null,null,null,null,null,null,null,null,null,null,null,null,null,null,null,null,null,null,null,null,null,null,null,null,null,null,null,null,null,null,null,null,null,null,null,null,null,null,null,null,null,null,null,null,null,null,null,null,null,null,null,null,null,null,null,null,null,null,null,null,null,null,null,null,null,null,null,null,null,null,null,null,null,null,null,null,null,null,null,null,null,"R6, 0.5 - 0.5","R1, 1 - 0","R2, 0 - 1","R2, 1 - 0","R2, 1 - 0","R2, 0 - 1","R2, 0 - 1","R1, 0.5 - 0.5",null,null,"R4, 0 - 1","R7, 0 - 1","R4, 0 - 1","R2, 0.5 - 0.5","R1, 1 - 0","R5, 1 - 0",null,null,null,"R1, 0 - 1",null,null,null,"R3, 1 - 0","R3, 0 - 1","R1, 0.5 - 0.5","R7, 0 - 1"]
["Bernuz ",null,null,null,null,null,null,null,null,null,null,null,null,null,null,null,null,null,null,null,null,null,null,null,null,null,null,null,null,null,null,null,null,null,null,null,null,null,null,null,null,null,null,null,null,null,null,null,null,null,null,null,null,null,null,null,null,null,null,null,null,null,null,null,null,null,null,null,null,null,null,null,null,null,null,null,null,null,null,null,null,null,null,null,null,null,null,null,null,null,null,null,null,null,null,null,null,null,null,null,"R2, 0 - 1",null,null,"R1, 1 - 0","R1, 2 - 0","R2, 0.5 - 0.5","R2, 1 - 0","R1, 1 - 0","R2, 0 - 1",null,null,null,"R2, 0 - 1","R4, 1 - 0","R4, 0.5 - 0.5","R4, 0.5 - 0.5",null,"R5, 1 - 0","R4, 0.5 - 0.5","R4, 0.5 - 0.5","R5, 0.5 - 0.5",null,"R3, 1 - 0",null,"R2, 0.5 - 0.5","R3, 1 - 0","R6, 0.5 - 0.5","R5, 0 - 1"]
["MadeofWelsh ",null,null,null,null,null,null,null,null,null,null,null,null,null,null,null,null,null,null,null,null,null,null,null,null,null,null,null,null,null,null,null,null,null,null,null,null,null,null,null,null,null,null,null,null,null,null,null,null,null,null,null,null,null,null,null,null,null,null,null,null,null,null,null,null,null,null,null,null,null,"R1, 2 - 0",null,null,null,null,null,null,null,null,null,null,null,null,null,null,null,null,null,null,null,null,null,null,null,null,null,null,null,null,null,"R2, 1 - 0","R1, 0.5 - 0.5",null,null,null,"R2, 0.5 - 0.5","R5, 0.5 - 0.5","R2, 4 - 21","R2, 1 - 0","R2, 1 - 0",null,"R1, 0.5 - 0.5","R4, 1 - 0","R4, 0.5 - 0.5","R5, 0 - 1",null,"R1, 9 - 10","R5, 1 - 0","R4, 0 - 1","R3, 0.5 - 0.5",null,null,"R1, 0.5 - 0.5","R1, 0.5 - 0.5","R3, 1 - 0","R3, 0 - 1","R5, 1 - 0","R7, 0.5 - 0.5"]
["Tank ",null,null,null,null,null,null,null,null,null,null,null,null,null,null,null,null,null,null,null,null,null,null,null,null,null,null,null,null,null,null,null,null,null,null,null,null,null,null,null,null,null,null,null,null,null,null,"R1, 2 - 0",null,null,null,null,null,null,null,null,null,null,null,null,null,null,null,null,null,null,null,null,null,null,null,null,null,null,null,null,null,null,null,null,null,null,null,null,null,null,null,null,null,null,null,null,null,null,null,null,null,null,null,null,null,"R3, 0 - 1","R2, 0 - 1","R2, 1 - 0","R1, 1 - 0","R1, 0.5 - 0.5",null,"R2, 0 - 1","R7, 0 - 1","R2, 0.5 - 0.5","R2, 0.5 - 0.5","R2, 1 - 0",null,"R4, 1 - 0",null,"R5, 0 - 1",null,"R5, 23 - 4","R2, 0 - 1","R4, 1 - 0","R4, 1 - 0",null,null,"R3, 0 - 1","R3, 0.5 - 0.5","R3, 0 - 1","R2, 0 - 1","R3, 1 - 0","R1, 0 - 1"]
["BeerBeer ",null,null,null,null,null,null,null,null,null,null,null,null,null,null,null,null,null,null,null,null,null,null,null,null,null,null,null,null,null,null,null,null,null,null,null,null,null,null,null,null,null,null,null,null,null,null,null,null,null,null,null,null,null,null,null,null,null,null,null,null,null,null,null,null,null,null,null,"R1, 0 - 2",null,null,null,null,null,null,null,null,null,null,null,null,null,null,null,null,null,null,null,null,null,null,null,null,null,null,null,null,null,null,null,"R1, 1 - 0","R2, 0.5 - 0.5","R2, 0.5 - 0.5",null,"R3, 0 - 1",null,"R2, 0 - 1",null,"R6, 0.5 - 0.5","R2, 0.5 - 0.5","R2, 0.5 - 0.5","R7, 0 - 1",null,"R8, 0 - 1","R5, 0.5 - 0.5","R5, 1 - 0","R4, 1 - 0","R3, 0 - 1","R5, 0 - 1","R4, 1 - 0",null,"R3, 1 - 0","R3, 0 - 1","R5, 1 - 0","R2, 1 - 0",null,"R1, 0.5 - 0.5",null,"R3, 0.5 - 0.5"]
["ratogre ",null,null,null,null,null,null,null,null,null,null,null,null,null,null,null,null,null,null,null,null,"R1, 1 - 1",null,null,null,null,null,null,null,null,null,null,null,null,null,null,null,null,null,null,null,null,null,null,null,null,null,null,null,null,null,null,null,null,null,null,null,null,null,null,null,null,null,null,null,null,null,null,null,null,null,null,null,null,null,null,null,null,null,null,null,null,null,null,null,null,null,null,null,null,null,null,null,null,null,null,null,null,null,null,null,null,"R2, 0 - 1","R2, 1 - 0","R6, 0.5 - 0.5",null,"R5, 0 - 1","R2, 1 - 0","R5, 1 - 0","R2, 1 - 0","R1, 1 - 0","R2, 1 - 0",null,"R5, 0 - 1","R4, 0.5 - 0.5","R5, 0.5 - 0.5","R5, 1 - 0",null,null,"R6, 1 - 0","R4, 1 - 0","R5, 1 - 0",null,"R1, 1 - 0","R7, 0.5 - 0.5","R1, 0.5 - 0.5",null,"R5, 0 - 1","R3, 1 - 0"]
["BudWiser ",null,null,null,null,null,null,null,null,null,null,null,null,null,null,null,null,null,null,null,null,null,null,null,null,null,null,null,null,null,null,null,null,null,null,null,null,null,null,null,null,null,null,null,null,null,null,null,null,null,null,null,null,null,null,null,null,null,null,null,null,null,null,null,null,null,null,null,null,null,null,null,null,null,null,null,null,null,null,null,null,null,null,null,null,null,null,null,null,null,null,null,null,null,null,null,null,null,null,null,null,"R6, 0.5 - 0.5","R3, 0 - 1","R1, 1 - 0","R5, 1 - 0","R2, 1 - 0",null,null,"R2, 0 - 1","R4, 1 - 0","R1, 0 - 2",null,"R4, 0 - 1",null,null,"R3, 0 - 1","R5, 0 - 1",null,"R4, 0 - 1","R5, 1 - 0","R1, 9 - 11","R8, 0 - 1","R3, 0 - 1","R5, 1 - 0",null,"R1, 0.5 - 0.5",null,"R3, 0.5 - 0.5","R3, 1 - 0"]
["Gros Nain ",null,null,null,null,null,null,null,null,null,null,null,null,null,null,null,null,null,null,null,null,null,null,null,null,null,null,null,null,null,null,null,null,null,null,null,null,null,null,null,null,null,null,null,null,null,null,null,null,null,null,null,null,null,null,null,null,null,null,null,null,null,null,null,null,null,null,null,null,null,null,null,null,null,null,null,null,null,null,null,null,null,null,null,null,null,null,null,null,null,null,null,null,null,null,null,null,"R1, 2 - 0",null,null,"R4, 0.5 - 0.5","R7, 1 - 0","R1, 0 - 1","R6, 1 - 0","R5, 0 - 1","R1, 0.5 - 0.5","R3, 1 - 0",null,"R1, 1 - 0",null,"R2, 1 - 0","R4, 0.5 - 0.5",null,null,null,"R1, 0.5 - 0.5","R6, 1 - 0","R2, 0.5 - 0.5","R6, 0.5 - 0.5","R1, 0 - 1",null,null,"R5, 1 - 0",null,null,null,"R1, 1 - 0","R1, 0.5 - 0.5","R1, 20 - 5"]
["Warrior1980 ",null,null,null,null,null,null,null,null,null,null,null,null,null,null,null,null,null,null,null,null,null,null,null,null,null,null,null,null,null,null,null,null,null,null,null,null,null,null,null,null,null,null,null,null,null,null,null,null,null,null,null,null,null,null,null,null,null,null,null,null,null,null,null,null,null,null,null,null,null,null,null,null,null,null,null,null,null,null,null,null,null,null,null,null,null,null,null,null,null,null,null,null,null,null,null,null,null,null,null,null,"R5, 0 - 1","R3, 0 - 1",null,"R6, 0 - 1","R5, 0 - 1",null,"R2, 0.5 - 0.5",null,null,"R1, 0.5 - 0.5",null,"R6, 1 - 0","R6, 0 - 1","R6, 1 - 0","R1, 0.5 - 0.5","R1, 0 - 1",null,null,"R2, 0.5 - 0.5","R5, 1 - 0",null,null,"R5, 0.5 - 0.5","R1, 0 - 2","R1, 0.5 - 0.5",null,null,"R1, 1 - 0"]
["Juniooor7 ",null,null,null,null,null,null,null,null,null,null,null,null,null,null,null,null,null,null,null,null,null,null,null,null,null,null,null,null,null,null,null,null,null,null,null,null,null,null,null,null,null,null,null,null,null,null,null,null,null,null,null,null,null,null,null,null,null,null,null,null,null,null,null,null,null,null,null,null,null,null,null,null,null,null,null,null,null,null,"R1, 0 - 2",null,null,null,null,null,null,null,null,null,null,null,null,null,null,null,null,null,null,null,null,"R7, 1 - 0","R3, 20 - 6","R2, 0 - 1","R1, 0.5 - 0.5","R3, 0 - 1","R1, 0.5 - 0.5","R5, 0.5 - 0.5","R2, 0 - 1",null,"R1, 0 - 1","R4, 0.5 - 0.5","R2, 1 - 0",null,null,"R2, 1 - 0",null,null,"R6, 0 - 1",null,"R6, 0 - 1",null,null,null,null,"R1, 1 - 0","R5, 1 - 0","R4, 0 - 1",null,"R2, 0 - 1"]
["Madmatt13 ",null,null,null,null,null,null,null,null,null,null,null,null,null,null,null,null,null,null,null,null,null,null,null,null,null,null,null,null,null,null,null,null,null,null,null,null,null,null,null,null,null,null,null,null,null,null,null,null,null,null,null,null,null,null,null,null,null,null,null,null,null,null,null,null,null,null,null,null,null,null,null,null,null,null,null,null,null,null,null,null,null,null,null,null,null,null,"R1, 0 - 2",null,null,null,null,null,null,null,null,null,null,null,null,"R3, 1 - 0","R1, 0 - 1","R1, 0.5 - 0.5","R6, 1 - 0",null,"R4, 0 - 1","R2, 1 - 0","R1, 0.5 - 0.5",null,"R5, 1 - 0",null,"R1, 1 - 0",null,null,"R1, 1 - 0",null,"R2, 0 - 1","R6, 0 - 1","R6, 0.5 - 0.5","R1, 1 - 0","R6, 0.5 - 0.5","R1, 1 - 0",null,"R4, 1 - 0","R5, 1 - 0",null,"R7, 1 - 0","R5, 0 - 1"]
["jopotzuki ",null,null,null,null,null,null,null,null,null,null,null,null,null,null,null,null,null,null,null,null,null,null,null,null,null,null,null,null,null,null,null,null,null,null,null,null,null,null,null,null,null,null,null,null,null,null,null,null,null,null,null,null,null,null,null,null,null,null,null,null,null,null,null,null,null,null,null,null,null,null,null,null,null,null,null,null,null,null,null,null,null,null,null,null,null,null,null,null,null,null,null,null,null,null,null,null,null,null,null,"R2, 1 - 0","R6, 1 - 0","R3, 0.5 - 0.5","R5, 0.5 - 0.5","R1, 0.5 - 0.5","R5, 1 - 0","R1, 2 - 0",null,"R5, 1 - 0","R2, 1 - 0","R4, 0 - 1",null,"R2, 0 - 1","R2, 1 - 0",null,"R6, 1 - 0",null,null,"R2, 0 - 1",null,"R1, 0 - 1","R4, 0.5 - 0.5",null,"R1, 1 - 0",null,null,"R1, 1 - 0","R5, 0.5 - 0.5"]
["J-Ho",null,null,null,null,null,null,null,null,null,null,null,null,"R1, 1 - 1",null,null,null,null,null,null,null,null,null,null,null,null,null,null,null,null,null,null,null,null,null,null,null,null,null,null,null,null,null,null,null,null,null,null,null,null,null,null,null,null,null,null,null,null,null,null,null,null,null,null,null,null,null,null,null,null,null,null,null,null,null,null,null,null,null,null,null,null,null,null,null,null,null,null,null,null,null,null,null,null,null,null,null,null,null,null,"R6, 1 - 0",null,null,"R1, 1 - 0",null,null,"R4, 0 - 1","R1, 0 - 1","R2, 1 - 0",null,null,"R1, 1 - 0","R3, 1 - 0",null,"R6, 0 - 1","R2, 1 - 0",null,"R6, 1 - 0",null,null,"R6, 1 - 0","R3, 0 - 1","R4, 0 - 1",null,"R1, 0.5 - 0.5",null,"R1, 20 - 4","R1, 1 - 0","R1, 1 - 0"]
["Verrinho ",null,null,null,null,null,null,null,null,null,null,null,null,null,null,null,null,null,null,null,null,null,null,null,null,null,null,null,null,null,null,null,null,null,null,null,null,null,null,null,null,null,null,null,null,null,null,null,null,null,null,null,null,null,null,null,null,null,null,null,null,null,null,null,null,null,null,null,null,null,null,null,null,null,null,"R1, 2 - 0",null,null,null,null,null,null,null,null,null,null,null,null,null,null,null,null,null,null,null,null,null,null,null,null,"R5, 0.5 - 0.5","R1, 0.5 - 0.5","R3, 1 - 0",null,"R3, 0 - 1",null,null,"R7, 1 - 0","R2, 0 - 1","R1, 0 - 1",null,null,"R1, 0 - 1","R2, 1 - 0",null,"R6, 0 - 1","R6, 1 - 0",null,"R1, 0.5 - 0.5",null,"R2, 1 - 0","R1, 1 - 0","R1, 1 - 0","R1, 2 - 17",null,null,null,null,"R5, 0.5 - 0.5"]
["Valen ",null,null,null,null,null,null,null,null,null,null,null,null,null,null,null,null,null,null,null,null,null,null,"R1, 0 - 2",null,null,null,null,null,null,null,null,null,null,null,null,null,null,null,null,null,null,null,null,null,null,null,null,null,null,null,null,null,null,null,null,null,null,null,null,null,null,null,null,null,null,null,null,null,null,null,null,null,null,null,null,null,null,null,null,null,null,null,null,null,null,null,null,null,null,null,null,null,null,null,null,null,null,null,null,"R5, 1 - 0",null,"R4, 0.5 - 0.5","R2, 1 - 0","R1, 1 - 0","R2, 0.5 - 0.5","R6, 1 - 0",null,"R1, 0.5 - 0.5",null,null,"R5, 0.5 - 0.5","R1, 1 - 0","R1, 0.5 - 0.5",null,"R2, 6 - 19",null,null,null,"R6, 1 - 0","R2, 0 - 1","R5, 0 - 1","R1, 0.5 - 0.5","R3, 0 - 1","R6, 0 - 1","R1, 1 - 0","R5, 1 - 0"]
["Lycos ",null,null,null,null,null,null,null,null,null,null,null,null,null,null,null,null,null,null,null,null,null,"R1, 0 - 2",null,null,null,null,null,null,null,null,null,null,null,null,null,null,null,null,null,null,null,null,null,null,null,null,null,null,null,null,null,null,null,null,null,null,null,null,null,null,null,null,null,null,null,null,null,null,null,null,null,null,null,null,null,null,null,null,null,null,null,null,null,null,null,null,null,null,null,null,null,null,null,null,null,null,null,null,null,"R2, 20 - 8",null,"R1, 1 - 0",null,"R1, 0.5 - 0.5",null,"R3, 0 - 1","R4, 0 - 1","R1, 0.5 - 0.5",null,null,"R1, 1 - 0",null,"R1, 0 - 1","R6, 0 - 1","R2, 0 - 1","R2, 0.5 - 0.5","R3, 0.5 - 0.5","R1, 1 - 0","R4, 1 - 0","R7, 1 - 0","R2, 0.5 - 0.5","R3, 1 - 0",null,"R1, 0.5 - 0.5","R2, 1 - 0","R2, 0.5 - 0.5","R6, 0 - 1"]
["Domingo ",null,null,null,null,null,null,null,null,null,null,null,null,null,null,null,null,null,"R1, 2 - 0",null,null,null,null,null,null,null,null,null,null,null,null,null,null,null,null,null,null,null,null,null,null,null,null,null,null,null,null,null,null,null,null,null,null,null,null,null,null,null,null,null,null,null,null,null,null,null,null,null,null,null,null,null,null,null,null,null,null,null,null,null,null,null,null,null,null,null,null,null,null,null,null,null,null,null,null,null,null,null,null,null,"R6, 1 - 0","R1, 1 - 0",null,"R3, 1 - 0",null,"R3, 0 - 1",null,"R1, 1 - 0","R4, 6 - 21","R3, 1 - 0",null,null,"R3, 1 - 0",null,"R1, 0.5 - 0.5","R6, 0 - 1",null,null,"R5, 0 - 1","R1, 1 - 0","R1, 0.5 - 0.5","R6, 0 - 1","R2, 0.5 - 0.5",null,"R2, 1 - 0","R2, 0.5 - 0.5","R2, 0.5 - 0.5",null,"R6, 0.5 - 0.5"]
["Mufflo ",null,null,null,null,null,null,null,null,null,null,null,null,null,null,null,null,null,null,null,null,null,null,null,null,null,null,null,null,null,null,null,null,null,null,null,null,null,null,null,null,null,null,null,null,null,null,null,null,null,null,null,null,null,null,null,null,null,null,null,null,null,null,null,null,null,null,null,null,null,null,null,null,null,null,null,null,null,null,null,null,null,null,null,null,null,null,null,null,null,"R1, 2 - 0",null,null,null,null,null,null,null,null,null,"R5, 0.5 - 0.5","R6, 1 - 0","R1, 0.5 - 0.5",null,"R1, 0.5 - 0.5",null,"R1, 1 - 0",null,null,null,"R1, 0.5 - 0.5","R3, 1 - 0","R3, 0 - 1",null,null,"R1, 0.5 - 0.5","R6, 0.5 - 0.5","R3, 0 - 1","R6, 0 - 1","R6, 0.5 - 0.5","R1, 1 - 0","R1, 0.5 - 0.5","R6, 1 - 0","R1, 1 - 0","R2, 1 - 0",null,null,null,"R4, 0.5 - 0.5"]
["andydavo ",null,null,null,null,null,null,null,null,null,null,null,null,null,null,null,null,null,null,null,null,null,null,null,null,null,null,null,null,null,null,null,null,null,null,null,null,null,null,null,null,null,null,null,null,null,null,null,null,null,null,null,null,null,null,null,null,null,null,null,null,null,null,null,null,null,null,null,null,null,null,null,null,null,null,null,null,null,null,null,null,null,null,null,null,null,null,null,null,null,null,null,null,null,null,null,null,null,null,null,"R2, 0 - 1","R5, 1 - 0",null,"R1, 0 - 2",null,"R2, 0.5 - 0.5","R3, 1 - 0","R3, 0.5 - 0.5",null,"R6, 0 - 1","R1, 0.5 - 0.5","R1, 1 - 0","R3, 0 - 1","R1, 1 - 0",null,null,"R4, 0.5 - 0.5","R7, 0 - 1","R2, 0.5 - 0.5",null,"R1, 0 - 1","R1, 0 - 1",null,"R6, 0 - 1","R3, 0 - 1",null,"R3, 1 - 0","R2, 0.5 - 0.5","R1, 0 - 1"]
["Geggster ",null,null,null,null,null,null,null,null,null,null,null,null,null,null,null,null,null,null,null,null,null,null,null,null,null,null,null,null,null,null,null,"R1, 2 - 0",null,null,null,null,null,null,null,null,null,null,null,null,null,null,null,null,null,null,null,null,null,null,null,null,null,null,null,null,null,null,null,null,null,null,null,null,null,null,null,null,null,null,null,null,null,null,null,null,null,null,null,null,null,null,null,null,null,null,null,null,null,null,null,null,null,null,null,"R1, 0 - 1","R2, 9 - 8","R1, 10 - 10",null,"R6, 1 - 0","R3, 0.5 - 0.5","R1, 0.5 - 0.5",null,"R1, 1 - 0","R5, 0.5 - 0.5","R6, 0.5 - 0.5","R4, 1 - 0",null,"R6, 0 - 1","R1, 1 - 0","R4, 0 - 1","R2, 0 - 1","R1, 1 - 0","R6, 0 - 1","R1, 0.5 - 0.5","R2, 0.5 - 0.5","R2, 1 - 0","R2, 1 - 0","R4, 0.5 - 0.5","R2, 1 - 0","R5, 1 - 0",null,"R1, 0 - 1","R6, 1 - 0"]
["Arioso ",null,null,null,null,null,null,null,null,null,null,null,null,null,null,null,null,null,null,null,null,null,null,null,null,null,null,null,null,null,null,null,null,null,null,null,null,null,null,null,null,null,null,null,null,null,null,null,null,null,null,null,null,null,null,null,null,null,null,null,null,null,null,null,null,null,null,null,null,null,null,null,null,null,null,null,null,null,null,null,null,null,null,null,null,null,null,null,null,null,null,null,null,null,null,null,null,null,null,null,"R1, 1 - 0","R1, 0.5 - 0.5","R5, 0.5 - 0.5","R2, 1 - 0",null,"R3, 0 - 1","R4, 0 - 1",null,null,null,"R3, 1 - 0","R3, 0 - 1","R1, 0.5 - 0.5","R6, 0 - 1","R2, 0 - 1","R1, 0.5 - 0.5","R1, 0 - 1","R6, 0 - 1","R1, 1 - 0","R3, 1 - 0",null,"R1, 0 - 2","R2, 1 - 0","R3, 0.5 - 0.5","R2, 0 - 1","R3, 1 - 0",null,"R2, 0 - 1","R2, 0.5 - 0.5"]
["Gaunab ",null,null,null,null,null,null,null,null,null,null,null,null,null,null,null,null,null,null,null,null,null,null,null,null,null,null,null,null,null,null,null,null,null,null,null,null,null,null,null,null,null,null,null,null,null,null,null,null,null,null,null,null,null,null,null,null,null,null,null,null,null,null,null,null,null,null,null,null,null,null,null,null,null,null,null,"R1, 2 - 0",null,null,null,null,null,null,null,null,null,null,null,null,null,null,null,null,null,null,null,null,null,null,null,null,"R1, 0 - 1","R5, 0 - 1","R1, 0 - 1","R1, 11 - 11",null,"R6, 0 - 1","R3, 1 - 0",null,"R1, 0.5 - 0.5","R5, 1 - 0",null,"R1, 0.5 - 0.5","R3, 1 - 0","R1, 1 - 0","R3, 0.5 - 0.5",null,"R1, 1 - 0","R1, 0 - 1",null,"R2, 0 - 1","R2, 1 - 0","R3, 0 - 1","R2, 0 - 1","R2, 0 - 1","R2, 0.5 - 0.5","R6, 0.5 - 0.5","R2, 0.5 - 0.5","R3, 0 - 1"]
["Alex05 ",null,null,null,null,null,null,null,null,null,null,null,null,null,null,null,null,null,null,null,null,null,null,null,null,null,null,null,null,null,null,null,null,null,null,null,null,null,null,null,null,null,null,null,null,null,null,null,null,null,null,null,null,null,null,null,null,null,null,null,null,null,null,null,null,null,null,null,null,null,null,null,null,null,null,null,null,null,null,null,null,null,null,null,null,null,null,null,null,null,null,null,null,null,null,null,null,null,null,null,null,null,null,"R1, 1 - 0","R2, 0 - 1","R7, 1 - 0","R3, 0 - 1","R1, 0 - 1","R3, 0 - 1",null,"R3, 1 - 0","R6, 1 - 0",null,"R1, 1 - 0",null,"R6, 0.5 - 0.5","R1, 0.5 - 0.5",null,"R3, 0.5 - 0.5","R1, 1 - 0","R1, 0 - 2",null,"R4, 0.5 - 0.5","R2, 1 - 0",null,"R7, 0 - 1","R2, 0.5 - 0.5","R3, 0.5 - 0.5","R2, 0.5 - 0.5"]
["Beppe ",null,null,null,null,null,null,null,null,null,null,null,null,null,null,null,null,null,null,null,null,null,null,null,null,null,null,null,null,null,null,null,null,null,null,"R1, 0 - 2",null,null,null,null,null,null,null,null,null,null,null,null,null,null,null,null,null,null,null,null,null,null,null,null,null,null,null,null,null,null,null,null,null,null,null,null,null,null,null,null,null,null,null,null,null,null,null,null,null,null,null,null,null,null,null,null,null,null,null,null,null,null,null,null,"R3, 0 - 1","R3, 0 - 1","R1, 0 - 1","R2, 0.5 - 0.5","R3, 1 - 0",null,"R4, 0 - 1",null,null,"R5, 0.5 - 0.5","R4, 0.5 - 0.5",null,null,null,"R6, 1 - 0","R2, 0 - 1","R1, 0.5 - 0.5",null,"R1, 0 - 1","R4, 1 - 0",null,null,"R3, 12 - 15","R7, 0 - 1",null,"R1, 0 - 1","R1, 1 - 0",null,"R5, 0 - 1"]
["Melisqus ",null,null,null,null,null,null,null,null,null,null,null,null,null,null,null,null,null,null,null,null,null,null,null,null,null,null,null,null,null,null,null,null,null,null,null,null,null,null,null,null,null,null,null,null,null,null,null,null,null,null,null,null,null,null,null,null,null,null,null,null,null,null,null,null,null,null,null,null,null,null,null,null,null,null,null,null,null,null,null,null,null,null,"R1, 0 - 2",null,null,null,null,null,null,null,null,null,null,null,null,null,null,null,null,null,"R3, 1 - 0","R2, 1 - 0","R1, 0.5 - 0.5","R2, 1 - 0",null,"R4, 0 - 1","R1, 1 - 0",null,null,null,null,"R1, 1 - 0","R2, 1 - 0","R1, 0.5 - 0.5","R4, 1 - 0","R8, 0 - 1",null,null,null,"R1, 0 - 1","R1, 1 - 0","R7, 0 - 1",null,null,"R2, 1 - 0","R4, 0 - 1",null,"R3, 19 - 4"]
["Dragons ",null,null,null,null,null,null,null,null,null,null,null,null,null,null,null,null,null,null,null,null,null,null,null,null,null,null,null,null,null,null,null,null,null,null,null,null,"R1, 1 - 1",null,null,null,null,null,null,null,null,null,null,null,null,null,null,null,null,null,null,null,null,null,null,null,null,null,null,null,null,null,null,null,null,null,null,null,null,null,null,null,null,null,null,null,null,null,null,null,null,null,null,null,null,null,null,null,null,null,null,null,null,null,null,null,"R2, 0 - 1","R2, 1 - 0","R1, 0 - 1",null,"R7, 1 - 0",null,null,null,"R6, 0.5 - 0.5","R6, 0 - 1","R1, 0 - 1",null,"R1, 0 - 1","R4, 1 - 0","R1, 0.5 - 0.5",null,null,null,null,"R6, 0.5 - 0.5","R6, 0 - 1","R4, 0 - 1","R1, 1 - 0","R1, 0.5 - 0.5","R3, 22 - 2",null,null,"R2, 0 - 1"]
["Jaqra ",null,null,null,null,null,null,null,null,null,null,null,null,null,null,null,null,null,null,null,null,null,null,null,null,null,null,null,null,null,null,null,null,null,null,null,null,null,null,null,null,null,null,null,null,null,null,null,null,null,null,null,"R1, 2 - 0",null,null,null,null,null,null,null,null,null,null,null,null,null,null,null,null,null,null,null,null,null,null,null,null,null,null,null,null,null,null,null,null,null,null,null,null,null,null,null,null,null,null,null,null,null,null,null,"R1, 0.5 - 0.5","R2, 1 - 0","R2, 1 - 0","R2, 0.5 - 0.5",null,null,null,null,"R5, 0.5 - 0.5",null,"R1, 0.5 - 0.5",null,"R6, 0.5 - 0.5","R6, 0.5 - 0.5",null,null,"R2, 0.5 - 0.5","R2, 0.5 - 0.5","R1, 0 - 1",null,"R4, 1 - 0","R1, 1 - 0","R5, 0 - 1","R4, 0.5 - 0.5","R1, 1 - 0","R4, 0 - 1","R1, 1 - 0"]
["Harti ",null,null,null,null,null,null,null,null,null,null,null,null,null,null,null,null,null,null,null,null,null,null,null,null,null,null,null,null,null,null,null,null,null,null,null,null,null,null,null,null,null,null,null,null,null,null,null,null,null,null,null,null,null,null,null,null,null,"R1, 1 - 1",null,null,null,null,null,null,null,null,null,null,null,null,null,null,null,null,null,null,null,null,null,null,null,null,null,null,null,null,null,null,null,null,null,null,null,null,null,null,null,null,null,"R2, 0.5 - 0.5","R1, 0.5 - 0.5",null,"R3, 0 - 1","R2, 0 - 1",null,"R6, 0.5 - 0.5","R3, 0 - 1",null,"R1, 1 - 0",null,null,"R5, 0 - 1",null,"R1, 1 - 0","R1, 1 - 0","R4, 0.5 - 0.5","R1, 0 - 1",null,"R3, 1 - 0","R2, 1 - 0","R4, 0.5 - 0.5","R1, 0 - 1","R6, 0.5 - 0.5",null,"R1, 1 - 0",null,"R5, 0 - 1"]
["Favi ",null,null,null,null,null,null,null,null,null,null,null,null,null,null,null,null,null,null,null,"R1, 1 - 1",null,null,null,null,null,null,null,null,null,null,null,null,null,null,null,null,null,null,null,null,null,null,null,null,null,null,null,null,null,null,null,null,null,null,null,null,null,null,null,null,null,null,null,null,null,null,null,null,null,null,null,null,null,null,null,null,null,null,null,null,null,null,null,null,null,null,null,null,null,null,null,null,null,null,null,null,null,null,null,"R3, 1 - 0","R1, 1 - 0","R2, 0 - 1","R8, 0 - 1","R3, 0.5 - 0.5",null,"R5, 1 - 0",null,null,null,null,null,"R1, 0.5 - 0.5","R1, 1 - 0","R1, 0 - 1",null,null,"R4, 0 - 1",null,"R6, 1 - 0",null,null,null,"R1, 1 - 0",null,null,"R6, 1 - 0","R1, 0.5 - 0.5","R1, 0 - 1"]
["Spartako ",null,null,null,null,null,null,null,null,null,null,null,null,null,null,null,null,null,null,null,null,null,null,null,null,null,null,null,null,null,null,null,null,null,null,null,null,null,null,null,null,null,null,null,null,null,null,null,null,null,null,null,null,null,null,null,null,null,null,null,null,null,null,null,null,null,null,null,null,null,null,null,null,null,null,null,null,null,null,null,null,null,null,null,null,null,null,null,null,null,null,null,null,null,null,null,null,null,null,null,"R2, 0.5 - 0.5",null,"R3, 0.5 - 0.5","R3, 1 - 0","R6, 1 - 0","R5, 6 - 20",null,null,"R1, 0.5 - 0.5","R8, 0 - 1","R5, 0.5 - 0.5",null,null,"R4, 1 - 0",null,null,"R5, 0 - 1","R1, 1 - 1","R2, 0 - 1","R1, 0.5 - 0.5","R1, 0.5 - 0.5",null,"R1, 0 - 1",null,"R4, 1 - 0",null,"R3, 19 - 5","R6, 0 - 1","R1, 1 - 0"]
["DonShula ",null,null,null,null,null,null,null,null,null,null,null,null,null,null,null,null,null,null,null,null,null,null,null,null,null,null,null,null,null,null,null,null,null,null,null,null,null,null,null,null,null,null,null,null,null,null,null,null,null,null,null,null,null,null,null,null,null,null,null,null,null,null,null,null,null,null,null,null,null,null,null,null,null,null,null,null,null,null,null,null,null,null,null,null,null,null,null,null,null,null,null,null,null,null,null,null,null,null,null,"R3, 1 - 0","R7, 1 - 0","R6, 1 - 0",null,null,"R1, 1 - 0",null,"R3, 1 - 0",null,null,"R4, 0.5 - 0.5","R5, 0 - 1",null,null,null,null,"R2, 0.5 - 0.5","R1, 1 - 0","R4, 0.5 - 0.5","R2, 0 - 1","R1, 0 - 1",null,"R3, 11 - 12","R1, 1 - 1","R3, 0 - 1","R6, 0 - 1",null,"R1, 0.5 - 0.5","R1, 1 - 0"]
["HumptyTrump ",null,null,null,null,null,null,null,null,null,null,null,null,null,null,null,null,null,null,null,null,null,null,null,null,null,null,null,null,null,null,null,null,null,null,null,null,null,null,null,null,null,null,null,null,null,null,null,null,null,null,null,null,null,null,null,null,null,null,null,null,null,null,null,null,null,null,null,null,null,null,null,null,"R1, 0 - 2",null,null,null,null,null,null,null,null,null,null,null,null,null,null,null,null,null,null,null,null,null,null,null,null,null,null,"R2, 0.5 - 0.5",null,null,null,null,"R2, 0 - 1",null,"R3, 0.5 - 0.5","R3, 0 - 1","R5, 0 - 1","R6, 0 - 1",null,"R4, 0.5 - 0.5","R1, 0.5 - 0.5","R3, 0 - 1","R1, 0.5 - 0.5","R5, 0 - 1","R1, 0.5 - 0.5","R2, 0.5 - 0.5","R3, 0 - 1",null,null,"R1, 0.5 - 0.5",null,null,"R1, 0 - 1",null,null,"R2, 0 - 1"]
["Purrelito ",null,null,null,null,null,null,null,null,null,null,null,null,null,null,null,null,null,null,null,null,null,null,null,null,null,null,null,null,null,null,null,null,null,null,null,null,null,null,null,null,null,null,null,null,null,null,null,null,null,null,null,null,null,null,"R1, 2 - 0",null,null,null,null,null,null,null,null,null,null,null,null,null,null,null,null,null,null,null,null,null,null,null,null,null,null,null,null,null,null,null,null,null,null,null,null,null,null,null,null,null,null,null,null,null,null,null,null,null,null,"R5, 1 - 0","R3, 0.5 - 0.5","R5, 0 - 1","R3, 0.5 - 0.5",null,"R2, 1 - 0","R6, 0.5 - 0.5",null,"R1, 0 - 1",null,"R3, 0 - 1","R5, 0.5 - 0.5","R3, 0.5 - 0.5","R2, 1 - 0",null,null,null,null,null,"R6, 0 - 1","R2, 0 - 1","R2, 1 - 0","R1, 1 - 0"]
["nonumber ",null,null,null,null,null,null,null,null,null,null,null,null,null,null,null,null,null,null,null,null,null,null,null,null,null,null,null,null,null,null,null,null,null,null,null,null,null,null,"R1, 0 - 2",null,null,null,null,null,null,null,null,null,null,null,null,null,null,null,null,null,null,null,null,null,null,null,null,null,null,null,null,null,null,null,null,null,null,null,null,null,null,null,null,null,null,null,null,null,null,null,null,null,null,null,null,null,null,null,null,null,null,null,null,null,null,null,null,"R7, 0.5 - 0.5","R8, 1 - 0",null,"R6, 0.5 - 0.5","R6, 0.5 - 0.5","R4, 1 - 0","R2, 0 - 1",null,null,null,"R1, 0.5 - 0.5","R5, 0 - 1","R2, 0.5 - 0.5",null,"R1, 0.5 - 0.5",null,"R3, 1 - 0","R2, 0.5 - 0.5",null,null,"R4, 1 - 0","R3, 1 - 0"]
["Driesfield ",null,null,null,null,null,null,null,null,null,null,null,null,null,null,null,null,null,null,null,null,null,null,null,null,null,null,null,null,null,null,null,null,null,null,null,null,null,null,null,null,null,null,null,null,"R1, 2 - 0",null,null,null,null,null,null,null,null,null,null,null,null,null,null,null,null,null,null,null,null,null,null,null,null,null,null,null,null,null,null,null,null,null,null,null,null,null,null,null,null,null,null,null,null,null,null,null,null,null,null,null,null,null,null,null,"R6, 1 - 0","R2, 0 - 1","R7, 0.5 - 0.5","R8, 0.5 - 0.5","R5, 1 - 0","R2, 1 - 0",null,"R5, 2 - 18","R6, 1 - 0","R5, 0 - 1","R6, 0 - 1",null,null,"R2, 1 - 0","R1, 0 - 1","R3, 1 - 0","R1, 0.5 - 0.5",null,null,"R6, 1 - 0","R6, 0.5 - 0.5","R3, 1 - 0",null,null,"R1, 1 - 0",null,"R2, 1 - 0"]
["kfoged ",null,null,null,null,null,null,null,null,null,null,null,null,null,null,null,null,null,null,null,null,null,null,null,null,null,null,null,null,null,null,null,null,null,null,null,null,null,null,null,null,null,null,null,null,null,null,null,null,null,null,null,null,null,null,null,null,null,null,null,null,null,null,null,null,null,null,null,null,null,null,null,null,null,null,null,null,null,null,null,null,null,null,null,null,null,null,null,null,null,null,null,null,null,null,null,null,null,null,null,"R6, 0 - 1",null,null,"R4, 1 - 0","R4, 0.5 - 0.5","R6, 0 - 1","R6, 1 - 0","R6, 1 - 0","R2, 1 - 0",null,null,"R3, 0 - 1","R5, 0.5 - 0.5","R1, 0 - 1","R6, 20 - 3",null,null,"R2, 1 - 0",null,null,"R5, 0 - 1",null,"R1, 1 - 0","R5, 0.5 - 0.5",null,"R2, 1 - 0","R1, 0 - 2"]
["Podfrey ",null,null,null,null,null,null,null,null,null,null,null,null,null,"R1, 0 - 2",null,null,null,null,null,null,null,null,null,null,null,null,null,null,null,null,null,null,null,null,null,null,null,null,null,null,null,null,null,null,null,null,null,null,null,null,null,null,null,null,null,null,null,null,null,null,null,null,null,null,null,null,null,null,null,null,null,null,null,null,null,null,null,null,null,null,null,null,null,null,null,null,null,null,null,null,null,null,null,null,null,null,null,null,null,"R2, 1 - 0",null,null,null,"R1, 0 - 1","R3, 0.5 - 0.5","R5, 0.5 - 0.5","R2, 0.5 - 0.5","R6, 0.5 - 0.5","R1, 19 - 5",null,null,null,null,"R3, 0 - 1",null,"R1, 1 - 0",null,"R5, 0 - 1",null,"R1, 0.5 - 0.5","R1, 0 - 1",null,"R2, 0 - 1",null,null,null,null,"R1, 0 - 1"]
["valkohukka ",null,null,null,null,null,null,null,null,null,null,null,null,null,null,null,null,null,null,null,null,null,null,null,null,null,null,null,null,null,null,null,null,null,null,null,null,null,null,null,null,null,null,null,null,null,null,null,null,null,null,null,null,null,null,null,null,null,null,null,null,null,null,null,null,null,null,null,null,null,null,null,null,null,null,null,null,null,null,null,null,null,null,null,"R1, 2 - 0",null,null,null,null,null,null,null,null,null,null,null,null,null,null,null,"R7, 0.5 - 0.5","R4, 0 - 1",null,null,null,"R6, 0 - 1","R6, 1 - 0","R5, 0.5 - 0.5",null,null,"R1, 11 - 12",null,"R1, 1 - 0","R3, 1 - 0",null,null,"R6, 1 - 0","R2, 0.5 - 0.5","R1, 0.5 - 0.5","R1, 0 - 1","R1, 0.5 - 0.5",null,"R2, 1 - 0","R1, 0 - 1",null,"R4, 0 - 1",null,"R1, 0.5 - 0.5"]
["Skoberget ",null,null,null,null,null,null,null,null,null,null,null,null,null,null,null,null,null,null,null,null,null,null,null,null,null,null,null,null,null,null,null,null,null,null,null,null,null,null,null,null,null,null,null,null,null,null,null,null,null,null,null,null,null,null,null,null,null,null,null,null,null,null,null,null,null,null,"R1, 0 - 2",null,null,null,null,null,null,null,null,null,null,null,null,null,null,null,null,null,null,null,null,null,null,null,null,null,null,null,null,null,null,null,null,"R8, 0.5 - 0.5","R4, 0.5 - 0.5","R1, 1 - 0",null,null,"R5, 0 - 1",null,null,"R2, 0 - 1","R2, 1 - 0","R6, 1 - 0","R5, 1 - 0","R2, 0 - 1","R5, 0.5 - 0.5","R3, 10 - 10","R6, 0.5 - 0.5","R1, 0.5 - 0.5",null,null,"R1, 0.5 - 0.5","R2, 13 - 15","R2, 0.5 - 0.5",null,"R1, 0.5 - 0.5","R2, 1 - 0"]
["brocCooli ",null,null,null,null,null,null,null,null,null,null,null,null,null,null,null,null,null,null,null,null,null,null,null,null,null,null,null,null,null,null,null,null,null,null,null,"R1, 1 - 1",null,null,null,null,null,null,null,null,null,null,null,null,null,null,null,null,null,null,null,null,null,null,null,null,null,null,null,null,null,null,null,null,null,null,null,null,null,null,null,null,null,null,null,null,null,null,null,null,null,null,null,null,null,null,null,null,null,null,null,null,null,null,null,"R5, 0 - 1","R6, 1 - 0","R3, 0.5 - 0.5","R6, 1 - 0","R5, 1 - 0",null,"R1, 1 - 0",null,null,null,null,"R2, 0.5 - 0.5",null,"R4, 1 - 0","R6, 0 - 1","R5, 1 - 0","R2, 1 - 0","R6, 0 - 1","R1, 0.5 - 0.5","R1, 1 - 0","R2, 0 - 1",null,"R2, 1 - 0","R6, 1 - 0","R3, 1 - 0","R2, 0.5 - 0.5","R6, 0.5 - 0.5","R6, 0.5 - 0.5","R1, 0.5 - 0.5"]
["Ploppy_McPloppy ",null,null,null,null,null,null,null,null,null,null,null,null,null,null,null,null,null,null,null,null,null,null,null,null,null,null,null,null,null,null,null,null,null,null,null,null,null,null,null,null,null,null,null,null,null,null,null,null,null,null,null,null,null,null,null,null,null,null,null,null,null,null,null,null,null,null,null,null,null,null,null,null,null,null,null,null,"R1, 0 - 2",null,null,null,null,null,null,null,null,null,null,null,null,null,null,null,null,null,null,null,null,null,null,"R2, 0 - 1","R6, 0 - 1","R5, 0.5 - 0.5","R6, 0 - 1",null,"R1, 0 - 1",null,null,null,null,null,null,null,"R3, 0 - 1","R2, 0.5 - 0.5","R1, 0.5 - 0.5",null,"R3, 0.5 - 0.5","R5, 0.5 - 0.5","R2, 0 - 1",null,"R3, 0.5 - 0.5",null,"R1, 1 - 0","R6, 1 - 0",null,"R2, 0.5 - 0.5","R6, 0.5 - 0.5","R5, 1 - 0"]
["BiBi ",null,null,null,null,null,null,null,null,null,null,null,null,null,null,null,null,null,null,"R1, 1 - 1",null,null,null,null,null,null,null,null,null,null,null,null,null,null,null,null,null,null,null,null,null,null,null,null,null,null,null,null,null,null,null,null,null,null,null,null,null,null,null,null,null,null,null,null,null,null,null,null,null,null,null,null,null,null,null,null,null,null,null,null,null,null,null,null,null,null,null,null,null,null,null,null,null,null,null,null,null,null,null,null,null,"R6, 0 - 1","R2, 0.5 - 0.5","R5, 0.5 - 0.5",null,null,null,null,"R6, 10 - 11",null,"R5, 19 - 4",null,null,"R2, 0.5 - 0.5",null,"R2, 0.5 - 0.5","R4, 1 - 0","R1, 0 - 1","R1, 0 - 1","R2, 1 - 0","R5, 0.5 - 0.5",null,"R1, 0 - 1","R1, 1 - 0","R6, 0.5 - 0.5","R3, 0.5 - 0.5","R6, 0 - 1",null,"R8, 1 - 0"]
["Matt le fou ",null,null,null,null,null,null,null,null,null,null,null,null,null,null,null,null,null,null,null,null,null,null,null,null,null,null,null,null,null,null,null,null,null,null,null,null,null,null,null,null,null,null,null,null,null,null,null,null,null,null,null,null,null,null,null,null,null,null,null,null,null,null,null,null,null,null,null,null,null,null,null,null,null,null,null,null,null,null,null,null,null,null,null,null,null,null,null,null,null,null,null,null,null,null,null,null,null,null,null,"R5, 18 - 2","R2, 0 - 1","R6, 0.5 - 0.5",null,"R2, 1 - 0",null,null,"R6, 11 - 10",null,"R2, 1 - 0","R1, 0.5 - 0.5",null,null,null,"R2, 1 - 0","R1, 0.5 - 0.5","R1, 0 - 1","R1, 0 - 1","R2, 0 - 1","R1, 2 - 0","R1, 1 - 0","R4, 0 - 1","R6, 1 - 0","R6, 0.5 - 0.5","R1, 1 - 0","R1, 0 - 1",null,null,"R3, 0.5 - 0.5"]
["Candlejack ",null,null,null,null,null,null,null,null,null,null,null,null,null,null,null,null,null,null,null,null,null,null,null,null,null,null,null,null,null,null,null,null,null,null,null,null,null,null,null,null,null,null,null,null,null,null,null,null,null,null,null,null,null,null,null,null,null,null,null,null,null,null,null,null,null,null,null,null,null,null,null,null,null,null,null,null,null,null,null,null,null,null,null,null,null,null,null,null,null,null,null,null,null,null,null,null,null,null,null,"R6, 0 - 1",null,"R1, 5 - 19",null,"R2, 0 - 1",null,null,null,"R2, 0 - 1",null,null,"R2, 0 - 1","R6, 0 - 1","R5, 0 - 1","R4, 0.5 - 0.5","R7, 0 - 1","R1, 1 - 0","R1, 0 - 1","R1, 0.5 - 0.5","R5, 0 - 1","R1, 0.5 - 0.5","R6, 1 - 0","R6, 22 - 5","R6, 1 - 0",null,"R1, 1 - 0","R1, 1 - 0","R5, 0.5 - 0.5","R1, 2 - 0"]
["Purdindas ",null,null,null,null,null,null,null,null,null,null,null,null,null,null,null,null,null,null,null,null,null,null,null,null,null,null,null,null,null,null,null,null,null,null,null,null,null,null,null,null,null,null,null,null,null,null,null,null,null,null,null,null,null,null,null,null,null,null,null,null,null,null,null,null,null,null,null,null,null,null,null,"R1, 2 - 0",null,null,null,null,null,null,null,null,null,null,null,null,null,null,null,null,null,null,null,null,null,null,null,null,null,null,null,"R5, 1 - 0",null,null,"R1, 12 - 11","R6, 0 - 1",null,null,"R5, 4 - 19","R1, 0.5 - 0.5",null,null,"R5, 1 - 0",null,"R3, 0.5 - 0.5","R1, 1 - 0","R2, 0 - 1","R2, 1 - 0","R2, 1 - 0","R1, 0.5 - 0.5","R5, 0 - 1",null,"R6, 0.5 - 0.5","R3, 0 - 1","R4, 1 - 0",null,null,"R3, 0 - 1","R2, 1 - 0","R2, 0 - 1"]
["JJ ",null,null,null,null,null,null,null,null,null,null,null,null,null,null,null,null,null,null,null,null,null,null,null,null,null,null,null,null,null,null,null,null,null,null,null,null,null,null,null,null,null,null,null,null,null,null,null,null,null,null,null,null,null,null,null,null,null,null,null,null,null,null,null,null,null,null,null,null,null,null,null,null,null,null,null,null,null,null,null,null,null,null,null,null,null,null,null,null,null,null,null,null,null,null,null,null,null,null,null,"R6, 1 - 0","R3, 1 - 0",null,null,"R5, 0 - 1","R2, 0.5 - 0.5",null,null,null,"R2, 1 - 0","R5, 0 - 1",null,"R1, 0 - 2","R1, 0 - 1","R1, 0 - 1",null,"R4, 1 - 0","R5, 0.5 - 0.5","R2, 1 - 0","R5, 1 - 0","R2, 0.5 - 0.5","R1, 1 - 0","R6, 0.5 - 0.5","R5, 1 - 0","R4, 0.5 - 0.5",null,"R1, 1 - 0","R3, 0 - 1","R6, 0.5 - 0.5"]
["Wilzif ",null,null,null,null,null,null,null,null,null,null,null,null,null,null,null,null,null,null,null,null,null,null,null,null,null,null,null,null,null,null,null,null,null,null,null,null,null,null,null,null,null,null,null,null,null,null,null,null,null,null,null,null,null,null,null,null,null,null,null,null,null,null,null,null,null,null,null,null,null,null,null,null,null,null,null,null,null,null,null,null,null,null,null,null,null,null,null,null,null,null,null,null,null,null,null,null,null,null,null,null,"R5, 0.5 - 0.5",null,"R1, 0 - 1","R2, 1 - 0",null,null,null,null,"R6, 1 - 0",null,"R1, 2 - 0",null,"R1, 0.5 - 0.5",null,null,"R5, 0.5 - 0.5","R2, 0.5 - 0.5","R1, 0.5 - 0.5","R6, 1 - 0","R7, 1 - 0",null,"R3, 0.5 - 0.5",null,"R5, 1 - 0","R8, 0.5 - 0.5","R4, 1 - 0",null,"R3, 0.5 - 0.5"]
["noraal ",null,null,null,null,null,null,null,null,null,null,null,null,null,null,null,null,null,null,null,null,null,null,null,null,null,null,null,"R1, 0 - 2",null,null,null,null,null,null,null,null,null,null,null,null,null,null,null,null,null,null,null,null,null,null,null,null,null,null,null,null,null,null,null,null,null,null,null,null,null,null,null,null,null,null,null,null,null,null,null,null,null,null,null,null,null,null,null,null,null,null,null,null,null,null,null,null,null,null,null,null,null,null,null,null,"R1, 1 - 0",null,"R3, 0 - 1","R5, 0.5 - 0.5","R4, 0 - 1","R3, 1 - 0","R2, 0.5 - 0.5",null,"R5, 1 - 0","R3, 0.5 - 0.5","R1, 1 - 0","R1, 0.5 - 0.5",null,null,"R3, 1 - 0",null,"R3, 20 - 3",null,null,null,null,null,null,"R2, 0.5 - 0.5","R1, 0.5 - 0.5","R2, 1 - 0",null,"R1, 0 - 1"]
["cz ",null,null,null,null,null,null,null,null,null,null,null,"R1, 1 - 1",null,null,null,null,null,null,null,null,null,null,null,null,null,null,null,null,null,null,null,null,null,null,null,null,null,null,null,null,null,null,null,null,null,null,null,null,null,null,null,null,null,null,null,null,null,null,null,null,null,null,null,null,null,null,null,null,null,null,null,null,null,null,null,null,null,null,null,null,null,null,null,null,null,null,null,null,null,null,null,null,null,null,null,null,null,null,null,"R2, 0 - 1","R6, 3 - 20","R3, 1 - 0",null,"R3, 10 - 10","R6, 1 - 0","R2, 0.5 - 0.5",null,"R2, 0 - 1","R4, 0.5 - 0.5","R1, 0 - 1","R1, 1 - 0",null,null,null,null,null,null,null,null,null,null,"R7, 0 - 1","R1, 0.5 - 0.5","R2, 1 - 0","R6, 1 - 0",null,"R2, 0.5 - 0.5"]
["Loki ",null,null,null,null,null,null,null,null,null,null,null,null,null,null,null,null,null,null,null,null,null,null,null,null,null,null,null,null,null,null,null,null,null,null,null,null,null,null,null,null,null,null,null,null,null,null,null,null,null,null,null,null,null,null,null,null,"R1, 2 - 0",null,null,null,null,null,null,null,null,null,null,null,null,null,null,null,null,null,null,null,null,null,null,null,null,null,null,null,null,null,null,null,null,null,null,null,null,null,null,null,null,null,null,"R1, 1 - 0",null,null,null,"R6, 0.5 - 0.5","R5, 0 - 1","R1, 0.5 - 0.5","R2, 0.5 - 0.5","R1, 0.5 - 0.5","R7, 1 - 0","R2, 1 - 0",null,null,"R3, 0 - 1",null,null,"R3, 0 - 1",null,null,null,"R5, 0 - 1","R2, 0.5 - 0.5","R6, 0 - 1",null,null,"R2, 0 - 1","R1, 1 - 0",null,"R4, 0 - 1"]
["gninocker ",null,"R1, 0 - 2",null,null,null,null,null,null,null,null,null,null,null,null,null,null,null,null,null,null,null,null,null,null,null,null,null,null,null,null,null,null,null,null,null,null,null,null,null,null,null,null,null,null,null,null,null,null,null,null,null,null,null,null,null,null,null,null,null,null,null,null,null,null,null,null,null,null,null,null,null,null,null,null,null,null,null,null,null,null,null,null,null,null,null,null,null,null,null,null,null,null,null,null,null,null,null,null,null,"R3, 0 - 1",null,"R1, 0 - 1","R6, 0 - 1","R1, 0.5 - 0.5","R2, 0 - 1",null,"R4, 0 - 1","R1, 1 - 0","R1, 0 - 1","R2, 0 - 1","R4, 0 - 1","R5, 0.5 - 0.5",null,null,"R3, 1 - 0",null,"R7, 0 - 1",null,"R2, 1 - 0",null,"R2, 1 - 0","R2, 1 - 0",null,"R6, 0 - 1","R5, 22 - 8","R4, 0 - 1",null,"R1, 1 - 0"]
["Mewash ",null,null,null,null,null,null,null,null,null,null,null,null,null,null,null,null,null,null,null,null,null,null,null,null,null,null,null,null,null,null,null,null,null,null,null,null,null,null,null,null,null,null,null,null,null,null,null,null,null,null,null,null,null,null,null,null,null,null,null,null,null,null,null,null,null,null,null,null,null,null,null,null,null,null,null,null,null,null,null,null,null,null,null,null,null,null,null,null,null,null,null,null,null,null,"R1, 1 - 1",null,null,null,null,"R1, 0.5 - 0.5","R2, 0 - 1",null,"R2, 0.5 - 0.5",null,"R6, 1 - 0","R3, 0.5 - 0.5","R1, 1 - 0","R1, 1 - 0","R1, 1 - 0","R2, 0 - 1","R5, 0.5 - 0.5","R2, 0.5 - 0.5","R3, 3 - 20",null,null,"R7, 1 - 0",null,null,null,null,"R1, 0 - 1","R3, 0 - 1","R2, 1 - 0",null,"R4, 0.5 - 0.5","R6, 0.5 - 0.5","R2, 0.5 - 0.5","R4, 1 - 0"]
["Leonek ",null,null,null,null,null,null,null,null,null,null,null,null,null,null,null,null,null,null,null,null,null,null,null,null,null,null,null,null,null,null,null,null,null,null,null,null,null,null,null,null,null,null,null,null,null,null,null,null,null,null,null,null,null,null,null,null,null,null,null,null,null,"R1, 1 - 1",null,null,null,null,null,null,null,null,null,null,null,null,null,null,null,null,null,null,null,null,null,null,null,null,null,null,null,null,null,null,null,null,null,null,null,null,null,null,null,"R5, 1 - 0","R1, 0.5 - 0.5",null,"R1, 0.5 - 0.5","R5, 0.5 - 0.5","R1, 1 - 0","R2, 1 - 0","R1, 0.5 - 0.5","R1, 0.5 - 0.5","R2, 0 - 1","R1, 0.5 - 0.5",null,null,null,null,null,null,null,"R4, 19 - 2","R2, 1 - 0","R1, 0 - 1","R2, 1 - 0",null,null,null,"R1, 1 - 0"]
["JamesEs ",null,null,null,null,null,null,null,null,null,null,null,null,null,null,null,null,null,null,null,null,null,null,null,null,null,null,null,null,null,null,null,null,null,null,null,null,null,null,null,null,null,null,null,null,null,null,null,null,null,null,null,null,null,null,null,null,null,null,null,null,null,null,null,null,null,null,null,null,null,null,null,null,null,null,null,null,null,null,null,null,null,null,null,null,null,null,null,null,null,null,null,null,null,null,null,null,null,null,null,null,null,null,"R1, 1 - 0","R1, 0.5 - 0.5","R1, 0 - 1","R2, 1 - 0","R2, 0 - 1","R1, 0 - 2","R5, 1 - 0","R5, 1 - 0","R5, 0 - 1","R6, 0 - 1",null,null,null,"R2, 0 - 1",null,null,null,"R8, 0.5 - 0.5",null,"R2, 0 - 1",null,"R4, 0 - 1","R2, 0 - 1","R2, 1 - 0","R6, 0 - 1"]
["Duke_Luthor_Von_Hawkfire ",null,null,null,null,null,null,null,null,null,null,null,null,null,null,null,null,null,null,null,null,null,null,null,null,null,null,null,null,null,null,null,null,null,null,null,null,null,null,null,null,null,null,null,null,null,null,null,null,null,null,null,null,null,null,null,null,null,null,null,null,null,null,null,null,null,null,null,null,null,null,null,null,null,null,null,null,null,null,null,null,null,null,null,null,null,null,null,"R1, 2 - 0",null,null,null,null,null,null,null,null,null,null,null,"R6, 0 - 1","R5, 1 - 0","R1, 0.5 - 0.5","R1, 0.5 - 0.5","R2, 15 - 13","R2, 1 - 0",null,"R5, 0.5 - 0.5","R1, 0 - 1","R1, 0.5 - 0.5",null,"R2, 0.5 - 0.5","R7, 0 - 1",null,null,"R5, 1 - 0",null,null,"R4, 2 - 19","R8, 0.5 - 0.5",null,"R6, 0 - 1","R6, 1 - 0","R4, 0 - 1","R1, 0.5 - 0.5","R3, 0 - 1",null,null,"R2, 0 - 1"]
["Jokaero ",null,null,null,null,null,null,null,null,null,null,null,null,null,null,null,null,null,null,null,null,null,null,null,null,null,null,null,null,null,null,null,null,null,null,null,null,null,null,null,null,null,null,null,null,null,null,null,null,null,null,null,null,null,null,null,null,null,null,null,null,null,null,null,null,null,null,null,null,null,null,null,null,null,null,null,null,null,null,null,null,null,null,null,null,null,"R1, 2 - 0",null,null,null,null,null,null,null,null,null,null,null,null,null,"R6, 0.5 - 0.5",null,"R1, 1 - 0",null,"R2, 0.5 - 0.5",null,"R3, 0.5 - 0.5",null,"R4, 1 - 0","R6, 0 - 1","R6, 0.5 - 0.5","R1, 0 - 1",null,null,null,"R2, 0.5 - 0.5","R2, 0 - 1","R1, 1 - 0","R2, 0 - 1",null,"R6, 1 - 0",null,null,"R6, 10 - 10"]
["Duckwing ",null,null,null,null,null,null,null,null,null,null,null,null,null,null,null,null,null,null,null,null,null,null,null,null,null,null,null,null,null,null,null,null,null,null,null,null,null,null,null,null,null,null,"R1, 0 - 2",null,null,null,null,null,null,null,null,null,null,null,null,null,null,null,null,null,null,null,null,null,null,null,null,null,null,null,null,null,null,null,null,null,null,null,null,null,null,null,null,null,null,null,null,null,null,null,null,null,null,null,null,null,null,null,null,"R3, 0 - 1","R1, 0 - 1",null,"R2, 0 - 1",null,"R2, 0 - 1",null,"R1, 1 - 0","R6, 0 - 1","R6, 5 - 22","R3, 1 - 0","R6, 0.5 - 0.5","R3, 0.5 - 0.5",null,"R7, 1 - 0","R6, 1 - 0","R2, 0 - 1","R3, 1 - 0","R1, 1 - 0","R2, 1 - 0","R6, 0 - 1",null,null,"R5, 0 - 1",null,null,null,null,"R6, 0.5 - 0.5"]
["Justicium ",null,null,null,null,null,null,null,null,null,null,null,null,null,null,null,null,null,null,null,null,null,null,null,null,null,null,null,null,null,null,null,null,null,null,null,null,null,null,null,null,null,null,null,null,null,null,null,null,null,null,null,null,null,null,null,null,null,null,null,null,null,null,null,null,null,null,null,null,null,null,null,null,null,null,null,null,null,null,null,null,null,null,null,null,null,null,null,null,null,null,null,null,null,null,null,"R1, 1 - 1",null,null,null,null,"R5, 0.5 - 0.5","R2, 1 - 0","R1, 1 - 0","R1, 0.5 - 0.5","R6, 0 - 1","R1, 0 - 1","R1, 0 - 1","R6, 0.5 - 0.5","R6, 0 - 1","R4, 0 - 1","R5, 0 - 1",null,null,"R1, 0.5 - 0.5",null,null,"R2, 0 - 1","R2, 0 - 1",null,"R4, 1 - 0","R6, 10 - 10","R5, 1 - 0"]
["Liam ",null,null,null,null,null,null,null,null,null,null,null,null,null,null,null,null,null,null,null,null,null,null,null,null,null,null,null,null,null,null,null,null,null,null,null,null,null,null,null,null,null,null,null,null,null,null,null,null,null,null,null,null,null,null,null,null,null,null,null,null,null,null,null,null,null,null,null,null,null,null,null,null,null,"R1, 2 - 0",null,null,null,null,null,null,null,null,null,null,null,null,null,null,null,null,null,null,null,null,null,null,null,null,null,null,null,null,null,"R2, 0 - 1","R3, 0 - 1","R6, 0 - 1","R6, 0.5 - 0.5","R1, 0 - 1",null,null,"R4, 0.5 - 0.5","R5, 0 - 1","R2, 0.5 - 0.5","R2, 0 - 1",null,"R6, 1 - 0",null,null,"R4, 1 - 0","R1, 0.5 - 0.5"]
["Endalos ",null,null,null,null,null,null,"R1, 2 - 0",null,null,null,null,null,null,null,null,null,null,null,null,null,null,null,null,null,null,null,null,null,null,null,null,null,null,null,null,null,null,null,null,null,null,null,null,null,null,null,null,null,null,null,null,null,null,null,null,null,null,null,null,null,null,null,null,null,null,null,null,null,null,null,null,null,null,null,null,null,null,null,null,null,null,null,null,null,null,null,null,null,null,null,null,null,null,null,null,null,null,null,null,"R1, 0 - 1","R2, 0 - 1",null,"R4, 1 - 0",null,"R2, 0.5 - 0.5",null,"R3, 0.5 - 0.5","R1, 1 - 0","R1, 0 - 1",null,null,"R8, 0.5 - 0.5","R1, 0.5 - 0.5","R6, 0 - 1","R2, 1 - 0","R5, 8 - 22","R4, 0.5 - 0.5",null,"R2, 1 - 0","R3, 1 - 0",null,null,null,null,null,"R6, 0.5 - 0.5"]
["bothun ",null,null,null,null,null,null,null,null,null,null,null,null,null,null,null,null,null,null,null,null,null,null,null,null,null,null,null,null,null,null,null,null,null,null,null,null,null,null,null,null,null,null,null,null,null,null,null,null,null,null,null,null,null,null,null,null,null,null,null,null,null,null,null,null,null,null,null,null,null,null,null,null,null,null,null,null,null,null,null,null,null,null,null,null,null,null,null,null,null,null,null,null,null,null,null,null,null,null,null,null,"R1, 2 - 0",null,null,null,"R6, 0.5 - 0.5","R2, 0.5 - 0.5","R6, 1 - 0",null,"R1, 0 - 1","R3, 1 - 0","R1, 0 - 1","R4, 0 - 1","R2, 0 - 1",null,"R1, 0 - 1","R4, 1 - 0","R6, 0.5 - 0.5",null,"R2, 0 - 1",null,null,null,null,null,"R6, 0.5 - 0.5",null,"R3, 1 - 0"]
["Inforthepain ",null,null,null,null,null,null,null,null,null,null,null,null,null,null,null,null,null,null,null,null,null,null,null,null,null,null,null,null,null,null,null,null,null,null,null,null,null,null,null,null,"R1, 1 - 1",null,null,null,null,null,null,null,null,null,null,null,null,null,null,null,null,null,null,null,null,null,null,null,null,null,null,null,null,null,null,null,null,null,null,null,null,null,null,null,null,null,null,null,null,null,null,null,null,null,null,null,null,null,null,null,null,null,null,"R2, 0 - 1",null,null,"R1, 0.5 - 0.5",null,"R6, 0.5 - 0.5","R6, 0.5 - 0.5",null,null,"R5, 0.5 - 0.5","R2, 0 - 1","R3, 1 - 0",null,null,"R2, 0.5 - 0.5",null,null,"R2, 0.5 - 0.5","R1, 0 - 1","R6, 1 - 0",null,null,null,null,null,null,"R3, 0 - 1"]
["sigu70 ",null,null,null,null,null,null,null,null,null,null,null,null,null,null,null,null,null,null,null,null,null,null,null,null,null,null,null,null,null,null,null,null,null,null,null,null,null,null,null,null,null,null,null,null,null,null,null,null,null,null,null,null,null,null,null,null,null,null,null,null,null,null,null,null,null,null,null,null,null,null,null,null,null,null,null,null,null,null,null,null,null,null,null,null,null,null,null,null,null,null,null,null,null,null,null,null,null,null,null,null,null,"R1, 1 - 0",null,null,"R1, 0.5 - 0.5","R5, 0 - 1","R8, 0 - 1","R3, 0.5 - 0.5","R1, 0 - 2","R2, 1 - 0","R6, 0.5 - 0.5","R3, 0.5 - 0.5","R1, 1 - 0",null,"R4, 1 - 0","R1, 0 - 1","R4, 0 - 1",null,null,"R2, 1 - 0",null,"R6, 0.5 - 0.5"]

{"sheet":"Round1","index":10,"n_rows":129,"n_cols":33,"rows_kept":129,"cut":false,"hidden":false,"merged":[]}
[null,"Home Player","Away Player","Home Points","Away Points","Home TD","Away TD","Home Cas","Away Cas","Home Bonus1","Away Bonus1","Home Bonus2","Away Bonus2","Home Group","Away Group",null,null,null,"Points Before Games",null,null,"Points After Games",null,null,"Group Results","Group","Points",null,"Group Points Before Games",null,null,"Group Points After Games"]
[null,"Harti ","sann0638 ",{"$f":"fctScore(F2,G2,H2,J2,L2)","v":1},{"$f":"fctScore(G2,F2,I2,K2,M2)","v":1},2,2,2,1,1,2,0,2,"France","Scotland",null,null,null,"Wilzif ",0,null,"Gros Nain ",2,null,null,"Belgium",7,null,"France",0,null,"Germany",213]
[null,"BiBi ","Garrick ",{"$f":"fctScore(F3,G3,H3,J3,L3)","v":1},{"$f":"fctScore(G3,F3,I3,K3,M3)","v":1},2,2,0,1,3,2,1,3,"France","Scotland",null,null,null,"sann0638 ",0,null,"Topper ",2,null,null,"Denmark",212,null,"Scotland",0,null,"Denmark",212]
[null,"Gros Nain ","HumptyTrump ",2,0,3,0,3,1,2,2,0,2,"France","Scotland",null,null,null,"sigu70 ",0,null,"Geggster ",2,null,null,"England",209,null,"Spain",0,null,"Viking",210]
[null,"Justicium ","DonShula ",1,1,1,1,2,2,1,1,2,2,"France","Scotland",null,null,null,"Strider84 ",0,null,"SpecialOne ",2,null,null,"Finland",209,null,"Hungary",0,null,"Hungary",209]
[null,"BudWiser ","Purdindas ",0,2,2,3,3,1,2,3,1,2,"France","Scotland",null,null,null,"Pellevin ",0,null,"Loki ",2,null,null,"France",209,null,"Germany",0,null,"England",209]
[null,"Simon_ACP ","Loki ",0,2,0,3,2,0,2,0,0,2,"France","Scotland",null,null,null,"JohnnyD ",0,null,"swifty ",2,null,null,"Germany",213,null,"Switzerland",0,null,"Finland",209]
[null,"Bouzzy ","Valen ",2,0,1,0,1,1,1,3,3,1,"France","Scotland",null,null,null,"Slimaq ",0,null,"BlackOrc ",2,null,null,"Hungary",209,null,"Sweden",0,null,"France",209]
[null,"Matt le fou ","JamesEs ",2,0,1,0,0,2,1,1,2,1,"France","Scotland",null,null,null,"Garrick ",0,null,"Tank ",2,null,null,"Italy",108,null,"Viking",0,null,"Poland",108]
[null,"Duke_Luthor_Von_Hawkfire ","Alex05 ",2,0,2,1,1,2,0,1,3,1,"Spain","Hungary",null,null,null,"JJ ",0,null,"Jokaero ",2,null,null,"Norway",4,null,"Belgium",0,null,"Italy",108]
[null,"Malasnoticias ","noraal ",2,0,2,1,1,3,2,2,1,0,"Spain","Hungary",null,null,null,"GreatWhiteHope ",0,null,"Mufflo ",2,null,null,"Poland",108,null,"England",0,null,"Scotland",7]
[null,"Obeliz ","cz ",1,1,2,2,3,3,0,2,3,1,"Spain","Hungary",null,null,null,"Macabeo ",0,null,"Niebling ",2,null,null,"Scotland",7,null,"Denmark",0,null,"Wales",7]
[null,"Dark Duke ","Favi ",1,1,2,2,2,1,1,1,1,0,"Spain","Hungary",null,null,null,"Harti ",0,null,"Candlejack ",2,null,null,"Spain",7,null,"Norway",0,null,"Belgium",7]
[null,"Joanet ","swifty ",0,2,1,3,0,1,1,1,0,1,"Spain","Hungary",null,null,null,"Beppe ",0,null,"valkohukka ",2,null,null,"Sweden",6,null,"Italy",0,null,"Spain",7]
[null,"Tactel ","Itzla ",0,2,1,2,2,0,3,2,2,1,"Spain","Hungary",null,null,null,"Duke_Luthor_Von_Hawkfire ",0,null,"Domingo ",2,null,null,"Switzerland",3,null,"Poland",0,null,"Sweden",6]
[null,"Idroj ","BlackOrc ",0,2,0,2,1,2,2,2,0,1,"Spain","Hungary",null,null,null,"BiBi ",0,null,"Muadib ",2,null,null,"Viking",210,null,"Finland",0,null,"Norway",4]
[null,"Barry ","Wolio ",1,1,0,0,1,0,0,2,2,2,"Spain","Hungary",null,null,null,"Tripleskull ",0,null,"Purrelito ",2,null,null,"Wales",7,null,"Wales",0,null,"Switzerland",3]
[null,"Candlejack ","sigu70 ",2,0,2,0,1,2,1,1,0,2,"Germany","Switzerland",null,null,null,"Ploppy_McPloppy ",0,null,"Verrinho ",2]
[null,"Prince ","Strider84 ",2,0,3,2,0,2,1,1,1,1,"Germany","Switzerland",null,null,null,"Gros Nain ",0,null,"Liam ",2]
[null,"DocMaxx ","Macabeo ",2,0,1,0,2,1,3,0,1,1,"Germany","Switzerland",null,null,null,"Duckwing ",0,null,"DocMaxx ",2]
[null,"Gaunab ","Madmatt13 ",2,0,3,2,1,2,1,0,0,1,"Germany","Switzerland",null,null,null,"Malasnoticias ",0,null,"Bernuz ",2]
[null,"RoterSternHochdahl","Phifoe ",2,0,2,1,1,1,1,1,0,1,"Germany","Switzerland",null,null,null,"Candlejack ",0,null,"Endalos ",2]
[null,"Arioso ","Jokaero ",0,2,1,3,2,2,3,1,2,0,"Germany","Switzerland",null,null,null,"Domingo ",0,null,"Malodoror ",2]
[null,"Muadib ","Goss ",2,0,2,1,3,0,3,2,1,0,"Germany","Switzerland",null,null,null,"Alex05 ",0,null,"MadeofWelsh ",2]
[null,"Jonny_Kanone ","Elrik ",1,1,1,1,3,0,0,1,2,3,"Germany","Switzerland",null,null,null,"Niebling ",0,null,"bothun ",2]
[null,"Pellevin ","Duckwing ",2,0,2,1,3,2,2,2,3,1,"Sweden","Viking",null,null,null,"JimJimany ",0,null,"Pellevin ",2]
[null,"JohnnyD ","Corwin ",1,1,1,1,2,1,1,2,2,2,"Sweden","Viking",null,null,null,"andydavo ",0,null,"PurpleGoo ",2]
[null,"Skoberget ","Bernuz ",0,2,1,2,1,2,1,2,3,1,"Sweden","Viking",null,null,null,"Jaqra ",0,null,"Dionysian ",2]
[null,"Inforthepain ","Faccko ",1,1,1,1,0,2,1,2,1,3,"Sweden","Viking",null,null,null,"Madmatt13 ",0,null,"jopotzuki ",2]
[null,"Skuld ","brocCooli ",1,1,1,1,2,2,2,2,0,2,"Sweden","Viking",null,null,null,"FrankPedersen ",0,null,"Driesfield ",2]
[null,"Melisqus ","Mufflo ",0,2,1,3,0,0,2,1,1,0,"Sweden","Viking",null,null,null,"Phifoe ",0,null,"RoterSternHochdahl",2]
[null,"Pidpad ","Purrelito ",0,2,0,1,0,2,2,2,1,1,"Sweden","Viking",null,null,null,"MadeofWelsh ",0,null,"Woete ",2]
[null,"Dragons ","Balder ",1,1,2,2,1,3,2,0,2,2,"Sweden","Viking",null,null,null,"HumptyTrump ",0,null,"Bouzzy ",2]
[null,"JJ ","Wilzif ",0,2,0,1,1,1,3,2,2,1,"Belgium","England",null,null,null,"Prince ",0,null,"Wilzif ",2]
[null,"Driesfield ","JimJimany ",2,0,2,1,1,1,3,0,2,1,"Belgium","England",null,null,null,"DocMaxx ",0,null,"Harza ",2]
[null,"gninocker ","PurpleGoo ",0,2,0,1,0,1,3,2,1,3,"Belgium","England",null,null,null,"Tank ",0,null,"Slimaq ",2]
[null,"Dekra1979 ","Joemanji ",1,1,1,1,1,1,2,0,2,3,"Belgium","England",null,null,null,"Mewash ",0,null,"Tripleskull ",2]
[null,"Araznaroth ","Mubo ",0,2,2,3,2,1,2,0,2,2,"Belgium","England",null,null,null,"Justicium ",0,null,"Duke_Luthor_Von_Hawkfire ",2]
[null,"Woete ","Podfrey ",2,0,1,0,1,1,2,0,2,2,"Belgium","England",null,null,null,"Juniooor7 ",0,null,"Mubo ",2]
[null,"Malodoror ","Lycos ",2,0,2,1,3,2,2,3,3,1,"Belgium","England",null,null,null,"Driesfield ",0,null,"Gaunab ",2]
[null,"Phoenix11 ","Geggster ",0,2,0,3,2,2,1,0,1,0,"Belgium","England",null,null,null,"Farina ",0,null,"Jaqra ",2]
[null,"Tripleskull ","GreatWhiteHope ",2,0,2,1,0,1,2,3,1,1,"Denmark","Norway",null,null,null,"jopotzuki ",0,null,"Purdindas ",2]
[null,"Niebling ","FrankPedersen ",2,0,3,1,1,2,1,1,1,3,"Denmark","Norway",null,null,null,"noraal ",0,null,"Matt le fou ",2]
[null,"Jaqra ","straume ",2,0,2,1,1,3,2,3,2,1,"Denmark","Norway",null,null,null,"Skoberget ",0,null,"Itzla ",2]
[null,"Tank ","mynock ",2,0,3,1,1,1,1,0,2,3,"Denmark","Norway",null,null,null,"Inforthepain ",0,null,"Malasnoticias ",2]
[null,"MissSweden ","Endalos ",0,2,1,2,1,2,2,1,0,1,"Denmark","Norway",null,null,null,"Jokaero ",0,null,"Prince ",2]
[null,"kfoged ","bothun ",0,2,1,2,1,2,0,2,3,1,"Denmark","Norway",null,null,null,"MissSweden ",0,null,"Jonny_Kanone ",1]
[null,"Topper ","zulu ",2,0,3,0,3,2,2,3,2,1,"Denmark","Norway",null,null,null,"Spartako ",0,null,"Balder ",1]
[null,"SpecialOne ","The_Ref ",2,0,3,0,1,2,1,1,1,2,"Denmark","Norway",null,null,null,"Goss ",0,null,"J-Ho",1]
[null,"Beppe ","Slimaq ",0,2,1,2,1,0,3,0,2,3,"Italy","Poland",null,null,null,"Obeliz ",0,null,"Faccko ",1]
[null,"Farina ","Domingo ",0,2,1,3,3,1,1,2,3,1,"Italy","Poland",null,null,null,"gninocker ",0,null,"SFisher91 ",1]
[null,"Spartako ","Mewash ",1,1,1,1,1,0,2,0,1,2,"Italy","Poland",null,null,null,"Gaunab ",0,null,"Barry ",1]
[null,"Verrinho ","Juniooor7 ",2,0,2,1,3,1,0,1,1,2,"Italy","Poland",null,null,null,"RoterSternHochdahl",0,null,"Garrick ",1]
[null,"Liam ","Warrior1980 ",2,0,3,2,1,0,0,0,1,1,"Italy","Poland",null,null,null,"Warrior1980 ",0,null,"JohnnyD ",1]
[null,"Matte8 ","Leonek ",1,1,3,3,2,2,0,1,0,2,"Italy","Poland",null,null,null,"valkohukka ",0,null,"20Phoenix ",1]
[null,"Kaltenland ","Shawass ",1,1,2,2,1,1,2,2,2,1,"Italy","Poland",null,null,null,"cz ",0,null,"Dirold ",1]
[null,"Dirold ","Reszka ",1,1,1,1,2,1,2,1,2,0,"Italy","Poland",null,null,null,"Elrik ",0,null,"Dark Duke ",1]
[null,"jopotzuki ","Ploppy_McPloppy ",2,0,2,1,3,3,3,3,1,2,"Finland","Wales",null,null,null,"Northernknight ",0,null,"Spartako ",1]
[null,"valkohukka ","andydavo ",2,0,3,1,1,2,0,1,2,0,"Finland","Wales",null,null,null,"DonShula ",0,null,"Harti ",1]
[null,"BeerBeer ","MadeofWelsh ",0,2,0,1,1,2,1,1,2,1,"Finland","Wales",null,null,null,"Favi ",0,null,"Kaltenland ",1]
[null,"J-Ho","Northernknight ",1,1,1,1,3,1,2,2,1,3,"Finland","Wales",null,null,null,"Corwin ",0,null,"Matte8 ",1]
[null,"edheim ","SFisher91 ",1,1,2,2,1,2,2,1,3,1,"Finland","Wales",null,null,null,"Leonek ",0,null,"cz ",1]
[null,"MacWitt ","Dionysian ",0,2,2,3,1,1,0,1,3,2,"Finland","Wales",null,null,null,"Dekra1979 ",0,null,"Justicium ",1]
[null,"ratogre ","20Phoenix ",1,1,2,2,1,2,2,3,0,2,"Finland","Wales",null,null,null,"straume ",0,null,"Skuld ",1]
[null,"Harza ","nonumber ",2,0,1,0,1,2,1,1,3,3,"Finland","Wales",null,null,null,"PurpleGoo ",0,null,"Joemanji ",1]
[null,null,null,null,null,null,null,null,null,null,null,null,null,null,null,null,null,null,"BeerBeer ",0,null,"Leonek ",1]
[null,null,null,null,null,null,null,null,null,null,null,null,null,null,null,null,null,null,"mynock ",0,null,"DonShula ",1]
[null,null,null,null,null,null,null,null,null,null,null,null,null,null,null,null,null,null,"Skuld ",0,null,"Dekra1979 ",1]
[null,null,null,null,null,null,null,null,null,null,null,null,null,null,null,null,null,null,"Verrinho ",0,null,"brocCooli ",1]
[null,null,null,null,null,null,null,null,null,null,null,null,null,null,null,null,null,null,"Araznaroth ",0,null,"Obeliz ",1]
[null,null,null,null,null,null,null,null,null,null,null,null,null,null,null,null,null,null,"Shawass ",0,null,"Shawass ",1]
[null,null,null,null,null,null,null,null,null,null,null,null,null,null,null,null,null,null,"BudWiser ",0,null,"Mewash ",1]
[null,null,null,null,null,null,null,null,null,null,null,null,null,null,null,null,null,null,"swifty ",0,null,"edheim ",1]
[null,null,null,null,null,null,null,null,null,null,null,null,null,null,null,null,null,null,"Endalos ",0,null,"Favi ",1]
[null,null,null,null,null,null,null,null,null,null,null,null,null,null,null,null,null,null,"Joemanji ",0,null,"BiBi ",1]
[null,null,null,null,null,null,null,null,null,null,null,null,null,null,null,null,null,null,"J-Ho",0,null,"Wolio ",1]
[null,null,null,null,null,null,null,null,null,null,null,null,null,null,null,null,null,null,"edheim ",0,null,"Reszka ",1]
[null,null,null,null,null,null,null,null,null,null,null,null,null,null,null,null,null,null,"Mubo ",0,null,"ratogre ",1]
[null,null,null,null,null,null,null,null,null,null,null,null,null,null,null,null,null,null,"MacWitt ",0,null,"sann0638 ",1]
[null,null,null,null,null,null,null,null,null,null,null,null,null,null,null,null,null,null,"ratogre ",0,null,"Corwin ",1]
[null,null,null,null,null,null,null,null,null,null,null,null,null,null,null,null,null,null,"Melisqus ",0,null,"Dragons ",1]
[null,null,null,null,null,null,null,null,null,null,null,null,null,null,null,null,null,null,"Simon_ACP ",0,null,"Inforthepain ",1]
[null,null,null,null,null,null,null,null,null,null,null,null,null,null,null,null,null,null,"Purdindas ",0,null,"Northernknight ",1]
[null,null,null,null,null,null,null,null,null,null,null,null,null,null,null,null,null,null,"Reszka ",0,null,"Elrik ",1]
[null,null,null,null,null,null,null,null,null,null,null,null,null,null,null,null,null,null,"Liam ",0,null,"Tactel ",0]
[null,null,null,null,null,null,null,null,null,null,null,null,null,null,null,null,null,null,"Bouzzy ",0,null,"straume ",0]
[null,null,null,null,null,null,null,null,null,null,null,null,null,null,null,null,null,null,"kfoged ",0,null,"JamesEs ",0]
[null,null,null,null,null,null,null,null,null,null,null,null,null,null,null,null,null,null,"Loki ",0,null,"Strider84 ",0]
[null,null,null,null,null,null,null,null,null,null,null,null,null,null,null,null,null,null,"Bernuz ",0,null,"BudWiser ",0]
[null,null,null,null,null,null,null,null,null,null,null,null,null,null,null,null,null,null,"Matte8 ",0,null,"noraal ",0]
[null,null,null,null,null,null,null,null,null,null,null,null,null,null,null,null,null,null,"Kaltenland ",0,null,"nonumber ",0]
[null,null,null,null,null,null,null,null,null,null,null,null,null,null,null,null,null,null,"Faccko ",0,null,"Madmatt13 ",0]
[null,null,null,null,null,null,null,null,null,null,null,null,null,null,null,null,null,null,"bothun ",0,null,"GreatWhiteHope ",0]
[null,null,null,null,null,null,null,null,null,null,null,null,null,null,null,null,null,null,"Podfrey ",0,null,"Alex05 ",0]
[null,null,null,null,null,null,null,null,null,null,null,null,null,null,null,null,null,null,"Dark Duke ",0,null,"Araznaroth ",0]
[null,null,null,null,null,null,null,null,null,null,null,null,null,null,null,null,null,null,"brocCooli ",0,null,"Beppe ",0]
[null,null,null,null,null,null,null,null,null,null,null,null,null,null,null,null,null,null,"zulu ",0,null,"JJ ",0]
[null,null,null,null,null,null,null,null,null,null,null,null,null,null,null,null,null,null,"Woete ",0,null,"Ploppy_McPloppy ",0]
[null,null,null,null,null,null,null,null,null,null,null,null,null,null,null,null,null,null,"Arioso ",0,null,"Phifoe ",0]
[null,null,null,null,null,null,null,null,null,null,null,null,null,null,null,null,null,null,"Valen ",0,null,"MacWitt ",0]
[null,null,null,null,null,null,null,null,null,null,null,null,null,null,null,null,null,null,"Joanet ",0,null,"Podfrey ",0]
[null,null,null,null,null,null,null,null,null,null,null,null,null,null,null,null,null,null,"Mufflo ",0,null,"Valen ",0]
[null,null,null,null,null,null,null,null,null,null,null,null,null,null,null,null,null,null,"JamesEs ",0,null,"JimJimany ",0]
[null,null,null,null,null,null,null,null,null,null,null,null,null,null,null,null,null,null,"Itzla ",0,null,"Warrior1980 ",0]
[null,null,null,null,null,null,null,null,null,null,null,null,null,null,null,null,null,null,"The_Ref ",0,null,"Skoberget ",0]
[null,null,null,null,null,null,null,null,null,null,null,null,null,null,null,null,null,null,"BlackOrc ",0,null,"Duckwing ",0]
[null,null,null,null,null,null,null,null,null,null,null,null,null,null,null,null,null,null,"Matt le fou ",0,null,"Lycos ",0]
[null,null,null,null,null,null,null,null,null,null,null,null,null,null,null,null,null,null,"Topper ",0,null,"BeerBeer ",0]
[null,null,null,null,null,null,null,null,null,null,null,null,null,null,null,null,null,null,"Wolio ",0,null,"Macabeo ",0]
[null,null,null,null,null,null,null,null,null,null,null,null,null,null,null,null,null,null,"Harza ",0,null,"gninocker ",0]
[null,null,null,null,null,null,null,null,null,null,null,null,null,null,null,null,null,null,"Pidpad ",0,null,"kfoged ",0]
[null,null,null,null,null,null,null,null,null,null,null,null,null,null,null,null,null,null,"Tactel ",0,null,"MissSweden ",0]
[null,null,null,null,null,null,null,null,null,null,null,null,null,null,null,null,null,null,"Lycos ",0,null,"Pidpad ",0]
[null,null,null,null,null,null,null,null,null,null,null,null,null,null,null,null,null,null,"Dirold ",0,null,"Juniooor7 ",0]
[null,null,null,null,null,null,null,null,null,null,null,null,null,null,null,null,null,null,"Dragons ",0,null,"Goss ",0]
[null,null,null,null,null,null,null,null,null,null,null,null,null,null,null,null,null,null,"SFisher91 ",0,null,"Farina ",0]
[null,null,null,null,null,null,null,null,null,null,null,null,null,null,null,null,null,null,"Dionysian ",0,null,"sigu70 ",0]
[null,null,null,null,null,null,null,null,null,null,null,null,null,null,null,null,null,null,"Muadib ",0,null,"FrankPedersen ",0]
[null,null,null,null,null,null,null,null,null,null,null,null,null,null,null,null,null,null,"Malodoror ",0,null,"andydavo ",0]
[null,null,null,null,null,null,null,null,null,null,null,null,null,null,null,null,null,null,"Geggster ",0,null,"Melisqus ",0]
[null,null,null,null,null,null,null,null,null,null,null,null,null,null,null,null,null,null,"SpecialOne ",0,null,"mynock ",0]
[null,null,null,null,null,null,null,null,null,null,null,null,null,null,null,null,null,null,"Idroj ",0,null,"Arioso ",0]
[null,null,null,null,null,null,null,null,null,null,null,null,null,null,null,null,null,null,"Purrelito ",0,null,"Joanet ",0]
[null,null,null,null,null,null,null,null,null,null,null,null,null,null,null,null,null,null,"Phoenix11 ",0,null,"Idroj ",0]
[null,null,null,null,null,null,null,null,null,null,null,null,null,null,null,null,null,null,"20Phoenix ",0,null,"Simon_ACP ",0]
[null,null,null,null,null,null,null,null,null,null,null,null,null,null,null,null,null,null,"Jonny_Kanone ",0,null,"The_Ref ",0]
[null,null,null,null,null,null,null,null,null,null,null,null,null,null,null,null,null,null,"nonumber ",0,null,"Phoenix11 ",0]
[null,null,null,null,null,null,null,null,null,null,null,null,null,null,null,null,null,null,"Barry ",0,null,"zulu ",0]
[null,null,null,null,null,null,null,null,null,null,null,null,null,null,null,null,null,null,"Balder ",0,null,"HumptyTrump ",0]

{"sheet":"Round2","index":11,"n_rows":129,"n_cols":30,"rows_kept":129,"cut":false,"hidden":false,"merged":[]}
[null,"Home Player","Away Player","Home Points","Away Points","Home TD","Away TD","Home Cas","Away Cas","Home Bonus1","Away Bonus1","Home Bonus2","Away Bonus2","Home Group","Away Group",null,null,null,"Points Before Games",null,null,null,null,null,null,null,null,null,"Group Points Before Games"]
[null,"Candlejack ","Topper ",{"$f":"fctScore(F2,G2,H2,J2,L2)","v":1},{"$f":"fctScore(G2,F2,I2,K2,M2)","v":1},2,2,2,0,1,1,0,0,"Germany","Denmark",null,null,null,"Gros Nain ",2,null,null,null,null,null,null,null,null,"Germany",213]
[null,"Muadib ","SpecialOne ",{"$f":"fctScore(F3,G3,H3,J3,L3)","v":0},{"$f":"fctScore(G3,F3,I3,K3,M3)","v":2},1,2,2,2,0,1,0,1,"Germany","Denmark",null,null,null,"Topper ",2,null,null,null,null,null,null,null,null,"Denmark",212]
[null,"DocMaxx ","Tank ",1,1,2,2,2,1,3,2,2,1,"Germany","Denmark",null,null,null,"Geggster ",2,null,null,null,null,null,null,null,null,"Viking",210]
[null,"RoterSternHochdahl","Niebling ",2,0,2,0,0,1,2,3,1,2,"Germany","Denmark",null,null,null,"SpecialOne ",2,null,null,null,null,null,null,null,null,"Hungary",209]
[null,"Gaunab ","Tripleskull ",2,0,2,0,2,1,1,2,3,3,"Germany","Denmark",null,null,null,"Loki ",2,null,null,null,null,null,null,null,null,"England",209]
[null,"Prince ","Jaqra ",2,0,2,0,2,3,0,3,0,1,"Germany","Denmark",null,null,null,"swifty ",2,null,null,null,null,null,null,null,null,"Finland",209]
[null,"Jonny_Kanone ","kfoged ",1,1,2,2,0,0,2,1,1,2,"Germany","Denmark",null,null,null,"BlackOrc ",2,null,null,null,null,null,null,null,null,"France",209]
[null,"Arioso ","MissSweden ",2,0,2,1,1,0,1,2,2,2,"Germany","Denmark",null,null,null,"Tank ",2,null,null,null,null,null,null,null,null,"Poland",108]
[null,"Mufflo ","swifty ",1,1,2,2,1,2,2,2,2,1,"Viking","Hungary",null,null,null,"Jokaero ",2,null,null,null,null,null,null,null,null,"Italy",108]
[null,"Purrelito ","BlackOrc ",2,0,2,0,1,3,2,1,1,1,"Viking","Hungary",null,null,null,"Mufflo ",2,null,null,null,null,null,null,null,null,"Scotland",7]
[null,"Bernuz ","Itzla ",2,0,3,1,1,2,2,2,2,1,"Viking","Hungary",null,null,null,"Niebling ",2,null,null,null,null,null,null,null,null,"Wales",7]
[null,"Balder ","cz ",1,1,2,2,3,1,1,2,1,1,"Viking","Hungary",null,null,null,"Candlejack ",2,null,null,null,null,null,null,null,null,"Belgium",7]
[null,"Faccko ","Favi ",1,1,2,2,0,0,2,3,2,1,"Viking","Hungary",null,null,null,"valkohukka ",2,null,null,null,null,null,null,null,null,"Spain",7]
[null,"brocCooli ","Wolio ",1,1,1,1,3,2,1,1,2,2,"Viking","Hungary",null,null,null,"Domingo ",2,null,null,null,null,null,null,null,null,"Sweden",6]
[null,"Corwin ","noraal ",0,2,0,2,3,1,0,1,2,1,"Viking","Hungary",null,null,null,"Muadib ",2,null,null,null,null,null,null,null,null,"Norway",4]
[null,"Duckwing ","Alex05 ",0,2,1,2,1,2,2,1,1,0,"Viking","Hungary",null,null,null,"Purrelito ",2,null,null,null,null,null,null,null,null,"Switzerland",3]
[null,"Geggster ","valkohukka ",2,0,3,1,2,1,3,1,2,1,"England","Finland",null,null,null,"Verrinho ",2]
[null,"PurpleGoo ","jopotzuki ",2,0,1,0,1,1,2,0,1,0,"England","Finland",null,null,null,"Liam ",2]
[null,"Wilzif ","Harza ",0,2,1,2,2,3,2,2,2,1,"England","Finland",null,null,null,"DocMaxx ",2]
[null,"Mubo ","J-Ho",2,0,3,1,2,2,2,2,2,2,"England","Finland",null,null,null,"Bernuz ",2]
[null,"Joemanji ","edheim ",0,2,1,2,2,2,1,1,1,3,"England","Finland",null,null,null,"Endalos ",2]
[null,"Podfrey ","ratogre ",1,1,2,2,1,0,1,0,2,0,"England","Finland",null,null,null,"Malodoror ",2]
[null,"JimJimany ","MacWitt ",1,1,1,1,0,2,2,1,1,1,"England","Finland",null,null,null,"MadeofWelsh ",2]
[null,"Lycos ","BeerBeer ",2,0,2,1,0,3,0,1,2,2,"England","Finland",null,null,null,"bothun ",2]
[null,"Gros Nain ","Domingo ",2,0,2,1,1,3,2,1,1,1,"France","Poland",null,null,null,"Pellevin ",2]
[null,"Bouzzy ","Slimaq ",0,2,1,2,2,2,2,0,2,1,"France","Poland",null,null,null,"PurpleGoo ",2]
[null,"Matt le fou ","Leonek ",0,2,0,1,3,1,2,1,1,1,"France","Poland",null,null,null,"Dionysian ",2]
[null,"Harti ","Shawass ",1,1,1,1,1,2,1,2,2,2,"France","Poland",null,null,null,"jopotzuki ",2]
[null,"Justicium ","Mewash ",1,1,0,0,0,1,1,2,1,3,"France","Poland",null,null,null,"Driesfield ",2]
[null,"BiBi ","Reszka ",2,0,3,2,1,0,1,0,2,3,"France","Poland",null,null,null,"RoterSternHochdahl",2]
[null,"BudWiser ","Warrior1980 ",1,1,1,1,3,0,2,2,2,2,"France","Poland",null,null,null,"Woete ",2]
[null,"Simon_ACP ","Juniooor7 ",2,0,3,0,1,2,1,2,1,3,"France","Poland",null,null,null,"Bouzzy ",2]
[null,"Verrinho ","Loki ",0,2,1,3,1,2,3,1,3,3,"Italy","Scotland",null,null,null,"Wilzif ",2]
[null,"Liam ","Purdindas ",2,0,3,2,2,1,0,2,2,3,"Italy","Scotland",null,null,null,"Harza ",2]
[null,"Dirold ","Garrick ",2,0,1,0,2,0,1,1,1,3,"Italy","Scotland",null,null,null,"Slimaq ",2]
[null,"Spartako ","DonShula ",0,2,0,2,2,2,0,2,1,3,"Italy","Scotland",null,null,null,"Tripleskull ",2]
[null,"Kaltenland ","sann0638 ",1,1,1,1,1,1,1,2,2,1,"Italy","Scotland",null,null,null,"Duke_Luthor_Von_Hawkfire ",2]
[null,"Matte8 ","JamesEs ",1,1,2,2,3,3,1,2,2,1,"Italy","Scotland",null,null,null,"Mubo ",2]
[null,"Beppe ","Valen ",2,0,2,1,1,0,3,1,2,2,"Italy","Scotland",null,null,null,"Gaunab ",2]
[null,"Farina ","HumptyTrump ",0,2,0,2,2,2,1,0,1,2,"Italy","Scotland",null,null,null,"Jaqra ",2]
[null,"MadeofWelsh ","Malodoror ",0,2,0,1,0,0,1,3,2,1,"Wales","Belgium",null,null,null,"Purdindas ",2]
[null,"Dionysian ","Driesfield ",1,1,1,1,0,1,1,3,1,1,"Wales","Belgium",null,null,null,"Matt le fou ",2]
[null,"SFisher91 ","Woete ",2,0,2,1,2,1,1,0,2,1,"Wales","Belgium",null,null,null,"Itzla ",2]
[null,"20Phoenix ","Dekra1979 ",0,2,2,3,1,2,1,0,0,0,"Wales","Belgium",null,null,null,"Malasnoticias ",2]
[null,"Northernknight ","Araznaroth ",0,2,0,2,1,0,0,2,3,2,"Wales","Belgium",null,null,null,"Prince ",2]
[null,"nonumber ","JJ ",0,2,2,3,2,0,2,1,1,2,"Wales","Belgium",null,null,null,"Jonny_Kanone ",1]
[null,"Ploppy_McPloppy ","gninocker ",1,1,1,1,1,3,0,1,2,2,"Wales","Belgium",null,null,null,"Balder ",1]
[null,"andydavo ","Phoenix11 ",2,0,2,0,1,0,2,3,1,1,"Wales","Belgium",null,null,null,"J-Ho",1]
[null,"Duke_Luthor_Von_Hawkfire ","Pellevin ",2,0,3,1,1,1,1,3,2,2,"Spain","Sweden",null,null,null,"Faccko ",1]
[null,"Malasnoticias ","JohnnyD ",0,2,0,3,0,2,2,1,3,1,"Spain","Sweden",null,null,null,"SFisher91 ",1]
[null,"Barry ","Skuld ",2,0,2,1,1,2,2,1,2,2,"Spain","Sweden",null,null,null,"Barry ",1]
[null,"Dark Duke ","Dragons ",1,1,0,0,0,0,2,3,1,1,"Spain","Sweden",null,null,null,"Garrick ",1]
[null,"Obeliz ","Inforthepain ",2,0,3,1,1,3,0,0,3,3,"Spain","Sweden",null,null,null,"JohnnyD ",1]
[null,"Tactel ","Skoberget ",0,2,2,3,1,2,2,3,1,0,"Spain","Sweden",null,null,null,"20Phoenix ",1]
[null,"Joanet ","Pidpad ",2,0,3,0,1,2,1,2,3,2,"Spain","Sweden",null,null,null,"Dirold ",1]
[null,"Idroj ","Melisqus ",2,0,3,2,1,2,2,1,0,0,"Spain","Sweden",null,null,null,"Dark Duke ",1]
[null,"Endalos ","Jokaero ",1,1,1,1,1,2,1,1,0,3,"Norway","Switzerland",null,null,null,"Spartako ",1]
[null,"bothun ","Elrik ",2,0,1,0,2,2,1,2,3,3,"Norway","Switzerland",null,null,null,"Harti ",1]
[null,"straume ","Strider84 ",1,1,1,1,3,3,2,3,2,1,"Norway","Switzerland",null,null,null,"Kaltenland ",1]
[null,"GreatWhiteHope ","Madmatt13 ",1,1,2,2,3,0,2,2,3,3,"Norway","Switzerland",null,null,null,"Matte8 ",1]
[null,"FrankPedersen ","Phifoe ",1,1,2,2,1,2,2,0,1,1,"Norway","Switzerland",null,null,null,"cz ",1]
[null,"mynock ","Macabeo ",1,1,3,3,1,3,2,3,1,2,"Norway","Switzerland",null,null,null,"Justicium ",1]
[null,"The_Ref ","Goss ",2,0,1,0,3,2,3,2,2,3,"Norway","Switzerland",null,null,null,"Skuld ",1]
[null,"zulu ","sigu70 ",0,2,0,2,1,1,0,3,3,1,"Norway","Switzerland",null,null,null,"Joemanji ",1]
[null,null,null,null,null,null,null,null,null,null,null,null,null,null,null,null,null,null,"Leonek ",1]
[null,null,null,null,null,null,null,null,null,null,null,null,null,null,null,null,null,null,"DonShula ",1]
[null,null,null,null,null,null,null,null,null,null,null,null,null,null,null,null,null,null,"Dekra1979 ",1]
[null,null,null,null,null,null,null,null,null,null,null,null,null,null,null,null,null,null,"brocCooli ",1]
[null,null,null,null,null,null,null,null,null,null,null,null,null,null,null,null,null,null,"Obeliz ",1]
[null,null,null,null,null,null,null,null,null,null,null,null,null,null,null,null,null,null,"Shawass ",1]
[null,null,null,null,null,null,null,null,null,null,null,null,null,null,null,null,null,null,"Mewash ",1]
[null,null,null,null,null,null,null,null,null,null,null,null,null,null,null,null,null,null,"edheim ",1]
[null,null,null,null,null,null,null,null,null,null,null,null,null,null,null,null,null,null,"Favi ",1]
[null,null,null,null,null,null,null,null,null,null,null,null,null,null,null,null,null,null,"BiBi ",1]
[null,null,null,null,null,null,null,null,null,null,null,null,null,null,null,null,null,null,"Wolio ",1]
[null,null,null,null,null,null,null,null,null,null,null,null,null,null,null,null,null,null,"Reszka ",1]
[null,null,null,null,null,null,null,null,null,null,null,null,null,null,null,null,null,null,"ratogre ",1]
[null,null,null,null,null,null,null,null,null,null,null,null,null,null,null,null,null,null,"sann0638 ",1]
[null,null,null,null,null,null,null,null,null,null,null,null,null,null,null,null,null,null,"Corwin ",1]
[null,null,null,null,null,null,null,null,null,null,null,null,null,null,null,null,null,null,"Dragons ",1]
[null,null,null,null,null,null,null,null,null,null,null,null,null,null,null,null,null,null,"Inforthepain ",1]
[null,null,null,null,null,null,null,null,null,null,null,null,null,null,null,null,null,null,"Northernknight ",1]
[null,null,null,null,null,null,null,null,null,null,null,null,null,null,null,null,null,null,"Elrik ",1]
[null,null,null,null,null,null,null,null,null,null,null,null,null,null,null,null,null,null,"Tactel ",0]
[null,null,null,null,null,null,null,null,null,null,null,null,null,null,null,null,null,null,"straume ",0]
[null,null,null,null,null,null,null,null,null,null,null,null,null,null,null,null,null,null,"JamesEs ",0]
[null,null,null,null,null,null,null,null,null,null,null,null,null,null,null,null,null,null,"Strider84 ",0]
[null,null,null,null,null,null,null,null,null,null,null,null,null,null,null,null,null,null,"BudWiser ",0]
[null,null,null,null,null,null,null,null,null,null,null,null,null,null,null,null,null,null,"noraal ",0]
[null,null,null,null,null,null,null,null,null,null,null,null,null,null,null,null,null,null,"nonumber ",0]
[null,null,null,null,null,null,null,null,null,null,null,null,null,null,null,null,null,null,"Madmatt13 ",0]
[null,null,null,null,null,null,null,null,null,null,null,null,null,null,null,null,null,null,"GreatWhiteHope ",0]
[null,null,null,null,null,null,null,null,null,null,null,null,null,null,null,null,null,null,"Alex05 ",0]
[null,null,null,null,null,null,null,null,null,null,null,null,null,null,null,null,null,null,"Araznaroth ",0]
[null,null,null,null,null,null,null,null,null,null,null,null,null,null,null,null,null,null,"Beppe ",0]
[null,null,null,null,null,null,null,null,null,null,null,null,null,null,null,null,null,null,"JJ ",0]
[null,null,null,null,null,null,null,null,null,null,null,null,null,null,null,null,null,null,"Ploppy_McPloppy ",0]
[null,null,null,null,null,null,null,null,null,null,null,null,null,null,null,null,null,null,"Phifoe ",0]
[null,null,null,null,null,null,null,null,null,null,null,null,null,null,null,null,null,null,"MacWitt ",0]
[null,null,null,null,null,null,null,null,null,null,null,null,null,null,null,null,null,null,"Podfrey ",0]
[null,null,null,null,null,null,null,null,null,null,null,null,null,null,null,null,null,null,"Valen ",0]
[null,null,null,null,null,null,null,null,null,null,null,null,null,null,null,null,null,null,"JimJimany ",0]
[null,null,null,null,null,null,null,null,null,null,null,null,null,null,null,null,null,null,"Warrior1980 ",0]
[null,null,null,null,null,null,null,null,null,null,null,null,null,null,null,null,null,null,"Skoberget ",0]
[null,null,null,null,null,null,null,null,null,null,null,null,null,null,null,null,null,null,"Duckwing ",0]
[null,null,null,null,null,null,null,null,null,null,null,null,null,null,null,null,null,null,"Lycos ",0]
[null,null,null,null,null,null,null,null,null,null,null,null,null,null,null,null,null,null,"BeerBeer ",0]
[null,null,null,null,null,null,null,null,null,null,null,null,null,null,null,null,null,null,"Macabeo ",0]
[null,null,null,null,null,null,null,null,null,null,null,null,null,null,null,null,null,null,"gninocker ",0]
[null,null,null,null,null,null,null,null,null,null,null,null,null,null,null,null,null,null,"kfoged ",0]
[null,null,null,null,null,null,null,null,null,null,null,null,null,null,null,null,null,null,"MissSweden ",0]
[null,null,null,null,null,null,null,null,null,null,null,null,null,null,null,null,null,null,"Pidpad ",0]
[null,null,null,null,null,null,null,null,null,null,null,null,null,null,null,null,null,null,"Juniooor7 ",0]
[null,null,null,null,null,null,null,null,null,null,null,null,null,null,null,null,null,null,"Goss ",0]
[null,null,null,null,null,null,null,null,null,null,null,null,null,null,null,null,null,null,"Farina ",0]
[null,null,null,null,null,null,null,null,null,null,null,null,null,null,null,null,null,null,"sigu70 ",0]
[null,null,null,null,null,null,null,null,null,null,null,null,null,null,null,null,null,null,"FrankPedersen ",0]
[null,null,null,null,null,null,null,null,null,null,null,null,null,null,null,null,null,null,"andydavo ",0]
[null,null,null,null,null,null,null,null,null,null,null,null,null,null,null,null,null,null,"Melisqus ",0]
[null,null,null,null,null,null,null,null,null,null,null,null,null,null,null,null,null,null,"mynock ",0]
[null,null,null,null,null,null,null,null,null,null,null,null,null,null,null,null,null,null,"Arioso ",0]
[null,null,null,null,null,null,null,null,null,null,null,null,null,null,null,null,null,null,"Joanet ",0]
[null,null,null,null,null,null,null,null,null,null,null,null,null,null,null,null,null,null,"Idroj ",0]
[null,null,null,null,null,null,null,null,null,null,null,null,null,null,null,null,null,null,"Simon_ACP ",0]
[null,null,null,null,null,null,null,null,null,null,null,null,null,null,null,null,null,null,"The_Ref ",0]
[null,null,null,null,null,null,null,null,null,null,null,null,null,null,null,null,null,null,"Phoenix11 ",0]
[null,null,null,null,null,null,null,null,null,null,null,null,null,null,null,null,null,null,"zulu ",0]
[null,null,null,null,null,null,null,null,null,null,null,null,null,null,null,null,null,null,"HumptyTrump ",0]

{"sheet":"Round3","index":12,"n_rows":0,"n_cols":0,"rows_kept":0,"cut":false,"hidden":false,"merged":[]}

{"sheet":"Round4","index":13,"n_rows":0,"n_cols":0,"rows_kept":0,"cut":false,"hidden":false,"merged":[]}

{"sheet":"Round5","index":14,"n_rows":0,"n_cols":0,"rows_kept":0,"cut":false,"hidden":false,"merged":[]}

{"sheet":"Round6","index":15,"n_rows":0,"n_cols":0,"rows_kept":0,"cut":false,"hidden":false,"merged":[]}

{"sheet":"Round7","index":16,"n_rows":0,"n_cols":0,"rows_kept":0,"cut":false,"hidden":false,"merged":[]}

{"sheet":"Round8","index":17,"n_rows":0,"n_cols":0,"rows_kept":0,"cut":false,"hidden":false,"merged":[]}

{"sheet":"Round9","index":18,"n_rows":0,"n_cols":0,"rows_kept":0,"cut":false,"hidden":false,"merged":[]}

{"sheet":"NAF","index":19,"n_rows":861,"n_cols":1,"rows_kept":861,"cut":false,"hidden":false,"merged":[]}
["<?xml version=\"1.0\" encoding=\"UTF-8\"?>"]
["<nafReport xmlns:blo=\"http://www.bloodbowl.net\">"]
["<organiser>Mike</organiser>"]
["<coaches>"]
["<coach>"]
["<name>Alex</name>"]
["<number>16761</number>"]
["<team>Skaven</team>"]
["</coach>"]
["<coach>"]
["<name>Mike</name>"]
["<number>10468</number>"]
["<team>Elves</team>"]
["</coach>"]
["<coach>"]
["<name>Linus</name>"]
["<number>15676</number>"]
["<team>Dwarves</team>"]
["</coach>"]
["<coach>"]
["<name>Player4</name>"]
["<number>9106</number>"]
["<team>Wood Elves</team>"]
["</coach>"]
["<coach>"]
["<name>Player5</name>"]
["<number>12789</number>"]
["<team>Dark Elves</team>"]
["</coach>"]
["<coach>"]
["<name>Player6</name>"]
["<number>18136</number>"]
["<team>Wood Elves</team>"]
["</coach>"]
["<coach>"]
["<name>Player7</name>"]
["<number>9672</number>"]
["<team>Wood Elves</team>"]
["</coach>"]
["<coach>"]
["<name>Player8</name>"]
["<number>4118</number>"]
["<team>Chaos Dwarves</team>"]
["</coach>"]
["<coach>"]
["<name>Player9</name>"]
["<number>14129</number>"]
["<team>Nurgle's Rotters</team>"]
["</coach>"]
["<coach>"]
["<name>Player10</name>"]
["<number>1739</number>"]
["<team>Lizardmen</team>"]
["</coach>"]
["<coach>"]
["<name>Player11</name>"]
["<number>19602</number>"]
["<team>Slann</team>"]
["</coach>"]
["<coach>"]
["<name>Player12</name>"]
["<number>15064</number>"]
["<team>Wood Elves</team>"]
["</coach>"]
["<coach>"]
["<name>Player13</name>"]
["<number>6092</number>"]
["<team>Amazons</team>"]
["</coach>"]
["<coach>"]
["<name>Player14</name>"]
["<number>9080</number>"]
["<team>Dwarves</team>"]
["</coach>"]
["<coach>"]
["<name>Player15</name>"]
["<number>7960</number>"]
["<team>Undead</team>"]
["</coach>"]
["<coach>"]
["<name>Player16</name>"]
["<number>15062</number>"]
["<team>Goblins</team>"]
["</coach>"]
["<coach>"]
["<name>Player17</name>"]
["<number>7106</number>"]
["<team>Wood Elves</team>"]
["</coach>"]
["<coach>"]
["<name>Player18</name>"]
["<number>7371</number>"]
["<team>Khemri</team>"]
["</coach>"]
["</coaches>"]
["<game>"]
["<timestamp>2016-09-18 01:00</timestamp>"]
["<playerRecord>"]
["<name>Player7</name>"]
["<number>9672</number>"]
["<teamRating>100</teamRating>"]
["<touchDowns>12</touchDowns>"]
["<badlyHurt>2</badlyHurt>"]
["</playerRecord>"]
["<playerRecord>"]
["<name>Player9</name>"]
["<number>14129</number>"]
["<teamRating>100</teamRating>"]
["<touchDowns>7</touchDowns>"]
["<badlyHurt>1</badlyHurt>"]
["</playerRecord>"]
["</game>"]
["<game>"]
["<timestamp>2016-09-18 01:00</timestamp>"]
["<playerRecord>"]
["<name>Player6</name>"]
["<number>18136</number>"]
["<teamRating>100</teamRating>"]
["<touchDowns>12</touchDowns>"]
["<badlyHurt>2</badlyHurt>"]
["</playerRecord>"]
["<playerRecord>"]
["<name>Player11</name>"]
["<number>19602</number>"]
["<teamRating>100</teamRating>"]
["<touchDowns>12</touchDowns>"]
["<badlyHurt>2</badlyHurt>"]
["</playerRecord>"]
["</game>"]
["<game>"]
["<timestamp>2016-09-18 01:00</timestamp>"]
["<playerRecord>"]
["<name>Player17</name>"]
["<number>7106</number>"]
["<teamRating>100</teamRating>"]
["<touchDowns>10</touchDowns>"]
["<badlyHurt>2</badlyHurt>"]
["</playerRecord>"]
["<playerRecord>"]
["<name>Player13</name>"]
["<number>6092</number>"]
["<teamRating>100</teamRating>"]
["<touchDowns>8</touchDowns>"]
["<badlyHurt>2</badlyHurt>"]
["</playerRecord>"]
["</game>"]
["<game>"]
["<timestamp>2016-09-18 01:00</timestamp>"]
["<playerRecord>"]
["<name>Player8</name>"]
["<number>4118</number>"]
["<teamRating>100</teamRating>"]
["<touchDowns>3</touchDowns>"]
["<badlyHurt>1</badlyHurt>"]
["</playerRecord>"]
["<playerRecord>"]
["<name>Linus</name>"]
["<number>15676</number>"]
["<teamRating>100</teamRating>"]
["<touchDowns>16</touchDowns>"]
["<badlyHurt>3</badlyHurt>"]
["</playerRecord>"]
["</game>"]
["<game>"]
["<timestamp>2016-09-18 01:00</timestamp>"]
["<playerRecord>"]
["<name>Player14</name>"]
["<number>9080</number>"]
["<teamRating>100</teamRating>"]
["<touchDowns>9</touchDowns>"]
["<badlyHurt>1</badlyHurt>"]
["</playerRecord>"]
["<playerRecord>"]
["<name>Player10</name>"]
["<number>1739</number>"]
["<teamRating>100</teamRating>"]
["<touchDowns>11</touchDowns>"]
["<badlyHurt>2</badlyHurt>"]
["</playerRecord>"]
["</game>"]
["<game>"]
["<timestamp>2016-09-18 01:00</timestamp>"]
["<playerRecord>"]
["<name>Mike</name>"]
["<number>10468</number>"]
["<teamRating>100</teamRating>"]
["<touchDowns>4</touchDowns>"]
["<badlyHurt>0</badlyHurt>"]
["</playerRecord>"]
["<playerRecord>"]
["<name>Player5</name>"]
["<number>12789</number>"]
["<teamRating>100</teamRating>"]
["<touchDowns>17</touchDowns>"]
["<badlyHurt>2</badlyHurt>"]
["</playerRecord>"]
["</game>"]
["<game>"]
["<timestamp>2016-09-18 01:00</timestamp>"]
["<playerRecord>"]
["<name>Player15</name>"]
["<number>7960</number>"]
["<teamRating>100</teamRating>"]
["<touchDowns>7</touchDowns>"]
["<badlyHurt>0</badlyHurt>"]
["</playerRecord>"]
["<playerRecord>"]
["<name>Player16</name>"]
["<number>15062</number>"]
["<teamRating>100</teamRating>"]
["<touchDowns>8</touchDowns>"]
["<badlyHurt>0</badlyHurt>"]
["</playerRecord>"]
["</game>"]
["<game>"]
["<timestamp>2016-09-18 01:00</timestamp>"]
["<playerRecord>"]
["<name>Player18</name>"]
["<number>7371</number>"]
["<teamRating>100</teamRating>"]
["<touchDowns>14</touchDowns>"]
["<badlyHurt>2</badlyHurt>"]
["</playerRecord>"]
["<playerRecord>"]
["<name>Player12</name>"]
["<number>15064</number>"]
["<teamRating>100</teamRating>"]
["<touchDowns>6</touchDowns>"]
["<badlyHurt>0</badlyHurt>"]
["</playerRecord>"]
["</game>"]
["<game>"]
["<timestamp>2016-09-18 01:00</timestamp>"]
["<playerRecord>"]
["<name>Alex</name>"]
["<number>16761</number>"]
["<teamRating>100</teamRating>"]
["<touchDowns>11</touchDowns>"]
["<badlyHurt>3</badlyHurt>"]
["</playerRecord>"]
["<playerRecord>"]
["<name>Player4</name>"]
["<number>9106</number>"]
["<teamRating>100</teamRating>"]
["<touchDowns>7</touchDowns>"]
["<badlyHurt>2</badlyHurt>"]
["</playerRecord>"]
["</game>"]
["<game>"]
["<timestamp>2016-09-18 02:00</timestamp>"]
["<playerRecord>"]
["<name>Player5</name>"]
["<number>12789</number>"]
["<teamRating>100</teamRating>"]
["<touchDowns>13</touchDowns>"]
["<badlyHurt>1</badlyHurt>"]
["</playerRecord>"]
["<playerRecord>"]
["<name>Linus</name>"]
["<number>15676</number>"]
["<teamRating>100</teamRating>"]
["<touchDowns>3</touchDowns>"]
["<badlyHurt>0</badlyHurt>"]
["</playerRecord>"]
["</game>"]
["<game>"]
["<timestamp>2016-09-18 02:00</timestamp>"]
["<playerRecord>"]
["<name>Player18</name>"]
["<number>7371</number>"]
["<teamRating>100</teamRating>"]
["<touchDowns>11</touchDowns>"]
["<badlyHurt>3</badlyHurt>"]
["</playerRecord>"]
["<playerRecord>"]
["<name>Player7</name>"]
["<number>9672</number>"]
["<teamRating>100</teamRating>"]
["<touchDowns>6</touchDowns>"]
["<badlyHurt>2</badlyHurt>"]
["</playerRecord>"]
["</game>"]
["<game>"]
["<timestamp>2016-09-18 02:00</timestamp>"]
["<playerRecord>"]
["<name>Player6</name>"]
["<number>18136</number>"]
["<teamRating>100</teamRating>"]
["<touchDowns>10</touchDowns>"]
["<badlyHurt>2</badlyHurt>"]
["</playerRecord>"]
["<playerRecord>"]
["<name>Player10</name>"]
["<number>1739</number>"]
["<teamRating>100</teamRating>"]
["<touchDowns>5</touchDowns>"]
["<badlyHurt>1</badlyHurt>"]
["</playerRecord>"]
["</game>"]
["<game>"]
["<timestamp>2016-09-18 02:00</timestamp>"]
["<playerRecord>"]
["<name>Player11</name>"]
["<number>19602</number>"]
["<teamRating>100</teamRating>"]
["<touchDowns>9</touchDowns>"]
["<badlyHurt>1</badlyHurt>"]
["</playerRecord>"]
["<playerRecord>"]
["<name>Alex</name>"]
["<number>16761</number>"]
["<teamRating>100</teamRating>"]
["<touchDowns>16</touchDowns>"]
["<badlyHurt>3</badlyHurt>"]
["</playerRecord>"]
["</game>"]
["<game>"]
["<timestamp>2016-09-18 02:00</timestamp>"]
["<playerRecord>"]
["<name>Player17</name>"]
["<number>7106</number>"]
["<teamRating>100</teamRating>"]
["<touchDowns>15</touchDowns>"]
["<badlyHurt>2</badlyHurt>"]
["</playerRecord>"]
["<playerRecord>"]
["<name>Player14</name>"]
["<number>9080</number>"]
["<teamRating>100</teamRating>"]
["<touchDowns>4</touchDowns>"]
["<badlyHurt>1</badlyHurt>"]
["</playerRecord>"]
["</game>"]
["<game>"]
["<timestamp>2016-09-18 02:00</timestamp>"]
["<playerRecord>"]
["<name>Player13</name>"]
["<number>6092</number>"]
["<teamRating>100</teamRating>"]
["<touchDowns>10</touchDowns>"]
["<badlyHurt>1</badlyHurt>"]
["</playerRecord>"]
["<playerRecord>"]
["<name>Player16</name>"]
["<number>15062</number>"]
["<teamRating>100</teamRating>"]
["<touchDowns>9</touchDowns>"]
["<badlyHurt>1</badlyHurt>"]
["</playerRecord>"]
["</game>"]
["<game>"]
["<timestamp>2016-09-18 02:00</timestamp>"]
["<playerRecord>"]
["<name>Player15</name>"]
["<number>7960</number>"]
["<teamRating>100</teamRating>"]
["<touchDowns>16</touchDowns>"]
["<badlyHurt>2</badlyHurt>"]
["</playerRecord>"]
["<playerRecord>"]
["<name>Player9</name>"]
["<number>14129</number>"]
["<teamRating>100</teamRating>"]
["<touchDowns>7</touchDowns>"]
["<badlyHurt>1</badlyHurt>"]
["</playerRecord>"]
["</game>"]
["<game>"]
["<timestamp>2016-09-18 02:00</timestamp>"]
["<playerRecord>"]
["<name>Player4</name>"]
["<number>9106</number>"]
["<teamRating>100</teamRating>"]
["<touchDowns>10</touchDowns>"]
["<badlyHurt>1</badlyHurt>"]
["</playerRecord>"]
["<playerRecord>"]
["<name>Player12</name>"]
["<number>15064</number>"]
["<teamRating>100</teamRating>"]
["<touchDowns>10</touchDowns>"]
["<badlyHurt>1</badlyHurt>"]
["</playerRecord>"]
["</game>"]
["<game>"]
["<timestamp>2016-09-18 02:00</timestamp>"]
["<playerRecord>"]
["<name>Mike</name>"]
["<number>10468</number>"]
["<teamRating>100</teamRating>"]
["<touchDowns>7</touchDowns>"]
["<badlyHurt>1</badlyHurt>"]
["</playerRecord>"]
["<playerRecord>"]
["<name>Player8</name>"]
["<number>4118</number>"]
["<teamRating>100</teamRating>"]
["<touchDowns>13</touchDowns>"]
["<badlyHurt>2</badlyHurt>"]
["</playerRecord>"]
["</game>"]
["<game>"]
["<timestamp>2016-09-18 03:00</timestamp>"]
["<playerRecord>"]
["<name>Player5</name>"]
["<number>12789</number>"]
["<teamRating>100</teamRating>"]
["<touchDowns>7</touchDowns>"]
["<badlyHurt>1</badlyHurt>"]
["</playerRecord>"]
["<playerRecord>"]
["<name>Alex</name>"]
["<number>16761</number>"]
["<teamRating>100</teamRating>"]
["<touchDowns>12</touchDowns>"]
["<badlyHurt>1</badlyHurt>"]
["</playerRecord>"]
["</game>"]
["<game>"]
["<timestamp>2016-09-18 03:00</timestamp>"]
["<playerRecord>"]
["<name>Player18</name>"]
["<number>7371</number>"]
["<teamRating>100</teamRating>"]
["<touchDowns>9</touchDowns>"]
["<badlyHurt>1</badlyHurt>"]
["</playerRecord>"]
["<playerRecord>"]
["<name>Player17</name>"]
["<number>7106</number>"]
["<teamRating>100</teamRating>"]
["<touchDowns>11</touchDowns>"]
["<badlyHurt>1</badlyHurt>"]
["</playerRecord>"]
["</game>"]
["<game>"]
["<timestamp>2016-09-18 03:00</timestamp>"]
["<playerRecord>"]
["<name>Player15</name>"]
["<number>7960</number>"]
["<teamRating>100</teamRating>"]
["<touchDowns>5</touchDowns>"]
["<badlyHurt>1</badlyHurt>"]
["</playerRecord>"]
["<playerRecord>"]
["<name>Player6</name>"]
["<number>18136</number>"]
["<teamRating>100</teamRating>"]
["<touchDowns>14</touchDowns>"]
["<badlyHurt>3</badlyHurt>"]
["</playerRecord>"]
["</game>"]
["<game>"]
["<timestamp>2016-09-18 03:00</timestamp>"]
["<playerRecord>"]
["<name>Player11</name>"]
["<number>19602</number>"]
["<teamRating>100</teamRating>"]
["<touchDowns>4</touchDowns>"]
["<badlyHurt>0</badlyHurt>"]
["</playerRecord>"]
["<playerRecord>"]
["<name>Linus</name>"]
["<number>15676</number>"]
["<teamRating>100</teamRating>"]
["<touchDowns>12</touchDowns>"]
["<badlyHurt>1</badlyHurt>"]
["</playerRecord>"]
["</game>"]
["<game>"]
["<timestamp>2016-09-18 03:00</timestamp>"]
["<playerRecord>"]
["<name>Player7</name>"]
["<number>9672</number>"]
["<teamRating>100</teamRating>"]
["<touchDowns>11</touchDowns>"]
["<badlyHurt>2</badlyHurt>"]
["</playerRecord>"]
["<playerRecord>"]
["<name>Player13</name>"]
["<number>6092</number>"]
["<teamRating>100</teamRating>"]
["<touchDowns>11</touchDowns>"]
["<badlyHurt>2</badlyHurt>"]
["</playerRecord>"]
["</game>"]
["<game>"]
["<timestamp>2016-09-18 03:00</timestamp>"]
["<playerRecord>"]
["<name>Player16</name>"]
["<number>15062</number>"]
["<teamRating>100</teamRating>"]
["<touchDowns>7</touchDowns>"]
["<badlyHurt>0</badlyHurt>"]
["</playerRecord>"]
["<playerRecord>"]
["<name>Player4</name>"]
["<number>9106</number>"]
["<teamRating>100</teamRating>"]
["<touchDowns>11</touchDowns>"]
["<badlyHurt>1</badlyHurt>"]
["</playerRecord>"]
["</game>"]
["<game>"]
["<timestamp>2016-09-18 03:00</timestamp>"]
["<playerRecord>"]
["<name>Player10</name>"]
["<number>1739</number>"]
["<teamRating>100</teamRating>"]
["<touchDowns>14</touchDowns>"]
["<badlyHurt>2</badlyHurt>"]
["</playerRecord>"]
["<playerRecord>"]
["<name>Player8</name>"]
["<number>4118</number>"]
["<teamRating>100</teamRating>"]
["<touchDowns>4</touchDowns>"]
["<badlyHurt>1</badlyHurt>"]
["</playerRecord>"]
["</game>"]
["<game>"]
["<timestamp>2016-09-18 03:00</timestamp>"]
["<playerRecord>"]
["<name>Player12</name>"]
["<number>15064</number>"]
["<teamRating>100</teamRating>"]
["<touchDowns>5</touchDowns>"]
["<badlyHurt>0</badlyHurt>"]
["</playerRecord>"]
["<playerRecord>"]
["<name>Player9</name>"]
["<number>14129</number>"]
["<teamRating>100</teamRating>"]
["<touchDowns>13</touchDowns>"]
["<badlyHurt>1</badlyHurt>"]
["</playerRecord>"]
["</game>"]
["<game>"]
["<timestamp>2016-09-18 03:00</timestamp>"]
["<playerRecord>"]
["<name>Player14</name>"]
["<number>9080</number>"]
["<teamRating>100</teamRating>"]
["<touchDowns>10</touchDowns>"]
["<badlyHurt>1</badlyHurt>"]
["</playerRecord>"]
["<playerRecord>"]
["<name>Mike</name>"]
["<number>10468</number>"]
["<teamRating>100</teamRating>"]
["<touchDowns>9</touchDowns>"]
["<badlyHurt>1</badlyHurt>"]
["</playerRecord>"]
["</game>"]
["<game>"]
["<timestamp>2016-09-18 04:00</timestamp>"]
["<playerRecord>"]
["<name>Alex</name>"]
["<number>16761</number>"]
["<teamRating>100</teamRating>"]
["<touchDowns>9</touchDowns>"]
["<badlyHurt>2</badlyHurt>"]
["</playerRecord>"]
["<playerRecord>"]
["<name>Player6</name>"]
["<number>18136</number>"]
["<teamRating>100</teamRating>"]
["<touchDowns>12</touchDowns>"]
["<badlyHurt>3</badlyHurt>"]
["</playerRecord>"]
["</game>"]
["<game>"]
["<timestamp>2016-09-18 04:00</timestamp>"]
["<playerRecord>"]
["<name>Player5</name>"]
["<number>12789</number>"]
["<teamRating>100</teamRating>"]
["<touchDowns>12</touchDowns>"]
["<badlyHurt>1</badlyHurt>"]
["</playerRecord>"]
["<playerRecord>"]
["<name>Player17</name>"]
["<number>7106</number>"]
["<teamRating>100</teamRating>"]
["<touchDowns>4</touchDowns>"]
["<badlyHurt>0</badlyHurt>"]
["</playerRecord>"]
["</game>"]
["<game>"]
["<timestamp>2016-09-18 04:00</timestamp>"]
["<playerRecord>"]
["<name>Player18</name>"]
["<number>7371</number>"]
["<teamRating>100</teamRating>"]
["<touchDowns>16</touchDowns>"]
["<badlyHurt>2</badlyHurt>"]
["</playerRecord>"]
["<playerRecord>"]
["<name>Linus</name>"]
["<number>15676</number>"]
["<teamRating>100</teamRating>"]
["<touchDowns>8</touchDowns>"]
["<badlyHurt>1</badlyHurt>"]
["</playerRecord>"]
["</game>"]
["<game>"]
["<timestamp>2016-09-18 04:00</timestamp>"]
["<playerRecord>"]
["<name>Player10</name>"]
["<number>1739</number>"]
["<teamRating>100</teamRating>"]
["<touchDowns>5</touchDowns>"]
["<badlyHurt>0</badlyHurt>"]
["</playerRecord>"]
["<playerRecord>"]
["<name>Player13</name>"]
["<number>6092</number>"]
["<teamRating>100</teamRating>"]
["<touchDowns>15</touchDowns>"]
["<badlyHurt>3</badlyHurt>"]
["</playerRecord>"]
["</game>"]
["<game>"]
["<timestamp>2016-09-18 04:00</timestamp>"]
["<playerRecord>"]
["<name>Player7</name>"]
["<number>9672</number>"]
["<teamRating>100</teamRating>"]
["<touchDowns>11</touchDowns>"]
["<badlyHurt>2</badlyHurt>"]
["</playerRecord>"]
["<playerRecord>"]
["<name>Player4</name>"]
["<number>9106</number>"]
["<teamRating>100</teamRating>"]
["<touchDowns>7</touchDowns>"]
["<badlyHurt>1</badlyHurt>"]
["</playerRecord>"]
["</game>"]
["<game>"]
["<timestamp>2016-09-18 04:00</timestamp>"]
["<playerRecord>"]
["<name>Player15</name>"]
["<number>7960</number>"]
["<teamRating>100</teamRating>"]
["<touchDowns>16</touchDowns>"]
["<badlyHurt>3</badlyHurt>"]
["</playerRecord>"]
["<playerRecord>"]
["<name>Player11</name>"]
["<number>19602</number>"]
["<teamRating>100</teamRating>"]
["<touchDowns>8</touchDowns>"]
["<badlyHurt>1</badlyHurt>"]
["</playerRecord>"]
["</game>"]
["<game>"]
["<timestamp>2016-09-18 04:00</timestamp>"]
["<playerRecord>"]
["<name>Player9</name>"]
["<number>14129</number>"]
["<teamRating>100</teamRating>"]
["<touchDowns>13</touchDowns>"]
["<badlyHurt>2</badlyHurt>"]
["</playerRecord>"]
["<playerRecord>"]
["<name>Player16</name>"]
["<number>15062</number>"]
["<teamRating>100</teamRating>"]
["<touchDowns>9</touchDowns>"]
["<badlyHurt>1</badlyHurt>"]
["</playerRecord>"]
["</game>"]
["<game>"]
["<timestamp>2016-09-18 04:00</timestamp>"]
["<playerRecord>"]
["<name>Player14</name>"]
["<number>9080</number>"]
["<teamRating>100</teamRating>"]
["<touchDowns>17</touchDowns>"]
["<badlyHurt>3</badlyHurt>"]
["</playerRecord>"]
["<playerRecord>"]
["<name>Player8</name>"]
["<number>4118</number>"]
["<teamRating>100</teamRating>"]
["<touchDowns>6</touchDowns>"]
["<badlyHurt>1</badlyHurt>"]
["</playerRecord>"]
["</game>"]
["<game>"]
["<timestamp>2016-09-18 04:00</timestamp>"]
["<playerRecord>"]
["<name>Mike</name>"]
["<number>10468</number>"]
["<teamRating>100</teamRating>"]
["<touchDowns>5</touchDowns>"]
["<badlyHurt>1</badlyHurt>"]
["</playerRecord>"]
["<playerRecord>"]
["<name>Player12</name>"]
["<number>15064</number>"]
["<teamRating>100</teamRating>"]
["<touchDowns>12</touchDowns>"]
["<badlyHurt>2</badlyHurt>"]
["</playerRecord>"]
["</game>"]
["<game>"]
["<timestamp>2016-09-18 05:00</timestamp>"]
["<playerRecord>"]
["<name>Player18</name>"]
["<number>7371</number>"]
["<teamRating>100</teamRating>"]
["<touchDowns>6</touchDowns>"]
["<badlyHurt>1</badlyHurt>"]
["</playerRecord>"]
["<playerRecord>"]
["<name>Player5</name>"]
["<number>12789</number>"]
["<teamRating>100</teamRating>"]
["<touchDowns>13</touchDowns>"]
["<badlyHurt>2</badlyHurt>"]
["</playerRecord>"]
["</game>"]
["<game>"]
["<timestamp>2016-09-18 05:00</timestamp>"]
["<playerRecord>"]
["<name>Player6</name>"]
["<number>18136</number>"]
["<teamRating>100</teamRating>"]
["<touchDowns>20</touchDowns>"]
["<badlyHurt>3</badlyHurt>"]
["</playerRecord>"]
["<playerRecord>"]
["<name>Player13</name>"]
["<number>6092</number>"]
["<teamRating>100</teamRating>"]
["<touchDowns>7</touchDowns>"]
["<badlyHurt>0</badlyHurt>"]
["</playerRecord>"]
["</game>"]
["<game>"]
["<timestamp>2016-09-18 05:00</timestamp>"]
["<playerRecord>"]
["<name>Alex</name>"]
["<number>16761</number>"]
["<teamRating>100</teamRating>"]
["<touchDowns>16</touchDowns>"]
["<badlyHurt>3</badlyHurt>"]
["</playerRecord>"]
["<playerRecord>"]
["<name>Player15</name>"]
["<number>7960</number>"]
["<teamRating>100</teamRating>"]
["<touchDowns>6</touchDowns>"]
["<badlyHurt>0</badlyHurt>"]
["</playerRecord>"]
["</game>"]
["<game>"]
["<timestamp>2016-09-18 05:00</timestamp>"]
["<playerRecord>"]
["<name>Player7</name>"]
["<number>9672</number>"]
["<teamRating>100</teamRating>"]
["<touchDowns>8</touchDowns>"]
["<badlyHurt>1</badlyHurt>"]
["</playerRecord>"]
["<playerRecord>"]
["<name>Player17</name>"]
["<number>7106</number>"]
["<teamRating>100</teamRating>"]
["<touchDowns>11</touchDowns>"]
["<badlyHurt>2</badlyHurt>"]
["</playerRecord>"]
["</game>"]
["<game>"]
["<timestamp>2016-09-18 05:00</timestamp>"]
["<playerRecord>"]
["<name>Player14</name>"]
["<number>9080</number>"]
["<teamRating>100</teamRating>"]
["<touchDowns>9</touchDowns>"]
["<badlyHurt>1</badlyHurt>"]
["</playerRecord>"]
["<playerRecord>"]
["<name>Player9</name>"]
["<number>14129</number>"]
["<teamRating>100</teamRating>"]
["<touchDowns>17</touchDowns>"]
["<badlyHurt>3</badlyHurt>"]
["</playerRecord>"]
["</game>"]
["<game>"]
["<timestamp>2016-09-18 05:00</timestamp>"]
["<playerRecord>"]
["<name>Linus</name>"]
["<number>15676</number>"]
["<teamRating>100</teamRating>"]
["<touchDowns>9</touchDowns>"]
["<badlyHurt>1</badlyHurt>"]
["</playerRecord>"]
["<playerRecord>"]
["<name>Player4</name>"]
["<number>9106</number>"]
["<teamRating>100</teamRating>"]
["<touchDowns>7</touchDowns>"]
["<badlyHurt>1</badlyHurt>"]
["</playerRecord>"]
["</game>"]
["<game>"]
["<timestamp>2016-09-18 05:00</timestamp>"]
["<playerRecord>"]
["<name>Player10</name>"]
["<number>1739</number>"]
["<teamRating>100</teamRating>"]
["<touchDowns>12</touchDowns>"]
["<badlyHurt>2</badlyHurt>"]
["</playerRecord>"]
["<playerRecord>"]
["<name>Player12</name>"]
["<number>15064</number>"]
["<teamRating>100</teamRating>"]
["<touchDowns>6</touchDowns>"]
["<badlyHurt>1</badlyHurt>"]
["</playerRecord>"]
["</game>"]
["<game>"]
["<timestamp>2016-09-18 05:00</timestamp>"]
["<playerRecord>"]
["<name>Player16</name>"]
["<number>15062</number>"]
["<teamRating>100</teamRating>"]
["<touchDowns>11</touchDowns>"]
["<badlyHurt>3</badlyHurt>"]
["</playerRecord>"]
["<playerRecord>"]
["<name>Player8</name>"]
["<number>4118</number>"]
["<teamRating>100</teamRating>"]
["<touchDowns>4</touchDowns>"]
["<badlyHurt>2</badlyHurt>"]
["</playerRecord>"]
["</game>"]
["<game>"]
["<timestamp>2016-09-18 05:00</timestamp>"]
["<playerRecord>"]
["<name>Mike</name>"]
["<number>10468</number>"]
["<teamRating>100</teamRating>"]
["<touchDowns>9</touchDowns>"]
["<badlyHurt>3</badlyHurt>"]
["</playerRecord>"]
["<playerRecord>"]
["<name>Player11</name>"]
["<number>19602</number>"]
["<teamRating>100</teamRating>"]
["<touchDowns>12</touchDowns>"]
["<badlyHurt>3</badlyHurt>"]
["</playerRecord>"]
["</game>"]
["</nafReport>"]

{"sheet":"Working","index":20,"n_rows":36,"n_cols":34,"rows_kept":36,"cut":false,"hidden":false,"merged":[]}
[null,null,null,null,null,null,null,null,null,null,null,null,null,null,null,null,null,null,null,null,null,null,null,null,null,"Latest Rd:",2]
[null,null,null,null,null,null,null,null,null,null,null,null,null,null,null,null,null,null,null,null,null,null,null,null,null,"Players:",{"$f":"COUNTA(Players!B:B)-1","v":128},null,null,null,"Max Score",{"$f":"Setup!B19*TeamSize*Setup!B19+Setup!B19","v":34}]
[null,null,null,null,null,null,null,null,null,null,null,null,null,null,null,null,null,null,null,null,null,null,null,null,null,"Display",14,"Columns"]
[null,null,null,null,null,null,null,null,null,null,null,null,null,null,null,null,null,null,null,null,null,null,null,null,null,"Enter",7,"Columns"]
[null,null,null,null,null,null,null,null,null,null,null,null,null,null,null,null,null,null,null,null,null,null,null,null,null,"Max random",3]
[null,null,null,null,null,null,null,null,null,null,null,null,null,null,null,null,null,null,null,null,null,null,null,null,null,"Number of Groups",{"$f":"COUNTA(Players!M:M)-1","v":16},null,null,null,"Group"]
[null,null,null,null,null,null,null,null,null,null,null,null,null,null,null,null,null,null,null,null,null,null,null,null,null,null,null,null,null,null,"Individual"]
[null,null,null,null,null,null,null,null,null,null,null,null,null,null,null,null,null,null,null,null,null,null,null,null,null,"Group display",18,"columns"]
[]
[null,null,null,null,null,null,null,null,null,null,null,null,null,null,null,null,null,null,null,null,null,null,null,null,null,null,null,null,"Cumulative"]
[null,null,null,null,null,null,null,null,null,null,null,null,null,null,null,null,null,null,null,null,null,null,null,null,null,null,"Amazons",null,null,null,null,null,"Entry Data"]
[null,null,null,null,null,null,null,null,null,null,null,null,null,null,null,null,null,null,null,null,null,null,null,null,null,null,"Bretonnian",null,null,null,"Initial Display Columns",null,"Player"]
[null,null,null,null,null,null,null,null,null,null,null,null,null,null,null,null,null,null,null,null,null,null,null,null,null,null,"Chaos",null,null,null,"Player",null,"Points"]
[null,null,null,null,null,null,null,null,null,null,null,null,null,null,null,null,null,null,null,null,null,null,null,null,null,null,"Chaos Dwarves",null,null,null,"Points",null,"TD"]
[null,null,null,null,null,null,null,null,null,null,null,null,null,null,null,null,null,null,null,null,null,null,null,null,null,null,"Chaos Pact",null,null,null,"TD For",null,"Cas"]
[null,null,null,null,null,null,null,null,null,null,null,null,null,null,null,null,null,null,null,null,null,null,null,null,null,null,"Dark Elves",null,null,null,"Cas For",null,{"$f":"Setup!E3","v":"Bonus1"},"Bonus1 Name"]
[null,null,null,null,null,null,null,null,null,null,null,null,null,null,null,null,null,null,null,null,null,null,null,null,null,null,"Dwarves",null,null,null,{"$f":"Working!AG16","v":"Bonus1"},null,{"$f":"Setup!E4","v":"Bonus2"},"Bonus2 Name"]
[null,null,null,null,null,null,null,null,null,null,null,null,null,null,null,null,null,null,null,null,null,null,null,null,null,null,"Elves",null,null,null,{"$f":"Working!AG17","v":"Bonus2"},null,"Group"]
[null,null,null,null,null,null,null,null,null,null,null,null,null,null,null,null,null,null,null,null,null,null,null,null,null,null,"Goblins",null,null,null,"TD Against"]
[null,null,null,null,null,null,null,null,null,null,null,null,null,null,null,null,null,null,null,null,null,null,null,null,null,null,"Halflings",null,null,null,"Cas Against"]
[null,null,null,null,null,null,null,null,null,null,null,null,null,null,null,null,null,null,null,null,null,null,null,null,null,null,"High Elves",null,null,null,"TD Net"]
[null,null,null,null,null,null,null,null,null,null,null,null,null,null,null,null,null,null,null,null,null,null,null,null,null,null,"Humans",null,null,null,"Cas Net"]
[null,null,null,null,null,null,null,null,null,null,null,null,null,null,null,null,null,null,null,null,null,null,null,null,null,null,"Khemri",null,null,null,"Wins"]
[null,null,null,null,null,null,null,null,null,null,null,null,null,null,null,null,null,null,null,null,null,null,null,null,null,null,"Khorne",null,null,null,"Draws"]
[null,null,null,null,null,null,null,null,null,null,null,null,null,null,null,null,null,null,null,null,null,null,null,null,null,null,"Lizardmen",null,null,null,"Losses"]
[null,null,null,null,null,null,null,null,null,null,null,null,null,null,null,null,null,null,null,null,null,null,null,null,null,null,"Necromantic",null,null,null,"Opp Score"]
[null,null,null,null,null,null,null,null,null,null,null,null,null,null,null,null,null,null,null,null,null,null,null,null,null,null,"Norse",null,null,null,"Group"]
[null,null,null,null,null,null,null,null,null,null,null,null,null,null,null,null,null,null,null,null,null,null,null,null,null,null,"Nurgle's Rotters"]
[null,null,null,null,null,null,null,null,null,null,null,null,null,null,null,null,null,null,null,null,null,null,null,null,null,null,"Ogres"]
[null,null,null,null,null,null,null,null,null,null,null,null,null,null,null,null,null,null,null,null,null,null,null,null,null,null,"Orc"]
[null,null,null,null,null,null,null,null,null,null,null,null,null,null,null,null,null,null,null,null,null,null,null,null,null,null,"Skaven"]
[null,null,null,null,null,null,null,null,null,null,null,null,null,null,null,null,null,null,null,null,null,null,null,null,null,null,"Slann"]
[null,null,null,null,null,null,null,null,null,null,null,null,null,null,null,null,null,null,null,null,null,null,null,null,null,null,"Undead"]
[null,null,null,null,null,null,null,null,null,null,null,null,null,null,null,null,null,null,null,null,null,null,null,null,null,null,"Underworld"]
[null,null,null,null,null,null,null,null,null,null,null,null,null,null,null,null,null,null,null,null,null,null,null,null,null,null,"Vampires"]
[null,null,null,null,null,null,null,null,null,null,null,null,null,null,null,null,null,null,null,null,null,null,null,null,null,null,"Wood Elves"]

{"sheet":"ChangeLog","index":21,"n_rows":29,"n_cols":4,"rows_kept":29,"cut":false,"hidden":false,"merged":[]}
[null,"This spreadsheet is based on one by Kaper on an Excel forum: http://www.excelforum.com/excel-programming-vba-macros/1105569-swiss-pairing-algorithm-in-excel-to-organize-a-chess-tournament.html"]
[null,"Massive thanks due to him!"]
[null,"The original was used for Chess, and it has been adapted to work for Blood Bowl by sann0638 (Mike Davies)"]
[]
["Version","Summary","Date","Notes"]
["1.0","Multi-sheet version of the chess","2016-06-19"]
[1.1000000000000001,"Remove Black and White stuff","2016-06-19"]
[1.2,"Change to TDs to generate points","2016-06-19"]
[null,"Got the Swiss working properly","2016-06-19","Published."]
[1.3,"More help information.","2016-06-20"]
[null,"Added Table","2016-06-20"]
[null,"Added Opponent Score","2016-06-20"]
[2.1,"Big overhaul to where info stored","2016-06-21"]
[2.2000000000000002,"Putting in the Score formula","2016-06-21","Published."]
[3.1,"Added all tiebreaker columns","2016-06-22"]
[null,"Realised opponent score was wrong, fixed it.","2016-06-22"]
[3.2,"Fixed problem with sorting the table.","2016-06-23","Published."]
[3.3,"Tiebreakers implemented","2016-06-24"]
[null,"NAF Upload file","2016-06-24","Published."]
[4.0999999999999996,"Group results and matrix added","2016-06-25"]
[null,"Group results fully implemented","2016-06-26"]
[4.2,"Fixed net casualties","2016-06-28"]
[4.3,"Tiebreakers corrected, yet again!","2016-09-17","Published."]
[4.4000000000000004,"Group results corrected, groups added to table","2016-09-17"]
[null,"Removed need for Groups to be in there, corrected number of players.","2016-09-18","Published."]
["5.0","Mostly working Group Swiss","2016-09-21"]
[5.0999999999999996,"Working Group Swiss.","2016-09-21","Published."]
[5.2,"Fixed problem with more than 100 coaches.","2016-09-25"]
[null,"Tidied up tabs.","2016-09-25","Published."]